Organisation Code,Organisation Label,Effective Date,Organisational Unit,Service Division Label,Category Internal Name,Purpose,Detailed Expenditure Code,Payment Date,Transaction Number,Irrecoverable VAT Amount,Amount,Capital Or Revenue,Beneficiary Name,Procurement Card
Http://opendatacommunities.org/id/metropolitan-district-council/leeds,Leeds City Council,31/05/2022,Children and Families,Social Care,Internal Recharges,Legal Disbursements,411,19/05/2022,2205-00001,0.00,3851.74,R,A & N Care Solicitors Limited,No
Http://opendatacommunities.org/id/metropolitan-district-council/leeds,Leeds City Council,31/05/2022,Adults and Health,Services For Older People Under 65 P/Dis,Agency Payments,Sheltered Accommodation,569,25/05/2022,2205-00002,0.00,5400.00,R,A & V TRANSITIONAL HOMES,No
Http://opendatacommunities.org/id/metropolitan-district-council/leeds,Leeds City Council,31/05/2022,Strategic Landlord,HRA Housing Leeds,Capital,OTHER COSTS,7,31/05/2022,2205-00003,0.00,80.00,C,REDACTED PERSONAL DATA,No
Http://opendatacommunities.org/id/metropolitan-district-council/leeds,Leeds City Council,31/05/2022,City Development,Recreation,External Income,Swimming Bath Charges,923,30/05/2022,2205-00004,0.00,43.20,R,REDACTED PERSONAL DATA,No
Http://opendatacommunities.org/id/metropolitan-district-council/leeds,Leeds City Council,31/05/2022,Children and Families,Social Care,Agency Payments,Services Rendered By Other Organisations,511,04/05/2022,2205-00005,0.00,217.23,R,REDACTED PERSONAL DATA,No
Http://opendatacommunities.org/id/metropolitan-district-council/leeds,Leeds City Council,31/05/2022,Children and Families,Social Care,Agency Payments,Services Rendered By Other Organisations,511,06/05/2022,2205-00006,0.00,186.42,R,REDACTED PERSONAL DATA,No
Http://opendatacommunities.org/id/metropolitan-district-council/leeds,Leeds City Council,31/05/2022,Strategic Landlord,HRA Housing Leeds,Capital,OTHER COSTS,7,19/05/2022,2205-00007,0.00,94.17,C,REDACTED PERSONAL DATA,No
Http://opendatacommunities.org/id/metropolitan-district-council/leeds,Leeds City Council,31/05/2022,Resources,Leeds Building Services,Supplies and Services,Other Hired And Contracted Services,265,06/05/2022,2205-00008,0.00,37140.00,R,A Buckler (Haulage) Ltd,No
Http://opendatacommunities.org/id/metropolitan-district-council/leeds,Leeds City Council,31/05/2022,Strategic Landlord,Housing Management,Premises,General Maintenance,104,31/05/2022,2205-00009,0.00,50.00,R,REDACTED PERSONAL DATA,No
Http://opendatacommunities.org/id/metropolitan-district-council/leeds,Leeds City Council,31/05/2022,City Development,Libraries Arts & Heritage,Supplies and Services,Operational Furniture And Equipment,203,11/05/2022,2205-00010,0.00,204.04,R,A C Entertainment Technologies Ltd,No
Http://opendatacommunities.org/id/metropolitan-district-council/leeds,Leeds City Council,31/05/2022,Children and Families,Social Care,Agency Payments,Services Rendered By Other Organisations,511,06/05/2022,2205-00011,0.00,233.03,R,REDACTED PERSONAL DATA,No
Http://opendatacommunities.org/id/metropolitan-district-council/leeds,Leeds City Council,31/05/2022,Strategic Landlord,HRA Housing Leeds,Capital,CONSTRUCTION,3,04/05/2022,2205-00012,0.00,90897.56,C,A Connolly Limited,No
Http://opendatacommunities.org/id/metropolitan-district-council/leeds,Leeds City Council,31/05/2022,Resources,Leeds Building Services,Supplies and Services,Other Hired And Contracted Services,265,11/05/2022,2205-00013,0.00,8678.00,R,A Coole Electrical Ltd,No
Http://opendatacommunities.org/id/metropolitan-district-council/leeds,Leeds City Council,31/05/2022,Resources,Leeds Building Services,Supplies and Services,Other Hired And Contracted Services,265,12/05/2022,2205-00014,0.00,18578.00,R,A Coole Electrical Ltd,No
Http://opendatacommunities.org/id/metropolitan-district-council/leeds,Leeds City Council,31/05/2022,Resources,Leeds Building Services,Supplies and Services,Other Hired And Contracted Services,265,13/05/2022,2205-00015,0.00,10117.00,R,A Coole Electrical Ltd,No
Http://opendatacommunities.org/id/metropolitan-district-council/leeds,Leeds City Council,31/05/2022,Children and Families,Social Care,Agency Payments,Contact,548,20/05/2022,2205-00016,0.00,10.40,R,REDACTED PERSONAL DATA,No
Http://opendatacommunities.org/id/metropolitan-district-council/leeds,Leeds City Council,31/05/2022,Children and Families,Social Care,Agency Payments,Contact,548,13/05/2022,2205-00017,0.00,10.40,R,REDACTED PERSONAL DATA,No
Http://opendatacommunities.org/id/metropolitan-district-council/leeds,Leeds City Council,31/05/2022,Children and Families,Social Care,Agency Payments,Contact,548,27/05/2022,2205-00018,0.00,10.40,R,REDACTED PERSONAL DATA,No
Http://opendatacommunities.org/id/metropolitan-district-council/leeds,Leeds City Council,31/05/2022,Communities Housing and Environment,Customer Access,Supplies and Services,Bought In Professional Services,277,05/05/2022,2205-00019,0.00,18.00,R,A D Dumitru,No
Http://opendatacommunities.org/id/metropolitan-district-council/leeds,Leeds City Council,31/05/2022,Communities Housing and Environment,Customer Access,Supplies and Services,Bought In Professional Services,277,05/05/2022,2205-00020,0.00,18.00,R,A D Dumitru,No
Http://opendatacommunities.org/id/metropolitan-district-council/leeds,Leeds City Council,31/05/2022,Communities Housing and Environment,Customer Access,Supplies and Services,Bought In Professional Services,277,05/05/2022,2205-00021,0.00,27.00,R,A D Dumitru,No
Http://opendatacommunities.org/id/metropolitan-district-council/leeds,Leeds City Council,31/05/2022,Communities Housing and Environment,Customer Access,Supplies and Services,Bought In Professional Services,277,05/05/2022,2205-00022,0.00,18.00,R,A D Dumitru,No
Http://opendatacommunities.org/id/metropolitan-district-council/leeds,Leeds City Council,31/05/2022,Communities Housing and Environment,Customer Access,Supplies and Services,Bought In Professional Services,277,05/05/2022,2205-00023,0.00,18.00,R,A D Dumitru,No
Http://opendatacommunities.org/id/metropolitan-district-council/leeds,Leeds City Council,31/05/2022,Communities Housing and Environment,Customer Access,Supplies and Services,Bought In Professional Services,277,05/05/2022,2205-00024,0.00,18.00,R,A D Dumitru,No
Http://opendatacommunities.org/id/metropolitan-district-council/leeds,Leeds City Council,31/05/2022,Communities Housing and Environment,Customer Access,Supplies and Services,Bought In Professional Services,277,11/05/2022,2205-00025,0.00,18.00,R,A D Dumitru,No
Http://opendatacommunities.org/id/metropolitan-district-council/leeds,Leeds City Council,31/05/2022,Communities Housing and Environment,Customer Access,Supplies and Services,Bought In Professional Services,277,11/05/2022,2205-00026,0.00,27.00,R,A D Dumitru,No
Http://opendatacommunities.org/id/metropolitan-district-council/leeds,Leeds City Council,31/05/2022,Communities Housing and Environment,Customer Access,Supplies and Services,Bought In Professional Services,277,11/05/2022,2205-00027,0.00,18.00,R,A D Dumitru,No
Http://opendatacommunities.org/id/metropolitan-district-council/leeds,Leeds City Council,31/05/2022,Communities Housing and Environment,Customer Access,Supplies and Services,Bought In Professional Services,277,18/05/2022,2205-00028,0.00,27.00,R,A D Dumitru,No
Http://opendatacommunities.org/id/metropolitan-district-council/leeds,Leeds City Council,31/05/2022,Communities Housing and Environment,Customer Access,Supplies and Services,Bought In Professional Services,277,18/05/2022,2205-00029,0.00,18.00,R,A D Dumitru,No
Http://opendatacommunities.org/id/metropolitan-district-council/leeds,Leeds City Council,31/05/2022,Communities Housing and Environment,Customer Access,Supplies and Services,Bought In Professional Services,277,18/05/2022,2205-00030,0.00,18.00,R,A D Dumitru,No
Http://opendatacommunities.org/id/metropolitan-district-council/leeds,Leeds City Council,31/05/2022,Communities Housing and Environment,Customer Access,Supplies and Services,Bought In Professional Services,277,18/05/2022,2205-00031,0.00,18.00,R,A D Dumitru,No
Http://opendatacommunities.org/id/metropolitan-district-council/leeds,Leeds City Council,31/05/2022,Communities Housing and Environment,Customer Access,Supplies and Services,Bought In Professional Services,277,18/05/2022,2205-00032,0.00,18.00,R,A D Dumitru,No
Http://opendatacommunities.org/id/metropolitan-district-council/leeds,Leeds City Council,31/05/2022,Communities Housing and Environment,Customer Access,Supplies and Services,Bought In Professional Services,277,25/05/2022,2205-00033,0.00,9.00,R,A D Dumitru,No
Http://opendatacommunities.org/id/metropolitan-district-council/leeds,Leeds City Council,31/05/2022,Communities Housing and Environment,Customer Access,Supplies and Services,Bought In Professional Services,277,25/05/2022,2205-00034,0.00,9.00,R,A D Dumitru,No
Http://opendatacommunities.org/id/metropolitan-district-council/leeds,Leeds City Council,31/05/2022,Communities Housing and Environment,Customer Access,Supplies and Services,Bought In Professional Services,277,25/05/2022,2205-00035,0.00,27.00,R,A D Dumitru,No
Http://opendatacommunities.org/id/metropolitan-district-council/leeds,Leeds City Council,31/05/2022,Communities Housing and Environment,Customer Access,Supplies and Services,Bought In Professional Services,277,25/05/2022,2205-00036,0.00,36.00,R,A D Dumitru,No
Http://opendatacommunities.org/id/metropolitan-district-council/leeds,Leeds City Council,31/05/2022,Communities Housing and Environment,Customer Access,Supplies and Services,Bought In Professional Services,277,25/05/2022,2205-00037,0.00,18.00,R,A D Dumitru,No
Http://opendatacommunities.org/id/metropolitan-district-council/leeds,Leeds City Council,31/05/2022,Communities Housing and Environment,Customer Access,Supplies and Services,Bought In Professional Services,277,05/05/2022,2205-00038,0.00,18.00,R,A D Dumitru,No
Http://opendatacommunities.org/id/metropolitan-district-council/leeds,Leeds City Council,31/05/2022,Communities Housing and Environment,Customer Access,Supplies and Services,Bought In Professional Services,277,11/05/2022,2205-00039,0.00,36.00,R,A D Dumitru,No
Http://opendatacommunities.org/id/metropolitan-district-council/leeds,Leeds City Council,31/05/2022,Communities Housing and Environment,Customer Access,Supplies and Services,Bought In Professional Services,277,11/05/2022,2205-00040,0.00,18.00,R,A D Dumitru,No
Http://opendatacommunities.org/id/metropolitan-district-council/leeds,Leeds City Council,31/05/2022,Communities Housing and Environment,Customer Access,Supplies and Services,Bought In Professional Services,277,18/05/2022,2205-00041,0.00,27.00,R,A D Dumitru,No
Http://opendatacommunities.org/id/metropolitan-district-council/leeds,Leeds City Council,31/05/2022,City Development,Recreation,External Income,Sporting & Other Recreational Fees,928,24/05/2022,2205-00042,0.00,74.95,R,REDACTED PERSONAL DATA,No
Http://opendatacommunities.org/id/metropolitan-district-council/leeds,Leeds City Council,31/05/2022,Children and Families,Social Care,Agency Payments,Services Rendered By Voluntary Sector,505,24/05/2022,2205-00043,0.00,3033.33,R,REDACTED PERSONAL DATA,No
Http://opendatacommunities.org/id/metropolitan-district-council/leeds,Leeds City Council,31/05/2022,Children and Families,Social Care,Agency Payments,Services Rendered By Voluntary Sector,505,04/05/2022,2205-00044,0.00,1955.07,R,REDACTED PERSONAL DATA,No
Http://opendatacommunities.org/id/metropolitan-district-council/leeds,Leeds City Council,31/05/2022,Children and Families,Social Care,Agency Payments,Services Rendered By Voluntary Sector,505,06/05/2022,2205-00045,0.00,5070.63,R,REDACTED PERSONAL DATA,No
Http://opendatacommunities.org/id/metropolitan-district-council/leeds,Leeds City Council,31/05/2022,Strategic Landlord,HRA Housing Leeds,Capital,OTHER COSTS,7,06/05/2022,2205-00046,0.00,25.00,C,REDACTED PERSONAL DATA,No
Http://opendatacommunities.org/id/metropolitan-district-council/leeds,Leeds City Council,31/05/2022,Children and Families,Social Care,Agency Payments,Services Rendered By Other Organisations,511,04/05/2022,2205-00047,0.00,217.23,R,REDACTED PERSONAL DATA,No
Http://opendatacommunities.org/id/metropolitan-district-council/leeds,Leeds City Council,31/05/2022,Children and Families,Social Care,Agency Payments,Services Rendered By Other Organisations,511,06/05/2022,2205-00048,0.00,857.53,R,REDACTED PERSONAL DATA,No
Http://opendatacommunities.org/id/metropolitan-district-council/leeds,Leeds City Council,31/05/2022,Adults and Health,Other Generic Services,Agency Payments,Fees To Carers,563,16/05/2022,2205-00049,0.00,460.80,R,REDACTED PERSONAL DATA,No
Http://opendatacommunities.org/id/metropolitan-district-council/leeds,Leeds City Council,31/05/2022,Adults and Health,Other Generic Services,Agency Payments,Fees To Carers,563,16/05/2022,2205-00050,0.00,50.40,R,REDACTED PERSONAL DATA,No
Http://opendatacommunities.org/id/metropolitan-district-council/leeds,Leeds City Council,31/05/2022,Resources,Leeds Building Services,Supplies and Services,Operational Materials,205,19/05/2022,2205-00051,0.00,895.00,R,A J H  Pump Supply & Repair Ltd,No
Http://opendatacommunities.org/id/metropolitan-district-council/leeds,Leeds City Council,31/05/2022,Resources,Leeds Building Services,Supplies and Services,Operational Materials,205,31/05/2022,2205-00052,0.00,571.00,R,A J H  Pump Supply & Repair Ltd,No
Http://opendatacommunities.org/id/metropolitan-district-council/leeds,Leeds City Council,31/05/2022,Strategic Landlord,HRA Housing Leeds,Capital,OTHER COSTS,7,12/05/2022,2205-00053,0.00,80.00,C,REDACTED PERSONAL DATA,No
Http://opendatacommunities.org/id/metropolitan-district-council/leeds,Leeds City Council,31/05/2022,Children and Families,Social Care,Agency Payments,Services Rendered By Other Organisations,511,06/05/2022,2205-00054,0.00,1491.36,R,REDACTED PERSONAL DATA,No
Http://opendatacommunities.org/id/metropolitan-district-council/leeds,Leeds City Council,31/05/2022,Communities Housing and Environment,Strategic Housing Partnership & Support,Supplies and Services,Other Hired And Contracted Services,265,19/05/2022,2205-00055,0.00,2353.97,R,A Kundra,No
Http://opendatacommunities.org/id/metropolitan-district-council/leeds,Leeds City Council,31/05/2022,Children and Families,Social Care,Agency Payments,Allowances,546,26/05/2022,2205-00056,0.00,211.42,R,REDACTED PERSONAL DATA,No
Http://opendatacommunities.org/id/metropolitan-district-council/leeds,Leeds City Council,31/05/2022,Communities Housing and Environment,Elections Licensing and Registration,External Income,Admissions Booking Fees & Ticket Sales,933,10/05/2022,2205-00057,0.00,433.00,R,REDACTED PERSONAL DATA,No
Http://opendatacommunities.org/id/metropolitan-district-council/leeds,Leeds City Council,31/05/2022,Communities Housing and Environment,Customer Access,Supplies and Services,Bought In Professional Services,277,05/05/2022,2205-00058,0.00,36.00,R,A MOHAMMED,No
Http://opendatacommunities.org/id/metropolitan-district-council/leeds,Leeds City Council,31/05/2022,Communities Housing and Environment,Customer Access,Supplies and Services,Bought In Professional Services,277,05/05/2022,2205-00059,0.00,27.00,R,A MOHAMMED,No
Http://opendatacommunities.org/id/metropolitan-district-council/leeds,Leeds City Council,31/05/2022,Communities Housing and Environment,Customer Access,Supplies and Services,Bought In Professional Services,277,05/05/2022,2205-00060,0.00,18.00,R,A MOHAMMED,No
Http://opendatacommunities.org/id/metropolitan-district-council/leeds,Leeds City Council,31/05/2022,Communities Housing and Environment,Customer Access,Supplies and Services,Bought In Professional Services,277,05/05/2022,2205-00061,0.00,9.00,R,A MOHAMMED,No
Http://opendatacommunities.org/id/metropolitan-district-council/leeds,Leeds City Council,31/05/2022,Communities Housing and Environment,Customer Access,Supplies and Services,Bought In Professional Services,277,05/05/2022,2205-00062,0.00,18.00,R,A MOHAMMED,No
Http://opendatacommunities.org/id/metropolitan-district-council/leeds,Leeds City Council,31/05/2022,Communities Housing and Environment,Customer Access,Supplies and Services,Bought In Professional Services,277,05/05/2022,2205-00063,0.00,9.00,R,A MOHAMMED,No
Http://opendatacommunities.org/id/metropolitan-district-council/leeds,Leeds City Council,31/05/2022,Communities Housing and Environment,Customer Access,Supplies and Services,Bought In Professional Services,277,11/05/2022,2205-00064,0.00,18.00,R,A MOHAMMED,No
Http://opendatacommunities.org/id/metropolitan-district-council/leeds,Leeds City Council,31/05/2022,Communities Housing and Environment,Customer Access,Supplies and Services,Bought In Professional Services,277,11/05/2022,2205-00065,0.00,27.00,R,A MOHAMMED,No
Http://opendatacommunities.org/id/metropolitan-district-council/leeds,Leeds City Council,31/05/2022,Communities Housing and Environment,Customer Access,Supplies and Services,Bought In Professional Services,277,11/05/2022,2205-00066,0.00,18.00,R,A MOHAMMED,No
Http://opendatacommunities.org/id/metropolitan-district-council/leeds,Leeds City Council,31/05/2022,Communities Housing and Environment,Customer Access,Supplies and Services,Bought In Professional Services,277,11/05/2022,2205-00067,0.00,36.00,R,A MOHAMMED,No
Http://opendatacommunities.org/id/metropolitan-district-council/leeds,Leeds City Council,31/05/2022,Communities Housing and Environment,Customer Access,Supplies and Services,Bought In Professional Services,277,18/05/2022,2205-00068,0.00,108.00,R,A MOHAMMED,No
Http://opendatacommunities.org/id/metropolitan-district-council/leeds,Leeds City Council,31/05/2022,Communities Housing and Environment,Customer Access,Supplies and Services,Bought In Professional Services,277,18/05/2022,2205-00069,0.00,153.00,R,A MOHAMMED,No
Http://opendatacommunities.org/id/metropolitan-district-council/leeds,Leeds City Council,31/05/2022,Communities Housing and Environment,Customer Access,Supplies and Services,Bought In Professional Services,277,18/05/2022,2205-00070,0.00,18.00,R,A MOHAMMED,No
Http://opendatacommunities.org/id/metropolitan-district-council/leeds,Leeds City Council,31/05/2022,Communities Housing and Environment,Customer Access,Supplies and Services,Bought In Professional Services,277,18/05/2022,2205-00071,0.00,9.00,R,A MOHAMMED,No
Http://opendatacommunities.org/id/metropolitan-district-council/leeds,Leeds City Council,31/05/2022,Communities Housing and Environment,Customer Access,Supplies and Services,Bought In Professional Services,277,25/05/2022,2205-00072,0.00,18.00,R,A MOHAMMED,No
Http://opendatacommunities.org/id/metropolitan-district-council/leeds,Leeds City Council,31/05/2022,Communities Housing and Environment,Customer Access,Supplies and Services,Bought In Professional Services,277,25/05/2022,2205-00073,0.00,27.00,R,A MOHAMMED,No
Http://opendatacommunities.org/id/metropolitan-district-council/leeds,Leeds City Council,31/05/2022,Communities Housing and Environment,Customer Access,Supplies and Services,Bought In Professional Services,277,25/05/2022,2205-00074,0.00,81.00,R,A MOHAMMED,No
Http://opendatacommunities.org/id/metropolitan-district-council/leeds,Leeds City Council,31/05/2022,Communities Housing and Environment,Customer Access,Supplies and Services,Bought In Professional Services,277,25/05/2022,2205-00075,0.00,18.00,R,A MOHAMMED,No
Http://opendatacommunities.org/id/metropolitan-district-council/leeds,Leeds City Council,31/05/2022,Communities Housing and Environment,Customer Access,Supplies and Services,Bought In Professional Services,277,05/05/2022,2205-00076,0.00,18.00,R,A MOHAMMED,No
Http://opendatacommunities.org/id/metropolitan-district-council/leeds,Leeds City Council,31/05/2022,Communities Housing and Environment,Customer Access,Supplies and Services,Bought In Professional Services,277,05/05/2022,2205-00077,0.00,22.50,R,A MOHAMMED,No
Http://opendatacommunities.org/id/metropolitan-district-council/leeds,Leeds City Council,31/05/2022,Communities Housing and Environment,Customer Access,Supplies and Services,Bought In Professional Services,277,05/05/2022,2205-00078,0.00,27.00,R,A MOHAMMED,No
Http://opendatacommunities.org/id/metropolitan-district-council/leeds,Leeds City Council,31/05/2022,Communities Housing and Environment,Customer Access,Supplies and Services,Bought In Professional Services,277,05/05/2022,2205-00079,0.00,18.00,R,A MOHAMMED,No
Http://opendatacommunities.org/id/metropolitan-district-council/leeds,Leeds City Council,31/05/2022,Communities Housing and Environment,Customer Access,Supplies and Services,Bought In Professional Services,277,05/05/2022,2205-00080,0.00,27.00,R,A MOHAMMED,No
Http://opendatacommunities.org/id/metropolitan-district-council/leeds,Leeds City Council,31/05/2022,Communities Housing and Environment,Customer Access,Supplies and Services,Bought In Professional Services,277,05/05/2022,2205-00081,0.00,18.00,R,A MOHAMMED,No
Http://opendatacommunities.org/id/metropolitan-district-council/leeds,Leeds City Council,31/05/2022,Communities Housing and Environment,Customer Access,Supplies and Services,Bought In Professional Services,277,11/05/2022,2205-00082,0.00,18.00,R,A MOHAMMED,No
Http://opendatacommunities.org/id/metropolitan-district-council/leeds,Leeds City Council,31/05/2022,Communities Housing and Environment,Customer Access,Supplies and Services,Bought In Professional Services,277,11/05/2022,2205-00083,0.00,18.00,R,A MOHAMMED,No
Http://opendatacommunities.org/id/metropolitan-district-council/leeds,Leeds City Council,31/05/2022,Communities Housing and Environment,Customer Access,Supplies and Services,Bought In Professional Services,277,11/05/2022,2205-00084,0.00,18.00,R,A MOHAMMED,No
Http://opendatacommunities.org/id/metropolitan-district-council/leeds,Leeds City Council,31/05/2022,Communities Housing and Environment,Customer Access,Supplies and Services,Bought In Professional Services,277,11/05/2022,2205-00085,0.00,31.50,R,A MOHAMMED,No
Http://opendatacommunities.org/id/metropolitan-district-council/leeds,Leeds City Council,31/05/2022,Communities Housing and Environment,Customer Access,Supplies and Services,Bought In Professional Services,277,18/05/2022,2205-00086,0.00,18.00,R,A MOHAMMED,No
Http://opendatacommunities.org/id/metropolitan-district-council/leeds,Leeds City Council,31/05/2022,Communities Housing and Environment,Customer Access,Supplies and Services,Bought In Professional Services,277,18/05/2022,2205-00087,0.00,18.00,R,A MOHAMMED,No
Http://opendatacommunities.org/id/metropolitan-district-council/leeds,Leeds City Council,31/05/2022,Communities Housing and Environment,Customer Access,Supplies and Services,Bought In Professional Services,277,18/05/2022,2205-00088,0.00,9.00,R,A MOHAMMED,No
Http://opendatacommunities.org/id/metropolitan-district-council/leeds,Leeds City Council,31/05/2022,Communities Housing and Environment,Customer Access,Supplies and Services,Bought In Professional Services,277,18/05/2022,2205-00089,0.00,18.00,R,A MOHAMMED,No
Http://opendatacommunities.org/id/metropolitan-district-council/leeds,Leeds City Council,31/05/2022,Communities Housing and Environment,Customer Access,Supplies and Services,Bought In Professional Services,277,18/05/2022,2205-00090,0.00,18.00,R,A MOHAMMED,No
Http://opendatacommunities.org/id/metropolitan-district-council/leeds,Leeds City Council,31/05/2022,Communities Housing and Environment,Customer Access,Supplies and Services,Bought In Professional Services,277,25/05/2022,2205-00091,0.00,18.00,R,A MOHAMMED,No
Http://opendatacommunities.org/id/metropolitan-district-council/leeds,Leeds City Council,31/05/2022,Communities Housing and Environment,Customer Access,Supplies and Services,Bought In Professional Services,277,25/05/2022,2205-00092,0.00,18.00,R,A MOHAMMED,No
Http://opendatacommunities.org/id/metropolitan-district-council/leeds,Leeds City Council,31/05/2022,Communities Housing and Environment,Customer Access,Supplies and Services,Bought In Professional Services,277,25/05/2022,2205-00093,0.00,13.50,R,A MOHAMMED,No
Http://opendatacommunities.org/id/metropolitan-district-council/leeds,Leeds City Council,31/05/2022,Communities Housing and Environment,Customer Access,Supplies and Services,Bought In Professional Services,277,25/05/2022,2205-00094,0.00,9.00,R,A MOHAMMED,No
Http://opendatacommunities.org/id/metropolitan-district-council/leeds,Leeds City Council,31/05/2022,Communities Housing and Environment,Customer Access,Supplies and Services,Bought In Professional Services,277,25/05/2022,2205-00095,0.00,18.00,R,A MOHAMMED,No
Http://opendatacommunities.org/id/metropolitan-district-council/leeds,Leeds City Council,31/05/2022,Children and Families,Social Care,Agency Payments,Services Rendered By Other Organisations,511,04/05/2022,2205-00096,0.00,651.69,R,REDACTED PERSONAL DATA,No
Http://opendatacommunities.org/id/metropolitan-district-council/leeds,Leeds City Council,31/05/2022,Children and Families,Social Care,Agency Payments,Services Rendered By Other Organisations,511,06/05/2022,2205-00097,0.00,2796.30,R,REDACTED PERSONAL DATA,No
Http://opendatacommunities.org/id/metropolitan-district-council/leeds,Leeds City Council,31/05/2022,Communities Housing and Environment,Customer Access,Supplies and Services,Bought In Professional Services,277,18/05/2022,2205-00098,0.00,18.00,R,A NAMAKI,No
Http://opendatacommunities.org/id/metropolitan-district-council/leeds,Leeds City Council,31/05/2022,Communities Housing and Environment,Customer Access,Supplies and Services,Bought In Professional Services,277,18/05/2022,2205-00099,0.00,18.00,R,A NAMAKI,No
Http://opendatacommunities.org/id/metropolitan-district-council/leeds,Leeds City Council,31/05/2022,Communities Housing and Environment,Customer Access,Supplies and Services,Bought In Professional Services,277,18/05/2022,2205-00100,0.00,18.00,R,A NAMAKI,No
Http://opendatacommunities.org/id/metropolitan-district-council/leeds,Leeds City Council,31/05/2022,Communities Housing and Environment,Customer Access,Supplies and Services,Bought In Professional Services,277,25/05/2022,2205-00101,0.00,18.00,R,A NAMAKI,No
Http://opendatacommunities.org/id/metropolitan-district-council/leeds,Leeds City Council,31/05/2022,Communities Housing and Environment,Customer Access,Supplies and Services,Bought In Professional Services,277,25/05/2022,2205-00102,0.00,27.00,R,A NAMAKI,No
Http://opendatacommunities.org/id/metropolitan-district-council/leeds,Leeds City Council,31/05/2022,Communities Housing and Environment,Customer Access,Supplies and Services,Bought In Professional Services,277,25/05/2022,2205-00103,0.00,18.00,R,A NAMAKI,No
Http://opendatacommunities.org/id/metropolitan-district-council/leeds,Leeds City Council,31/05/2022,Communities Housing and Environment,Customer Access,Supplies and Services,Bought In Professional Services,277,05/05/2022,2205-00104,0.00,27.00,R,A NAMAKI,No
Http://opendatacommunities.org/id/metropolitan-district-council/leeds,Leeds City Council,31/05/2022,Communities Housing and Environment,Customer Access,Supplies and Services,Bought In Professional Services,277,05/05/2022,2205-00105,0.00,27.00,R,A NAMAKI,No
Http://opendatacommunities.org/id/metropolitan-district-council/leeds,Leeds City Council,31/05/2022,Communities Housing and Environment,Customer Access,Supplies and Services,Bought In Professional Services,277,05/05/2022,2205-00106,0.00,27.00,R,A NAMAKI,No
Http://opendatacommunities.org/id/metropolitan-district-council/leeds,Leeds City Council,31/05/2022,Communities Housing and Environment,Customer Access,Supplies and Services,Bought In Professional Services,277,05/05/2022,2205-00107,0.00,18.00,R,A NAMAKI,No
Http://opendatacommunities.org/id/metropolitan-district-council/leeds,Leeds City Council,31/05/2022,Communities Housing and Environment,Customer Access,Supplies and Services,Bought In Professional Services,277,05/05/2022,2205-00108,0.00,117.00,R,A NAMAKI,No
Http://opendatacommunities.org/id/metropolitan-district-council/leeds,Leeds City Council,31/05/2022,Communities Housing and Environment,Customer Access,Supplies and Services,Bought In Professional Services,277,11/05/2022,2205-00109,0.00,117.00,R,A NAMAKI,No
Http://opendatacommunities.org/id/metropolitan-district-council/leeds,Leeds City Council,31/05/2022,Communities Housing and Environment,Customer Access,Supplies and Services,Bought In Professional Services,277,18/05/2022,2205-00110,0.00,81.00,R,A NAMAKI,No
Http://opendatacommunities.org/id/metropolitan-district-council/leeds,Leeds City Council,31/05/2022,Communities Housing and Environment,Customer Access,Supplies and Services,Bought In Professional Services,277,25/05/2022,2205-00111,0.00,9.00,R,A NAMAKI,No
Http://opendatacommunities.org/id/metropolitan-district-council/leeds,Leeds City Council,31/05/2022,Communities Housing and Environment,Customer Access,Supplies and Services,Bought In Professional Services,277,25/05/2022,2205-00112,0.00,18.00,R,A NAMAKI,No
Http://opendatacommunities.org/id/metropolitan-district-council/leeds,Leeds City Council,31/05/2022,Communities Housing and Environment,Customer Access,Supplies and Services,Bought In Professional Services,277,25/05/2022,2205-00113,0.00,18.00,R,A NAMAKI,No
Http://opendatacommunities.org/id/metropolitan-district-council/leeds,Leeds City Council,31/05/2022,Communities Housing and Environment,Customer Access,Supplies and Services,Bought In Professional Services,277,25/05/2022,2205-00114,0.00,81.00,R,A NAMAKI,No
Http://opendatacommunities.org/id/metropolitan-district-council/leeds,Leeds City Council,31/05/2022,Communities Housing and Environment,Customer Access,Supplies and Services,Bought In Professional Services,277,25/05/2022,2205-00115,0.00,81.00,R,A NAMAKI,No
Http://opendatacommunities.org/id/metropolitan-district-council/leeds,Leeds City Council,31/05/2022,Children and Families,Social Care,Agency Payments,Services Rendered By Other Organisations,511,06/05/2022,2205-00116,0.00,372.84,R,REDACTED PERSONAL DATA,No
Http://opendatacommunities.org/id/metropolitan-district-council/leeds,Leeds City Council,31/05/2022,Strategic Landlord,HRA Housing Leeds,Capital,OTHER COSTS,7,12/05/2022,2205-00117,0.00,100.00,C,REDACTED PERSONAL DATA,No
Http://opendatacommunities.org/id/metropolitan-district-council/leeds,Leeds City Council,31/05/2022,Children and Families,Social Care,Agency Payments,Services Rendered By Other Organisations,511,06/05/2022,2205-00118,0.00,372.84,R,REDACTED PERSONAL DATA,No
Http://opendatacommunities.org/id/metropolitan-district-council/leeds,Leeds City Council,31/05/2022,Children and Families,Social Care,Agency Payments,Independent Fostering Agencies,509,11/05/2022,2205-00119,0.00,1656.00,R,A Taxis,No
Http://opendatacommunities.org/id/metropolitan-district-council/leeds,Leeds City Council,31/05/2022,Children and Families,Social Care,Agency Payments,Services Rendered By Other Organisations,511,06/05/2022,2205-00120,0.00,372.84,R,REDACTED PERSONAL DATA,No
Http://opendatacommunities.org/id/metropolitan-district-council/leeds,Leeds City Council,31/05/2022,Children and Families,Social Care,Agency Payments,Services Rendered By Other Organisations,511,06/05/2022,2205-00121,0.00,186.42,R,REDACTED PERSONAL DATA,No
Http://opendatacommunities.org/id/metropolitan-district-council/leeds,Leeds City Council,31/05/2022,Children and Families,Social Care,Agency Payments,Independent Fostering Agencies,509,20/05/2022,2205-00122,0.00,59082.90,R,A Wilderness Way Ltd,No
Http://opendatacommunities.org/id/metropolitan-district-council/leeds,Leeds City Council,31/05/2022,Resources,Leeds Building Services,Supplies and Services,Other Hired And Contracted Services,265,09/05/2022,2205-00123,0.00,7967.50,R,A1 Access Lifts Ltd,No
Http://opendatacommunities.org/id/metropolitan-district-council/leeds,Leeds City Council,31/05/2022,Resources,Leeds Building Services,Supplies and Services,Operational Materials,205,26/05/2022,2205-00124,0.00,850.00,R,A1 STAIR LIFT SERVICES,No
Http://opendatacommunities.org/id/metropolitan-district-council/leeds,Leeds City Council,31/05/2022,Resources,Leeds Building Services,Supplies and Services,Operational Materials,205,09/05/2022,2205-00125,0.00,950.00,R,A1 STAIR LIFT SERVICES,No
Http://opendatacommunities.org/id/metropolitan-district-council/leeds,Leeds City Council,31/05/2022,Resources,Leeds Building Services,Supplies and Services,Other Hired And Contracted Services,265,13/05/2022,2205-00126,0.00,2822.70,R,A1 STAIR LIFT SERVICES,No
Http://opendatacommunities.org/id/metropolitan-district-council/leeds,Leeds City Council,31/05/2022,Resources,Leeds Building Services,Supplies and Services,Other Hired And Contracted Services,265,23/05/2022,2205-00127,0.00,160.00,R,AAL LTD,No
Http://opendatacommunities.org/id/metropolitan-district-council/leeds,Leeds City Council,31/05/2022,Children and Families,Social Care,Transport,Fuel (Non LCC Supplies),321,18/05/2022,2205-00128,0.00,65.00,R,REDACTED PERSONAL DATA,No
Http://opendatacommunities.org/id/metropolitan-district-council/leeds,Leeds City Council,31/05/2022,Adults and Health,Services For Older People - 65 And Over,Agency Payments,Residential Care Dementia,571,25/05/2022,2205-00129,0.00,1251.24,R,Aaron Court Care Home,No
Http://opendatacommunities.org/id/metropolitan-district-council/leeds,Leeds City Council,31/05/2022,Children and Families,Social Care,Appropriations,Leaving Care Allowances,634,20/05/2022,2205-00130,0.00,100.00,R,REDACTED PERSONAL DATA,No
Http://opendatacommunities.org/id/metropolitan-district-council/leeds,Leeds City Council,31/05/2022,Communities Housing and Environment,Benefits Welfare and Poverty,Supplies and Services,Grant Related Expenditure,298,03/05/2022,2205-00131,0.00,500.00,R,REDACTED PERSONAL DATA,No
Http://opendatacommunities.org/id/metropolitan-district-council/leeds,Leeds City Council,31/05/2022,City Development,Libraries Arts & Heritage,Supplies and Services,Books & Audio-Visual Materials,206,04/04/2022,2205-00132,0.00,26.07,R,Ab* Abebooks.Uk Jajdmy,Yes
Http://opendatacommunities.org/id/metropolitan-district-council/leeds,Leeds City Council,31/05/2022,City Development,Libraries Arts & Heritage,Supplies and Services,Books & Audio-Visual Materials,206,28/04/2022,2205-00133,0.00,-26.07,R,Ab* Abebooks.Uk Jajdmy,Yes
Http://opendatacommunities.org/id/metropolitan-district-council/leeds,Leeds City Council,31/05/2022,Communities Housing and Environment,Car Parking Services,Supplies and Services,Postages,212,28/04/2022,2205-00134,0.00,16.50,R,Abacus Express,Yes
Http://opendatacommunities.org/id/metropolitan-district-council/leeds,Leeds City Council as Accountable Body,31/05/2022,Social Services Pooled Budgets,Jcs For People With Learning Disabilitie,Agency Payments,Residential,580,25/05/2022,2205-00135,0.00,11720.20,R,Abbey Care And Education,No
Http://opendatacommunities.org/id/metropolitan-district-council/leeds,Leeds City Council,31/05/2022,Adults and Health,Public Health,Agency Payments,Public Health Commissioned Services,526,03/05/2022,2205-00136,0.00,3049.44,R,Abbey Grange Medical Practice,No
Http://opendatacommunities.org/id/metropolitan-district-council/leeds,Leeds City Council,31/05/2022,Adults and Health,Services For Adults Under 65 Mental/Dis,Agency Payments,Home Care,568,09/05/2022,2205-00137,0.00,170.00,R,Abbeyfield The Dales Limited,No
Http://opendatacommunities.org/id/metropolitan-district-council/leeds,Leeds City Council,31/05/2022,Adults and Health,Services For Older People - 65 And Over,Agency Payments,Home Care,568,04/05/2022,2205-00138,0.00,2380.00,R,Abbeyfield The Dales Limited,No
Http://opendatacommunities.org/id/metropolitan-district-council/leeds,Leeds City Council,31/05/2022,Insurance,Insurance,Supplies and Services,Insurance Claims,248,19/05/2022,2205-00139,0.00,2000.00,R,REDACTED PERSONAL DATA,No
Http://opendatacommunities.org/id/metropolitan-district-council/leeds,Leeds City Council,31/05/2022,Children and Families,Social Care,Agency Payments,Services Rendered By Other Organisations,511,04/05/2022,2205-00140,0.00,271.54,R,REDACTED PERSONAL DATA,No
Http://opendatacommunities.org/id/metropolitan-district-council/leeds,Leeds City Council,31/05/2022,Children and Families,Social Care,Agency Payments,Services Rendered By Other Organisations,511,06/05/2022,2205-00141,0.00,699.08,R,REDACTED PERSONAL DATA,No
Http://opendatacommunities.org/id/metropolitan-district-council/leeds,Leeds City Council,31/05/2022,Communities Housing and Environment,Parks and Countryside,Supplies and Services,Other Hired And Contracted Services,265,06/05/2022,2205-00142,0.00,4400.00,R,Abbotts Memorials,No
Http://opendatacommunities.org/id/metropolitan-district-council/leeds,Leeds City Council,31/05/2022,Communities Housing and Environment,Parks and Countryside,Supplies and Services,Other Hired And Contracted Services,265,12/05/2022,2205-00143,0.00,4450.00,R,Abbotts Memorials,No
Http://opendatacommunities.org/id/metropolitan-district-council/leeds,Leeds City Council,31/05/2022,Communities Housing and Environment,Parks and Countryside,Supplies and Services,Other Hired And Contracted Services,265,20/05/2022,2205-00144,0.00,2890.00,R,Abbotts Memorials,No
Http://opendatacommunities.org/id/metropolitan-district-council/leeds,Leeds City Council,31/05/2022,Communities Housing and Environment,Parks and Countryside,Supplies and Services,Other Hired And Contracted Services,265,26/05/2022,2205-00145,0.00,1800.00,R,Abbotts Memorials,No
Http://opendatacommunities.org/id/metropolitan-district-council/leeds,Leeds City Council,31/05/2022,Communities Housing and Environment,Strategic Housing Partnership & Support,Supplies and Services,Other Hired And Contracted Services,265,27/05/2022,2205-00146,0.00,1050.00,R,Abbotts Properties,No
Http://opendatacommunities.org/id/metropolitan-district-council/leeds,Leeds City Council,31/05/2022,Children and Families,Social Care,Agency Payments,Services Rendered By Other Organisations,511,04/05/2022,2205-00147,0.00,3475.68,R,ABC NURSERY AT LUFC,No
Http://opendatacommunities.org/id/metropolitan-district-council/leeds,Leeds City Council,31/05/2022,Children and Families,Social Care,Agency Payments,Services Rendered By Other Organisations,511,06/05/2022,2205-00148,0.00,9507.42,R,ABC NURSERY AT LUFC,No
Http://opendatacommunities.org/id/metropolitan-district-council/leeds,Leeds City Council,31/05/2022,Children and Families,Social Care,Agency Payments,Services Rendered By Voluntary Sector,505,12/05/2022,2205-00149,0.00,3250.00,R,Abc@D'S Childcare,No
Http://opendatacommunities.org/id/metropolitan-district-council/leeds,Leeds City Council,31/05/2022,Children and Families,Social Care,Agency Payments,Services Rendered By Other Organisations,511,06/05/2022,2205-00150,0.00,8202.48,R,Abc@D'S Childcare,No
Http://opendatacommunities.org/id/metropolitan-district-council/leeds,Leeds City Council,31/05/2022,Children and Families,Social Care,Agency Payments,Services Rendered By Other Organisations,511,04/05/2022,2205-00151,0.00,1303.38,R,Abc@D'S Childcare,No
Http://opendatacommunities.org/id/metropolitan-district-council/leeds,Leeds City Council,31/05/2022,Communities Housing and Environment,Customer Access,Supplies and Services,Bought In Professional Services,277,05/05/2022,2205-00152,0.00,13.50,R,Abdiqafar Abdullahi,No
Http://opendatacommunities.org/id/metropolitan-district-council/leeds,Leeds City Council,31/05/2022,Communities Housing and Environment,Customer Access,Supplies and Services,Bought In Professional Services,277,11/05/2022,2205-00153,0.00,13.50,R,Abdiqafar Abdullahi,No
Http://opendatacommunities.org/id/metropolitan-district-council/leeds,Leeds City Council,31/05/2022,Communities Housing and Environment,Customer Access,Supplies and Services,Bought In Professional Services,277,25/05/2022,2205-00154,0.00,9.00,R,Abdiqafar Abdullahi,No
Http://opendatacommunities.org/id/metropolitan-district-council/leeds,Leeds City Council,31/05/2022,Communities Housing and Environment,Customer Access,Supplies and Services,Bought In Professional Services,277,05/05/2022,2205-00155,0.00,18.00,R,Abdiqafar Abdullahi,No
Http://opendatacommunities.org/id/metropolitan-district-council/leeds,Leeds City Council,31/05/2022,Communities Housing and Environment,Customer Access,Supplies and Services,Bought In Professional Services,277,11/05/2022,2205-00156,0.00,20.40,R,Abdiqafar Abdullahi,No
Http://opendatacommunities.org/id/metropolitan-district-council/leeds,Leeds City Council,31/05/2022,Communities Housing and Environment,Customer Access,Supplies and Services,Bought In Professional Services,277,18/05/2022,2205-00157,0.00,13.50,R,Abdiqafar Abdullahi,No
Http://opendatacommunities.org/id/metropolitan-district-council/leeds,Leeds City Council,31/05/2022,Communities Housing and Environment,Customer Access,Supplies and Services,Bought In Professional Services,277,18/05/2022,2205-00158,0.00,18.00,R,Abdiqafar Abdullahi,No
Http://opendatacommunities.org/id/metropolitan-district-council/leeds,Leeds City Council,31/05/2022,Communities Housing and Environment,Customer Access,Supplies and Services,Bought In Professional Services,277,25/05/2022,2205-00159,0.00,13.50,R,Abdiqafar Abdullahi,No
Http://opendatacommunities.org/id/metropolitan-district-council/leeds,Leeds City Council,31/05/2022,Communities Housing and Environment,Customer Access,Supplies and Services,Bought In Professional Services,277,25/05/2022,2205-00160,0.00,27.00,R,Abdiqafar Abdullahi,No
Http://opendatacommunities.org/id/metropolitan-district-council/leeds,Leeds City Council,31/05/2022,Children and Families,Social Care,Appropriations,Leaving Care Allowances,634,19/05/2022,2205-00161,0.00,61.05,R,REDACTED PERSONAL DATA,No
Http://opendatacommunities.org/id/metropolitan-district-council/leeds,Leeds City Council,31/05/2022,Communities Housing and Environment,Elections Licensing and Registration,External Income,Admissions Booking Fees & Ticket Sales,933,05/05/2022,2205-00162,0.00,260.00,R,REDACTED PERSONAL DATA,No
Http://opendatacommunities.org/id/metropolitan-district-council/leeds,Leeds City Council,31/05/2022,Communities Housing and Environment,Elections Licensing and Registration,External Income,Admissions Booking Fees & Ticket Sales,933,05/05/2022,2205-00163,0.00,260.00,R,REDACTED PERSONAL DATA,No
Http://opendatacommunities.org/id/metropolitan-district-council/leeds,Leeds City Council,31/05/2022,Communities Housing and Environment,Customer Access,Supplies and Services,Bought In Professional Services,277,05/05/2022,2205-00164,0.00,18.00,R,Abdulahad Denha,No
Http://opendatacommunities.org/id/metropolitan-district-council/leeds,Leeds City Council,31/05/2022,Communities Housing and Environment,Customer Access,Supplies and Services,Bought In Professional Services,277,11/05/2022,2205-00165,0.00,18.00,R,Abdulahad Denha,No
Http://opendatacommunities.org/id/metropolitan-district-council/leeds,Leeds City Council,31/05/2022,Communities Housing and Environment,Customer Access,Supplies and Services,Bought In Professional Services,277,11/05/2022,2205-00166,0.00,9.00,R,Abdulahad Denha,No
Http://opendatacommunities.org/id/metropolitan-district-council/leeds,Leeds City Council,31/05/2022,Communities Housing and Environment,Customer Access,Supplies and Services,Bought In Professional Services,277,18/05/2022,2205-00167,0.00,18.00,R,Abdulahad Denha,No
Http://opendatacommunities.org/id/metropolitan-district-council/leeds,Leeds City Council,31/05/2022,Communities Housing and Environment,Customer Access,Supplies and Services,Bought In Professional Services,277,05/05/2022,2205-00168,0.00,36.00,R,Abdulahad Denha,No
Http://opendatacommunities.org/id/metropolitan-district-council/leeds,Leeds City Council,31/05/2022,Communities Housing and Environment,Customer Access,Supplies and Services,Bought In Professional Services,277,18/05/2022,2205-00169,0.00,18.00,R,Abdulahad Denha,No
Http://opendatacommunities.org/id/metropolitan-district-council/leeds,Leeds City Council,31/05/2022,Communities Housing and Environment,Customer Access,Supplies and Services,Bought In Professional Services,277,18/05/2022,2205-00170,0.00,18.00,R,Abdulahad Denha,No
Http://opendatacommunities.org/id/metropolitan-district-council/leeds,Leeds City Council,31/05/2022,Communities Housing and Environment,Customer Access,Supplies and Services,Bought In Professional Services,277,25/05/2022,2205-00171,0.00,9.00,R,Abdulahad Denha,No
Http://opendatacommunities.org/id/metropolitan-district-council/leeds,Leeds City Council,31/05/2022,Communities Housing and Environment,Customer Access,Supplies and Services,Bought In Professional Services,277,25/05/2022,2205-00172,0.00,18.00,R,Abdulahad Denha,No
Http://opendatacommunities.org/id/metropolitan-district-council/leeds,Leeds City Council,31/05/2022,Adults and Health,Public Health,Supplies and Services,Other Hired And Contracted Services,265,20/05/2022,2205-00173,0.00,167.75,R,Abdullah Adekola,No
Http://opendatacommunities.org/id/metropolitan-district-council/leeds,Leeds City Council,31/05/2022,Communities Housing and Environment,Customer Access,Supplies and Services,Bought In Professional Services,277,05/05/2022,2205-00174,0.00,18.00,R,Abdulrahim Dastyar,No
Http://opendatacommunities.org/id/metropolitan-district-council/leeds,Leeds City Council,31/05/2022,Communities Housing and Environment,Customer Access,Supplies and Services,Bought In Professional Services,277,05/05/2022,2205-00175,0.00,27.00,R,Abdulrahim Dastyar,No
Http://opendatacommunities.org/id/metropolitan-district-council/leeds,Leeds City Council,31/05/2022,Communities Housing and Environment,Customer Access,Supplies and Services,Bought In Professional Services,277,25/05/2022,2205-00176,0.00,18.00,R,Abdulrahim Dastyar,No
Http://opendatacommunities.org/id/metropolitan-district-council/leeds,Leeds City Council,31/05/2022,Communities Housing and Environment,Customer Access,Supplies and Services,Bought In Professional Services,277,25/05/2022,2205-00177,0.00,18.00,R,Abdulrahim Dastyar,No
Http://opendatacommunities.org/id/metropolitan-district-council/leeds,Leeds City Council,31/05/2022,Communities Housing and Environment,Customer Access,Supplies and Services,Bought In Professional Services,277,25/05/2022,2205-00178,0.00,18.00,R,Abdulrahim Dastyar,No
Http://opendatacommunities.org/id/metropolitan-district-council/leeds,Leeds City Council,31/05/2022,Communities Housing and Environment,Customer Access,Supplies and Services,Bought In Professional Services,277,25/05/2022,2205-00179,0.00,13.50,R,Abdulrahim Dastyar,No
Http://opendatacommunities.org/id/metropolitan-district-council/leeds,Leeds City Council,31/05/2022,Communities Housing and Environment,Parks and Countryside,Supplies and Services,Non-Recurring Grants,227,09/05/2022,2205-00180,0.00,550.00,R,ABERFORD AND DISTRICT PARISH COUNCIL,No
Http://opendatacommunities.org/id/metropolitan-district-council/leeds,Leeds City Council,31/05/2022,Children and Families,Social Care,Agency Payments,Placement Support,550,04/05/2022,2205-00181,0.00,500.00,R,Aberford Childcare Services,No
Http://opendatacommunities.org/id/metropolitan-district-council/leeds,Leeds City Council,31/05/2022,Children and Families,Social Care,Agency Payments,Placement Support,550,09/05/2022,2205-00182,0.00,600.00,R,Aberford Childcare Services,No
Http://opendatacommunities.org/id/metropolitan-district-council/leeds,Leeds City Council,31/05/2022,Adults and Health,Services For Older People - 65 And Over,Agency Payments,Nursing Home,570,25/05/2022,2205-00183,0.00,36364.07,R,Aberford Hall,No
Http://opendatacommunities.org/id/metropolitan-district-council/leeds,Leeds City Council,31/05/2022,Communities Housing and Environment,Elections Licensing and Registration,Premises,Rents,141,18/05/2022,2205-00184,0.00,500.00,R,Aberford Village Hall,No
Http://opendatacommunities.org/id/metropolitan-district-council/leeds,Leeds City Council,31/05/2022,Resources,Leeds Building Services,Supplies and Services,Operational Materials,205,04/05/2022,2205-00185,0.00,4707.95,R,ABI GARAGE DOORS LTD,No
Http://opendatacommunities.org/id/metropolitan-district-council/leeds,Leeds City Council,31/05/2022,Resources,Leeds Building Services,Supplies and Services,Operational Materials,205,11/05/2022,2205-00186,0.00,362.15,R,ABI GARAGE DOORS LTD,No
Http://opendatacommunities.org/id/metropolitan-district-council/leeds,Leeds City Council,31/05/2022,Resources,Leeds Building Services,Supplies and Services,Operational Materials,205,11/05/2022,2205-00187,0.00,362.15,R,ABI GARAGE DOORS LTD,No
Http://opendatacommunities.org/id/metropolitan-district-council/leeds,Leeds City Council,31/05/2022,Resources,Leeds Building Services,Supplies and Services,Operational Materials,205,13/05/2022,2205-00188,0.00,388.32,R,ABI GARAGE DOORS LTD,No
Http://opendatacommunities.org/id/metropolitan-district-council/leeds,Leeds City Council,31/05/2022,Resources,Leeds Building Services,Supplies and Services,Operational Materials,205,13/05/2022,2205-00189,0.00,776.64,R,ABI GARAGE DOORS LTD,No
Http://opendatacommunities.org/id/metropolitan-district-council/leeds,Leeds City Council,31/05/2022,Resources,Leeds Building Services,Supplies and Services,Operational Materials,205,04/05/2022,2205-00190,0.00,363.22,R,ABI GARAGE DOORS LTD,No
Http://opendatacommunities.org/id/metropolitan-district-council/leeds,Leeds City Council,31/05/2022,Resources,Leeds Building Services,Supplies and Services,Operational Materials,205,11/05/2022,2205-00191,0.00,363.22,R,ABI GARAGE DOORS LTD,No
Http://opendatacommunities.org/id/metropolitan-district-council/leeds,Leeds City Council,31/05/2022,Resources,Leeds Building Services,Supplies and Services,Operational Materials,205,13/05/2022,2205-00192,0.00,363.22,R,ABI GARAGE DOORS LTD,No
Http://opendatacommunities.org/id/metropolitan-district-council/leeds,Leeds City Council,31/05/2022,Resources,Leeds Building Services,Supplies and Services,Operational Materials,205,13/05/2022,2205-00193,0.00,362.15,R,ABI GARAGE DOORS LTD,No
Http://opendatacommunities.org/id/metropolitan-district-council/leeds,Leeds City Council,31/05/2022,Communities Housing and Environment,Customer Access,Supplies and Services,Bought In Professional Services,277,18/05/2022,2205-00194,0.00,25.50,R,Abida Begum,No
Http://opendatacommunities.org/id/metropolitan-district-council/leeds,Leeds City Council,31/05/2022,Children and Families,Social Care,Appropriations,Leaving Care Allowances,634,20/05/2022,2205-00195,0.00,40.00,R,REDACTED PERSONAL DATA,No
Http://opendatacommunities.org/id/metropolitan-district-council/leeds,Leeds City Council,31/05/2022,Strategic Landlord,Property and Contracts,Internal Recharges,Legal Disbursements,411,20/05/2022,2205-00196,0.00,375.00,R,Abigail Cheetham,No
Http://opendatacommunities.org/id/metropolitan-district-council/leeds,Leeds City Council,31/05/2022,Strategic Landlord,Property and Contracts,Internal Recharges,Legal Disbursements,411,13/05/2022,2205-00197,0.00,750.00,R,Abigail Cheetham,No
Http://opendatacommunities.org/id/metropolitan-district-council/leeds,Leeds City Council,31/05/2022,Children and Families,Social Care,Agency Payments,Placement Support,550,16/05/2022,2205-00198,0.00,20.00,R,REDACTED PERSONAL DATA,No
Http://opendatacommunities.org/id/metropolitan-district-council/leeds,Leeds City Council,31/05/2022,Strategic Landlord,HRA Housing Leeds,Capital,OTHER COSTS,7,04/05/2022,2205-00199,0.00,80.00,C,REDACTED PERSONAL DATA,No
Http://opendatacommunities.org/id/metropolitan-district-council/leeds,Leeds City Council,31/05/2022,Communities Housing and Environment,Elections Licensing and Registration,External Income,Admissions Booking Fees & Ticket Sales,933,05/05/2022,2205-00200,0.00,130.00,R,REDACTED PERSONAL DATA,No
Http://opendatacommunities.org/id/metropolitan-district-council/leeds,Leeds City Council,31/05/2022,Children and Families,Social Care,Premises,Maintenance Of Buildings,101,27/04/2022,2205-00201,0.00,465.54,R,Absolute Home Textiles,Yes
Http://opendatacommunities.org/id/metropolitan-district-council/leeds,Leeds City Council,31/05/2022,Children and Families,Social Care,Supplies and Services,Teaching Materials,202,06/04/2022,2205-00202,0.00,121.30,R,Absolute Home Textiles,Yes
Http://opendatacommunities.org/id/metropolitan-district-council/leeds,Leeds City Council,31/05/2022,Communities Housing and Environment,Parks and Countryside,Supplies and Services,Licences,266,18/04/2022,2205-00203,0.00,-20.00,R,Abwak.Org Purchase,Yes
Http://opendatacommunities.org/id/metropolitan-district-council/leeds,Leeds City Council,31/05/2022,Communities Housing and Environment,Strategic Housing Partnership & Support,Premises,Maintenance Of Buildings,101,14/04/2022,2205-00204,0.00,6.85,R,Access Locksmiths,Yes
Http://opendatacommunities.org/id/metropolitan-district-council/leeds,Leeds City Council,31/05/2022,Communities Housing and Environment,Strategic Housing Partnership & Support,Premises,Maintenance Of Buildings,101,19/04/2022,2205-00205,0.00,32.20,R,Access Locksmiths,Yes
Http://opendatacommunities.org/id/metropolitan-district-council/leeds,Leeds City Council,31/05/2022,Resources,Commercial Services,Supplies and Services,Operational Materials,205,04/05/2022,2205-00206,0.00,210.00,R,ACCESS LOCKSMITHS (LEEDS) LIMITED,No
Http://opendatacommunities.org/id/metropolitan-district-council/leeds,Leeds City Council,31/05/2022,Resources,Leeds Building Services,Premises,Cleaning Maintenance & Toiletries,127,27/05/2022,2205-00207,0.00,66.00,R,ACCESS LOCKSMITHS (LEEDS) LIMITED,No
Http://opendatacommunities.org/id/metropolitan-district-council/leeds,Leeds City Council,31/05/2022,Resources,Leeds Building Services,Supplies and Services,Operational Materials,205,23/05/2022,2205-00208,0.00,51.84,R,ACCESS LOCKSMITHS (LEEDS) LIMITED,No
Http://opendatacommunities.org/id/metropolitan-district-council/leeds,Leeds City Council,31/05/2022,Resources,Leeds Building Services,Supplies and Services,Operational Materials,205,23/05/2022,2205-00209,0.00,156.58,R,ACCESS LOCKSMITHS (LEEDS) LIMITED,No
Http://opendatacommunities.org/id/metropolitan-district-council/leeds,Leeds City Council,31/05/2022,Resources,Leeds Building Services,Supplies and Services,Operational Materials,205,04/05/2022,2205-00210,0.00,2.23,R,ACCESS LOCKSMITHS (LEEDS) LIMITED,No
Http://opendatacommunities.org/id/metropolitan-district-council/leeds,Leeds City Council,31/05/2022,Resources,Leeds Building Services,Supplies and Services,Operational Materials,205,23/05/2022,2205-00211,0.00,41.60,R,ACCESS LOCKSMITHS (LEEDS) LIMITED,No
Http://opendatacommunities.org/id/metropolitan-district-council/leeds,Leeds City Council,31/05/2022,Resources,Leeds Building Services,Supplies and Services,Operational Materials,205,23/05/2022,2205-00212,0.00,65.93,R,ACCESS LOCKSMITHS (LEEDS) LIMITED,No
Http://opendatacommunities.org/id/metropolitan-district-council/leeds,Leeds City Council,31/05/2022,Resources,Leeds Building Services,Supplies and Services,Operational Materials,205,27/05/2022,2205-00213,0.00,209.16,R,ACCESS LOCKSMITHS (LEEDS) LIMITED,No
Http://opendatacommunities.org/id/metropolitan-district-council/leeds,Leeds City Council,31/05/2022,Strategic Landlord,Housing Management,Premises,General Maintenance,104,12/05/2022,2205-00214,0.00,248.00,R,ACCESS LOCKSMITHS (LEEDS) LIMITED,No
Http://opendatacommunities.org/id/metropolitan-district-council/leeds,Leeds City Council,31/05/2022,Strategic Landlord,Housing Management,Premises,General Maintenance,104,27/05/2022,2205-00215,0.00,21.60,R,ACCESS LOCKSMITHS (LEEDS) LIMITED,No
Http://opendatacommunities.org/id/metropolitan-district-council/leeds,Leeds City Council,31/05/2022,Strategic Landlord,Housing Management,Premises,General Maintenance,104,27/05/2022,2205-00216,0.00,20.00,R,ACCESS LOCKSMITHS (LEEDS) LIMITED,No
Http://opendatacommunities.org/id/metropolitan-district-council/leeds,Leeds City Council,31/05/2022,Strategic Landlord,Housing Management,Supplies and Services,Resaleable Materials,204,04/05/2022,2205-00217,0.00,2500.00,R,ACCESS LOCKSMITHS (LEEDS) LIMITED,No
Http://opendatacommunities.org/id/metropolitan-district-council/leeds,Leeds City Council,31/05/2022,Strategic Landlord,Housing Management,Supplies and Services,Resaleable Materials,204,04/05/2022,2205-00218,0.00,62.00,R,ACCESS LOCKSMITHS (LEEDS) LIMITED,No
Http://opendatacommunities.org/id/metropolitan-district-council/leeds,Leeds City Council,31/05/2022,Strategic Landlord,Housing Management,Supplies and Services,Resaleable Materials,204,04/05/2022,2205-00219,0.00,79.20,R,ACCESS LOCKSMITHS (LEEDS) LIMITED,No
Http://opendatacommunities.org/id/metropolitan-district-council/leeds,Leeds City Council,31/05/2022,Strategic Landlord,Housing Management,Supplies and Services,Resaleable Materials,204,23/05/2022,2205-00220,0.00,19.25,R,ACCESS LOCKSMITHS (LEEDS) LIMITED,No
Http://opendatacommunities.org/id/metropolitan-district-council/leeds,Leeds City Council,31/05/2022,Strategic Landlord,HRA Housing Leeds,Capital,OTHER COSTS,7,16/05/2022,2205-00221,0.00,22.00,C,ACCESS LOCKSMITHS (LEEDS) LIMITED,No
Http://opendatacommunities.org/id/metropolitan-district-council/leeds,Leeds City Council,31/05/2022,Strategic Landlord,Property and Contracts,Premises,General Maintenance,104,04/05/2022,2205-00222,0.00,282.58,R,ACCESS LOCKSMITHS (LEEDS) LIMITED,No
Http://opendatacommunities.org/id/metropolitan-district-council/leeds,Leeds City Council,31/05/2022,Strategic Landlord,Property and Contracts,Premises,General Maintenance,104,27/05/2022,2205-00223,0.00,210.19,R,ACCESS LOCKSMITHS (LEEDS) LIMITED,No
Http://opendatacommunities.org/id/metropolitan-district-council/leeds,Leeds City Council,31/05/2022,Strategic Landlord,Property and Contracts,Appropriations,Disrepair Provision,644,04/05/2022,2205-00224,0.00,364.08,R,ACCESS LOCKSMITHS (LEEDS) LIMITED,No
Http://opendatacommunities.org/id/metropolitan-district-council/leeds,Leeds City Council,31/05/2022,City Development,Libraries Arts & Heritage,Supplies and Services,Other Hired And Contracted Services,265,13/05/2022,2205-00225,0.00,1750.00,R,Accessible By Design Ltd,No
Http://opendatacommunities.org/id/metropolitan-district-council/leeds,Leeds City Council,31/05/2022,Insurance,Insurance,Supplies and Services,Insurance Claims,248,19/05/2022,2205-00226,0.00,3340.72,R,Accident Exchange Ltd,No
Http://opendatacommunities.org/id/metropolitan-district-council/leeds,Leeds City Council as Accountable Body,31/05/2022,Social Services Pooled Budgets,Leeds Community Equip Store Pooled Budgt,Supplies and Services,Other Equipment,203,25/05/2022,2205-00227,0.00,295.00,R,Accora,No
Http://opendatacommunities.org/id/metropolitan-district-council/leeds,Leeds City Council,31/05/2022,Insurance,Insurance,Supplies and Services,Insurance Claims,248,26/05/2022,2205-00228,0.00,2500.00,R,Accountant General Of The Senior Courts,No
Http://opendatacommunities.org/id/metropolitan-district-council/leeds,Leeds City Council,31/05/2022,City Development,Markets & City Centre Management,Premises,General Maintenance,104,21/04/2022,2205-00229,0.00,24.25,R,Accu.Co.Uk,Yes
Http://opendatacommunities.org/id/metropolitan-district-council/leeds,Leeds City Council,31/05/2022,Children and Families,Learning,Agency Payments,SEN Placements,566,05/05/2022,2205-00230,0.00,19207.00,R,ACKWORTH SCHOOL,No
Http://opendatacommunities.org/id/metropolitan-district-council/leeds,Leeds City Council,31/05/2022,Children and Families,Learning,Agency Payments,SEN Placements,566,05/05/2022,2205-00231,0.00,19207.00,R,ACKWORTH SCHOOL,No
Http://opendatacommunities.org/id/metropolitan-district-council/leeds,Leeds City Council,31/05/2022,Children and Families,Learning,Agency Payments,SEN Placements,566,05/05/2022,2205-00232,0.00,19207.00,R,ACKWORTH SCHOOL,No
Http://opendatacommunities.org/id/metropolitan-district-council/leeds,Leeds City Council,31/05/2022,Children and Families,Learning,Agency Payments,SEN Placements,566,05/05/2022,2205-00233,0.00,19207.00,R,ACKWORTH SCHOOL,No
Http://opendatacommunities.org/id/metropolitan-district-council/leeds,Leeds City Council,31/05/2022,Children and Families,Learning,Agency Payments,SEN Placements,566,05/05/2022,2205-00234,0.00,26573.66,R,ACKWORTH SCHOOL,No
Http://opendatacommunities.org/id/metropolitan-district-council/leeds,Leeds City Council,31/05/2022,Children and Families,Learning,Agency Payments,SEN Placements,566,05/05/2022,2205-00235,0.00,19207.00,R,ACKWORTH SCHOOL,No
Http://opendatacommunities.org/id/metropolitan-district-council/leeds,Leeds City Council,31/05/2022,Children and Families,Learning,Agency Payments,SEN Placements,566,05/05/2022,2205-00236,0.00,19207.00,R,ACKWORTH SCHOOL,No
Http://opendatacommunities.org/id/metropolitan-district-council/leeds,Leeds City Council,31/05/2022,Children and Families,Learning,Agency Payments,SEN Placements,566,30/05/2022,2205-00237,0.00,19213.33,R,Acorn Care & Education Ltd (Sales),No
Http://opendatacommunities.org/id/metropolitan-district-council/leeds,Leeds City Council,31/05/2022,Children and Families,Learning,Agency Payments,SEN Placements,566,30/05/2022,2205-00238,0.00,19762.67,R,Acorn Care & Education Ltd (Sales),No
Http://opendatacommunities.org/id/metropolitan-district-council/leeds,Leeds City Council,31/05/2022,Children and Families,Learning,Agency Payments,SEN Placements,566,30/05/2022,2205-00239,0.00,19762.67,R,Acorn Care & Education Ltd (Sales),No
Http://opendatacommunities.org/id/metropolitan-district-council/leeds,Leeds City Council,31/05/2022,Children and Families,Learning,Agency Payments,SEN Placements,566,30/05/2022,2205-00240,0.00,19827.33,R,Acorn Care & Education Ltd (Sales),No
Http://opendatacommunities.org/id/metropolitan-district-council/leeds,Leeds City Council,31/05/2022,Children and Families,Learning,Agency Payments,SEN Placements,566,30/05/2022,2205-00241,0.00,15903.00,R,Acorn Care & Education Ltd (Sales),No
Http://opendatacommunities.org/id/metropolitan-district-council/leeds,Leeds City Council,31/05/2022,Children and Families,Learning,Agency Payments,SEN Placements,566,30/05/2022,2205-00242,0.00,58000.00,R,Acorn Care & Education Ltd (Sales),No
Http://opendatacommunities.org/id/metropolitan-district-council/leeds,Leeds City Council,31/05/2022,Children and Families,Learning,Agency Payments,SEN Placements,566,30/05/2022,2205-00243,0.00,15694.99,R,Acorn Care & Education Ltd (Sales),No
Http://opendatacommunities.org/id/metropolitan-district-council/leeds,Leeds City Council,31/05/2022,Children and Families,Learning,Agency Payments,SEN Placements,566,30/05/2022,2205-00244,0.00,1556.80,R,Acorn Care & Education Ltd (Sales),No
Http://opendatacommunities.org/id/metropolitan-district-council/leeds,Leeds City Council,31/05/2022,Children and Families,Learning,Agency Payments,SEN Placements,566,31/05/2022,2205-00245,0.00,15694.99,R,Acorn Care & Education Ltd (Sales),No
Http://opendatacommunities.org/id/metropolitan-district-council/leeds,Leeds City Council,31/05/2022,Children and Families,Learning,Agency Payments,SEN Placements,566,30/05/2022,2205-00246,0.00,74668.67,R,Acorn Care & Education Ltd (Sales),No
Http://opendatacommunities.org/id/metropolitan-district-council/leeds,Leeds City Council,31/05/2022,Children and Families,Learning,Agency Payments,SEN Placements,566,30/05/2022,2205-00247,0.00,13333.33,R,Acorn Care & Education Ltd (Sales),No
Http://opendatacommunities.org/id/metropolitan-district-council/leeds,Leeds City Council,31/05/2022,Children and Families,Learning,Agency Payments,SEN Placements,566,30/05/2022,2205-00248,0.00,14176.12,R,Acorn Care & Education Ltd (Sales),No
Http://opendatacommunities.org/id/metropolitan-district-council/leeds,Leeds City Council,31/05/2022,Children and Families,Learning,Agency Payments,SEN Placements,566,30/05/2022,2205-00249,0.00,-19762.67,R,Acorn Care & Education Ltd (Sales),No
Http://opendatacommunities.org/id/metropolitan-district-council/leeds,Leeds City Council,31/05/2022,Children and Families,Learning,Agency Payments,SEN Placements,566,30/05/2022,2205-00250,0.00,-4535.69,R,Acorn Care & Education Ltd (Sales),No
Http://opendatacommunities.org/id/metropolitan-district-council/leeds,Leeds City Council,31/05/2022,Strategic Accounts,Miscellaneous,Supplies and Services,Non-Recurring Grants,227,17/05/2022,2205-00251,0.00,221.00,R,Acorn Leeds,No
Http://opendatacommunities.org/id/metropolitan-district-council/leeds,Leeds City Council,31/05/2022,Children and Families,Social Care,Agency Payments,Services Rendered By Voluntary Sector,505,09/05/2022,2205-00252,0.00,1500.00,R,ACORNS NURSERY,No
Http://opendatacommunities.org/id/metropolitan-district-council/leeds,Leeds City Council,31/05/2022,Children and Families,Social Care,Agency Payments,Services Rendered By Other Organisations,511,04/05/2022,2205-00253,0.00,401.04,R,ACORNS NURSERY,No
Http://opendatacommunities.org/id/metropolitan-district-council/leeds,Leeds City Council,31/05/2022,Children and Families,Social Care,Agency Payments,Services Rendered By Other Organisations,511,06/05/2022,2205-00254,0.00,7571.52,R,ACORNS NURSERY,No
Http://opendatacommunities.org/id/metropolitan-district-council/leeds,Leeds City Council,31/05/2022,Adults and Health,Services For Older People - 65 And Over,Agency Payments,Nursing Home,570,25/05/2022,2205-00255,0.00,30942.98,R,Acre Green,No
Http://opendatacommunities.org/id/metropolitan-district-council/leeds,Leeds City Council,31/05/2022,Adults and Health,Services For Older People - 65 And Over,Agency Payments,Residential,580,25/05/2022,2205-00256,0.00,4180.20,R,Acre Green,No
Http://opendatacommunities.org/id/metropolitan-district-council/leeds,Leeds City Council,31/05/2022,Adults and Health,Services For Older People Under 65 P/Dis,Agency Payments,Nursing Home,570,25/05/2022,2205-00257,0.00,3162.20,R,Acre Green,No
Http://opendatacommunities.org/id/metropolitan-district-council/leeds,Leeds City Council,31/05/2022,Adults and Health,Services For Older People Under 65 P/Dis,Agency Payments,Residential,580,25/05/2022,2205-00258,0.00,1892.20,R,Acre Green,No
Http://opendatacommunities.org/id/metropolitan-district-council/leeds,Leeds City Council,31/05/2022,Children and Families,Social Care,Agency Payments,Services Rendered By Other Organisations,511,06/05/2022,2205-00259,0.00,10625.94,R,Acre Wood Day Nursery,No
Http://opendatacommunities.org/id/metropolitan-district-council/leeds,Leeds City Council,31/05/2022,Children and Families,Social Care,Agency Payments,Services Rendered By Other Organisations,511,04/05/2022,2205-00260,0.00,1955.07,R,Acre Wood Day Nursery,No
Http://opendatacommunities.org/id/metropolitan-district-council/leeds,Leeds City Council as Accountable Body,31/05/2022,Social Services Pooled Budgets,Jcs For People With Learning Disabilitie,Agency Payments,Residential,580,26/05/2022,2205-00261,0.00,83300.96,R,Action For Care Contracts Limited,No
Http://opendatacommunities.org/id/metropolitan-district-council/leeds,Leeds City Council,31/05/2022,Children and Families,Social Care,Supplies and Services,General Amenity For Clients/Residents,285,04/05/2022,2205-00262,0.00,345.00,R,ACTIVE HIRE (LEEDS) LTD,No
Http://opendatacommunities.org/id/metropolitan-district-council/leeds,Leeds City Council,31/05/2022,Children and Families,Social Care,Supplies and Services,General Amenity For Clients/Residents,285,04/05/2022,2205-00263,0.00,795.00,R,ACTIVE HIRE (LEEDS) LTD,No
Http://opendatacommunities.org/id/metropolitan-district-council/leeds,Leeds City Council,31/05/2022,Children and Families,Social Care,Agency Payments,Services Rendered By Voluntary Sector,505,12/05/2022,2205-00264,0.00,2708.33,R,ACTIVE KIDS YEADON LLP,No
Http://opendatacommunities.org/id/metropolitan-district-council/leeds,Leeds City Council,31/05/2022,Children and Families,Social Care,Agency Payments,Services Rendered By Other Organisations,511,04/05/2022,2205-00265,0.00,651.69,R,ACTIVE KIDS YEADON LLP,No
Http://opendatacommunities.org/id/metropolitan-district-council/leeds,Leeds City Council,31/05/2022,Children and Families,Social Care,Agency Payments,Services Rendered By Other Organisations,511,06/05/2022,2205-00266,0.00,7705.36,R,ACTIVE KIDS YEADON LLP,No
Http://opendatacommunities.org/id/metropolitan-district-council/leeds,Leeds City Council,31/05/2022,Children and Families,Social Care,Supplies and Services,Other Hired And Contracted Services,265,12/04/2022,2205-00267,0.00,4.00,R,Active Leeds,Yes
Http://opendatacommunities.org/id/metropolitan-district-council/leeds,Leeds City Council,31/05/2022,Adults and Health,Services For Adults Under 65 Mental/Dis,Agency Payments,Sheltered Accommodation,569,25/05/2022,2205-00268,0.00,14943.04,R,Active Pathways,No
Http://opendatacommunities.org/id/metropolitan-district-council/leeds,Leeds City Council,31/05/2022,Adults and Health,Services For Older People - 65 And Over,Agency Payments,Sheltered Accommodation,569,25/05/2022,2205-00269,0.00,4154.84,R,Active Pathways,No
Http://opendatacommunities.org/id/metropolitan-district-council/leeds,Leeds City Council as Accountable Body,31/05/2022,Social Services Pooled Budgets,Jcs For People With Learning Disabilitie,Agency Payments,Sheltered Accommodation,569,25/05/2022,2205-00270,0.00,12452.52,R,Active Pathways,No
Http://opendatacommunities.org/id/metropolitan-district-council/leeds,Leeds City Council,31/05/2022,Communities Housing and Environment,Waste Management,Supplies and Services,Recycling & Reuse Charges,234,11/05/2022,2205-00271,0.00,1042.56,R,Acumen Waste Services Ltd,No
Http://opendatacommunities.org/id/metropolitan-district-council/leeds,Leeds City Council,31/05/2022,Communities Housing and Environment,Waste Management,Supplies and Services,Recycling & Reuse Charges,234,11/05/2022,2205-00272,0.00,938.88,R,Acumen Waste Services Ltd,No
Http://opendatacommunities.org/id/metropolitan-district-council/leeds,Leeds City Council,31/05/2022,Communities Housing and Environment,Waste Management,Supplies and Services,Recycling & Reuse Charges,234,11/05/2022,2205-00273,0.00,1017.36,R,Acumen Waste Services Ltd,No
Http://opendatacommunities.org/id/metropolitan-district-council/leeds,Leeds City Council,31/05/2022,Communities Housing and Environment,Waste Management,Supplies and Services,Recycling & Reuse Charges,234,11/05/2022,2205-00274,0.00,918.00,R,Acumen Waste Services Ltd,No
Http://opendatacommunities.org/id/metropolitan-district-council/leeds,Leeds City Council,31/05/2022,Communities Housing and Environment,Waste Management,Supplies and Services,Recycling & Reuse Charges,234,11/05/2022,2205-00275,0.00,958.32,R,Acumen Waste Services Ltd,No
Http://opendatacommunities.org/id/metropolitan-district-council/leeds,Leeds City Council,31/05/2022,Communities Housing and Environment,Waste Management,Supplies and Services,Recycling & Reuse Charges,234,11/05/2022,2205-00276,0.00,993.60,R,Acumen Waste Services Ltd,No
Http://opendatacommunities.org/id/metropolitan-district-council/leeds,Leeds City Council,31/05/2022,Communities Housing and Environment,Waste Management,Supplies and Services,Recycling & Reuse Charges,234,13/05/2022,2205-00277,0.00,983.52,R,Acumen Waste Services Ltd,No
Http://opendatacommunities.org/id/metropolitan-district-council/leeds,Leeds City Council,31/05/2022,Communities Housing and Environment,Waste Management,Supplies and Services,Recycling & Reuse Charges,234,19/05/2022,2205-00278,0.00,881.28,R,Acumen Waste Services Ltd,No
Http://opendatacommunities.org/id/metropolitan-district-council/leeds,Leeds City Council,31/05/2022,Communities Housing and Environment,Waste Management,Supplies and Services,Recycling & Reuse Charges,234,19/05/2022,2205-00279,0.00,981.36,R,Acumen Waste Services Ltd,No
Http://opendatacommunities.org/id/metropolitan-district-council/leeds,Leeds City Council,31/05/2022,Communities Housing and Environment,Waste Management,Supplies and Services,Recycling & Reuse Charges,234,19/05/2022,2205-00280,0.00,1007.28,R,Acumen Waste Services Ltd,No
Http://opendatacommunities.org/id/metropolitan-district-council/leeds,Leeds City Council,31/05/2022,Communities Housing and Environment,Waste Management,Supplies and Services,Recycling & Reuse Charges,234,20/05/2022,2205-00281,0.00,984.96,R,Acumen Waste Services Ltd,No
Http://opendatacommunities.org/id/metropolitan-district-council/leeds,Leeds City Council,31/05/2022,Communities Housing and Environment,Waste Management,Supplies and Services,Recycling & Reuse Charges,234,20/05/2022,2205-00282,0.00,1007.28,R,Acumen Waste Services Ltd,No
Http://opendatacommunities.org/id/metropolitan-district-council/leeds,Leeds City Council,31/05/2022,Communities Housing and Environment,Waste Management,Supplies and Services,Recycling & Reuse Charges,234,27/05/2022,2205-00283,0.00,987.84,R,Acumen Waste Services Ltd,No
Http://opendatacommunities.org/id/metropolitan-district-council/leeds,Leeds City Council,31/05/2022,Communities Housing and Environment,Waste Management,Supplies and Services,Recycling & Reuse Charges,234,11/05/2022,2205-00284,0.00,930.96,R,Acumen Waste Services Ltd,No
Http://opendatacommunities.org/id/metropolitan-district-council/leeds,Leeds City Council,31/05/2022,Communities Housing and Environment,Waste Management,Supplies and Services,Recycling & Reuse Charges,234,11/05/2022,2205-00285,0.00,997.20,R,Acumen Waste Services Ltd,No
Http://opendatacommunities.org/id/metropolitan-district-council/leeds,Leeds City Council,31/05/2022,Communities Housing and Environment,Waste Management,Supplies and Services,Recycling & Reuse Charges,234,19/05/2022,2205-00286,0.00,1036.80,R,Acumen Waste Services Ltd,No
Http://opendatacommunities.org/id/metropolitan-district-council/leeds,Leeds City Council,31/05/2022,Communities Housing and Environment,Waste Management,Supplies and Services,Recycling & Reuse Charges,234,19/05/2022,2205-00287,0.00,1000.08,R,Acumen Waste Services Ltd,No
Http://opendatacommunities.org/id/metropolitan-district-council/leeds,Leeds City Council,31/05/2022,Communities Housing and Environment,Waste Management,Supplies and Services,Recycling & Reuse Charges,234,20/05/2022,2205-00288,0.00,999.36,R,Acumen Waste Services Ltd,No
Http://opendatacommunities.org/id/metropolitan-district-council/leeds,Leeds City Council,31/05/2022,Communities Housing and Environment,Waste Management,Supplies and Services,Recycling & Reuse Charges,234,27/05/2022,2205-00289,0.00,1013.76,R,Acumen Waste Services Ltd,No
Http://opendatacommunities.org/id/metropolitan-district-council/leeds,Leeds City Council,31/05/2022,Communities Housing and Environment,Strategic Housing Partnership & Support,Supplies and Services,Other Hired And Contracted Services,265,25/05/2022,2205-00290,0.00,1259.56,R,Adair Paxton LLP,No
Http://opendatacommunities.org/id/metropolitan-district-council/leeds,Leeds City Council,31/05/2022,Insurance,Insurance,Supplies and Services,Insurance Claims,248,06/05/2022,2205-00291,0.00,75.00,R,REDACTED PERSONAL DATA,No
Http://opendatacommunities.org/id/metropolitan-district-council/leeds,Leeds City Council,31/05/2022,Children and Families,Social Care,Agency Payments,Allowances,546,24/05/2022,2205-00292,0.00,196.44,R,REDACTED PERSONAL DATA,No
Http://opendatacommunities.org/id/metropolitan-district-council/leeds,Leeds City Council,31/05/2022,Children and Families,Social Care,Appropriations,Leaving Care Allowances,634,20/05/2022,2205-00293,0.00,50.00,R,REDACTED PERSONAL DATA,No
Http://opendatacommunities.org/id/metropolitan-district-council/leeds,Leeds City Council,31/05/2022,Children and Families,Social Care,Appropriations,Leaving Care Allowances,634,06/05/2022,2205-00294,0.00,50.00,R,REDACTED PERSONAL DATA,No
Http://opendatacommunities.org/id/metropolitan-district-council/leeds,Leeds City Council,31/05/2022,Children and Families,Social Care,Appropriations,Leaving Care Allowances,634,13/05/2022,2205-00295,0.00,50.00,R,REDACTED PERSONAL DATA,No
Http://opendatacommunities.org/id/metropolitan-district-council/leeds,Leeds City Council,31/05/2022,Adults and Health,Services For Older People - 65 And Over,Agency Payments,Nursing Home,570,25/05/2022,2205-00296,0.00,-8133.14,R,Adbolton Hall,No
Http://opendatacommunities.org/id/metropolitan-district-council/leeds,Leeds City Council,31/05/2022,Adults and Health,Services For Older People - 65 And Over,Agency Payments,Residential Care Dementia,571,25/05/2022,2205-00297,0.00,12724.86,R,Adbolton Hall,No
Http://opendatacommunities.org/id/metropolitan-district-council/leeds,Leeds City Council,31/05/2022,Adults and Health,Public Health,Agency Payments,Public Health Commissioned Services,526,03/05/2022,2205-00298,0.00,3131.08,R,Addlestone & Partners,No
Http://opendatacommunities.org/id/metropolitan-district-council/leeds,Leeds City Council,31/05/2022,Communities Housing and Environment,Elections Licensing and Registration,Premises,Rents,141,18/05/2022,2205-00299,0.00,320.00,R,Adel Methodist Church Trustees,No
Http://opendatacommunities.org/id/metropolitan-district-council/leeds,Leeds City Council,31/05/2022,Children and Families,Social Care,Agency Payments,Services Rendered By Voluntary Sector,505,04/05/2022,2205-00300,0.00,868.92,R,ADEL PRE SCHOOL,No
Http://opendatacommunities.org/id/metropolitan-district-council/leeds,Leeds City Council,31/05/2022,Children and Families,Social Care,Agency Payments,Services Rendered By Voluntary Sector,505,06/05/2022,2205-00301,0.00,5816.31,R,ADEL PRE SCHOOL,No
Http://opendatacommunities.org/id/metropolitan-district-council/leeds,Leeds City Council,31/05/2022,Children and Families,Social Care,Agency Payments,Services Rendered By Voluntary Sector,505,06/05/2022,2205-00302,0.00,1468.47,R,ADEL PRE SCHOOL,No
Http://opendatacommunities.org/id/metropolitan-district-council/leeds,Leeds City Council,31/05/2022,Children and Families,Social Care,Agency Payments,Services Rendered By Voluntary Sector,505,12/05/2022,2205-00303,0.00,4875.00,R,ADEL PRE SCHOOL,No
Http://opendatacommunities.org/id/metropolitan-district-council/leeds,Leeds City Council,31/05/2022,City Development,Recreation,Supplies and Services,Bought In Professional Services,277,11/05/2022,2205-00304,0.00,20.00,R,Adele Battersby,No
Http://opendatacommunities.org/id/metropolitan-district-council/leeds,Leeds City Council,31/05/2022,City Development,Recreation,Supplies and Services,Bought In Professional Services,277,26/05/2022,2205-00305,0.00,120.00,R,Adele Battersby,No
Http://opendatacommunities.org/id/metropolitan-district-council/leeds,Leeds City Council,31/05/2022,Children and Families,Social Care,Agency Payments,Services Rendered By Other Organisations,511,06/05/2022,2205-00306,0.00,2050.62,R,REDACTED PERSONAL DATA,No
Http://opendatacommunities.org/id/metropolitan-district-council/leeds,Leeds City Council,31/05/2022,Children and Families,Social Care,Agency Payments,Services Rendered By Other Organisations,511,04/05/2022,2205-00307,0.00,217.23,R,REDACTED PERSONAL DATA,No
Http://opendatacommunities.org/id/metropolitan-district-council/leeds,Leeds City Council,31/05/2022,City Development,Libraries Arts & Heritage,Supplies and Services,Licences,266,06/05/2022,2205-00308,0.00,450.00,R,ADI UK LTD,No
Http://opendatacommunities.org/id/metropolitan-district-council/leeds,Leeds City Council,31/05/2022,Resources,Leeds Building Services,Supplies and Services,Operational Materials,205,05/05/2022,2205-00309,0.00,29.84,R,ADI-Gardiner Ltd,No
Http://opendatacommunities.org/id/metropolitan-district-council/leeds,Leeds City Council,31/05/2022,Resources,Leeds Building Services,Supplies and Services,Operational Materials,205,05/05/2022,2205-00310,0.00,24.32,R,ADI-Gardiner Ltd,No
Http://opendatacommunities.org/id/metropolitan-district-council/leeds,Leeds City Council,31/05/2022,Resources,Leeds Building Services,Supplies and Services,Operational Materials,205,09/05/2022,2205-00311,0.00,13.40,R,ADI-Gardiner Ltd,No
Http://opendatacommunities.org/id/metropolitan-district-council/leeds,Leeds City Council,31/05/2022,Resources,Leeds Building Services,Supplies and Services,Operational Materials,205,19/05/2022,2205-00312,0.00,1358.78,R,ADI-Gardiner Ltd,No
Http://opendatacommunities.org/id/metropolitan-district-council/leeds,Leeds City Council,31/05/2022,Resources,Leeds Building Services,Supplies and Services,Operational Materials,205,25/05/2022,2205-00313,0.00,12.16,R,ADI-Gardiner Ltd,No
Http://opendatacommunities.org/id/metropolitan-district-council/leeds,Leeds City Council,31/05/2022,Resources,Leeds Building Services,Supplies and Services,Operational Materials,205,25/05/2022,2205-00314,0.00,4.79,R,ADI-Gardiner Ltd,No
Http://opendatacommunities.org/id/metropolitan-district-council/leeds,Leeds City Council,31/05/2022,Resources,Leeds Building Services,Supplies and Services,Operational Materials,205,25/05/2022,2205-00315,0.00,722.98,R,ADI-Gardiner Ltd,No
Http://opendatacommunities.org/id/metropolitan-district-council/leeds,Leeds City Council,31/05/2022,Resources,Leeds Building Services,Supplies and Services,Operational Materials,205,27/05/2022,2205-00316,0.00,9.58,R,ADI-Gardiner Ltd,No
Http://opendatacommunities.org/id/metropolitan-district-council/leeds,Leeds City Council,31/05/2022,Resources,Leeds Building Services,Supplies and Services,Operational Materials,205,27/05/2022,2205-00317,0.00,12.16,R,ADI-Gardiner Ltd,No
Http://opendatacommunities.org/id/metropolitan-district-council/leeds,Leeds City Council,31/05/2022,Resources,Leeds Building Services,Supplies and Services,Operational Materials,205,27/05/2022,2205-00318,0.00,36.48,R,ADI-Gardiner Ltd,No
Http://opendatacommunities.org/id/metropolitan-district-council/leeds,Leeds City Council,31/05/2022,Resources,Leeds Building Services,Supplies and Services,Operational Materials,205,19/05/2022,2205-00319,0.00,12.16,R,ADI-Gardiner Ltd,No
Http://opendatacommunities.org/id/metropolitan-district-council/leeds,Leeds City Council,31/05/2022,Resources,Leeds Building Services,Supplies and Services,Operational Materials,205,19/05/2022,2205-00320,0.00,92.82,R,ADI-Gardiner Ltd,No
Http://opendatacommunities.org/id/metropolitan-district-council/leeds,Leeds City Council,31/05/2022,Resources,Leeds Building Services,Supplies and Services,Operational Materials,205,19/05/2022,2205-00321,0.00,12.16,R,ADI-Gardiner Ltd,No
Http://opendatacommunities.org/id/metropolitan-district-council/leeds,Leeds City Council,31/05/2022,Resources,Leeds Building Services,Supplies and Services,Operational Materials,205,20/05/2022,2205-00322,0.00,13154.69,R,ADI-Gardiner Ltd,No
Http://opendatacommunities.org/id/metropolitan-district-council/leeds,Leeds City Council,31/05/2022,Resources,Leeds Building Services,Supplies and Services,Operational Materials,205,20/05/2022,2205-00323,0.00,1878.03,R,ADI-Gardiner Ltd,No
Http://opendatacommunities.org/id/metropolitan-district-council/leeds,Leeds City Council,31/05/2022,Resources,Leeds Building Services,Supplies and Services,Operational Materials,205,20/05/2022,2205-00324,0.00,99.71,R,ADI-Gardiner Ltd,No
Http://opendatacommunities.org/id/metropolitan-district-council/leeds,Leeds City Council,31/05/2022,Resources,Leeds Building Services,Supplies and Services,Operational Materials,205,20/05/2022,2205-00325,0.00,155.99,R,ADI-Gardiner Ltd,No
Http://opendatacommunities.org/id/metropolitan-district-council/leeds,Leeds City Council,31/05/2022,Resources,Leeds Building Services,Supplies and Services,Operational Materials,205,20/05/2022,2205-00326,0.00,65.43,R,ADI-Gardiner Ltd,No
Http://opendatacommunities.org/id/metropolitan-district-council/leeds,Leeds City Council,31/05/2022,Resources,Leeds Building Services,Supplies and Services,Operational Materials,205,25/05/2022,2205-00327,0.00,61.92,R,ADI-Gardiner Ltd,No
Http://opendatacommunities.org/id/metropolitan-district-council/leeds,Leeds City Council,31/05/2022,Resources,Leeds Building Services,Supplies and Services,Operational Materials,205,27/05/2022,2205-00328,0.00,661.96,R,ADI-Gardiner Ltd,No
Http://opendatacommunities.org/id/metropolitan-district-council/leeds,Leeds City Council,31/05/2022,City Development,Recreation,Supplies and Services,Operational Furniture And Equipment,203,22/02/2022,2205-00329,0.00,-20.99,R,Adj-Microsoft Store,Yes
Http://opendatacommunities.org/id/metropolitan-district-council/leeds,Leeds City Council,31/05/2022,Insurance,Insurance,Supplies and Services,Insurance Claims,248,09/05/2022,2205-00330,0.00,240.00,R,Admiral Law,No
Http://opendatacommunities.org/id/metropolitan-district-council/leeds,Leeds City Council,31/05/2022,City Development,Libraries Arts & Heritage,Supplies and Services,Computer Software & Equipment,214,12/04/2022,2205-00331,0.00,14.98,R,Adobe Photogphy Plan,Yes
Http://opendatacommunities.org/id/metropolitan-district-council/leeds,Leeds City Council,31/05/2022,Children and Families,Social Care,Agency Payments,Independent Fostering Agencies,509,04/05/2022,2205-00332,0.00,3565.00,R,Adolescent And Childrens Trust,No
Http://opendatacommunities.org/id/metropolitan-district-council/leeds,Leeds City Council,31/05/2022,Children and Families,Social Care,Agency Payments,Independent Fostering Agencies,509,04/05/2022,2205-00333,0.00,3551.67,R,Adolescent And Childrens Trust,No
Http://opendatacommunities.org/id/metropolitan-district-council/leeds,Leeds City Council,31/05/2022,Children and Families,Social Care,Agency Payments,Independent Fostering Agencies,509,04/05/2022,2205-00334,0.00,3565.00,R,Adolescent And Childrens Trust,No
Http://opendatacommunities.org/id/metropolitan-district-council/leeds,Leeds City Council,31/05/2022,Children and Families,Social Care,Agency Payments,Independent Fostering Agencies,509,04/05/2022,2205-00335,0.00,3565.00,R,Adolescent And Childrens Trust,No
Http://opendatacommunities.org/id/metropolitan-district-council/leeds,Leeds City Council,31/05/2022,Children and Families,Social Care,Agency Payments,Independent Fostering Agencies,509,04/05/2022,2205-00336,0.00,3751.00,R,Adolescent And Childrens Trust,No
Http://opendatacommunities.org/id/metropolitan-district-council/leeds,Leeds City Council,31/05/2022,Children and Families,Social Care,Agency Payments,Independent Fostering Agencies,509,04/05/2022,2205-00337,0.00,3751.00,R,Adolescent And Childrens Trust,No
Http://opendatacommunities.org/id/metropolitan-district-council/leeds,Leeds City Council,31/05/2022,Children and Families,Social Care,Agency Payments,Independent Fostering Agencies,509,04/05/2022,2205-00338,0.00,3751.00,R,Adolescent And Childrens Trust,No
Http://opendatacommunities.org/id/metropolitan-district-council/leeds,Leeds City Council,31/05/2022,Children and Families,Social Care,Agency Payments,Independent Fostering Agencies,509,04/05/2022,2205-00339,0.00,2178.00,R,Adolescent And Childrens Trust,No
Http://opendatacommunities.org/id/metropolitan-district-council/leeds,Leeds City Council,31/05/2022,Children and Families,Social Care,Agency Payments,Independent Fostering Agencies,509,04/05/2022,2205-00340,0.00,2070.00,R,Adolescent And Childrens Trust,No
Http://opendatacommunities.org/id/metropolitan-district-council/leeds,Leeds City Council,31/05/2022,Children and Families,Social Care,Agency Payments,Independent Fostering Agencies,509,04/05/2022,2205-00341,0.00,3751.00,R,Adolescent And Childrens Trust,No
Http://opendatacommunities.org/id/metropolitan-district-council/leeds,Leeds City Council,31/05/2022,Children and Families,Social Care,Agency Payments,Independent Fostering Agencies,509,06/05/2022,2205-00342,0.00,354.00,R,Adolescent And Childrens Trust,No
Http://opendatacommunities.org/id/metropolitan-district-council/leeds,Leeds City Council,31/05/2022,Children and Families,Social Care,Agency Payments,Independent Fostering Agencies,509,06/05/2022,2205-00343,0.00,370.71,R,Adolescent And Childrens Trust,No
Http://opendatacommunities.org/id/metropolitan-district-council/leeds,Leeds City Council,31/05/2022,Children and Families,Social Care,Agency Payments,Independent Fostering Agencies,509,04/05/2022,2205-00344,0.00,3565.00,R,Adolescent And Childrens Trust,No
Http://opendatacommunities.org/id/metropolitan-district-council/leeds,Leeds City Council,31/05/2022,Adults and Health,Services For Adults Under 65 Mental/Dis,Agency Payments,Home Care,568,13/05/2022,2205-00345,0.00,410.25,R,Adopt Healthcare,No
Http://opendatacommunities.org/id/metropolitan-district-council/leeds,Leeds City Council,31/05/2022,Adults and Health,Services For Adults Under 65 Mental/Dis,Agency Payments,Home Care,568,16/05/2022,2205-00346,0.00,115.50,R,Adopt Healthcare,No
Http://opendatacommunities.org/id/metropolitan-district-council/leeds,Leeds City Council,31/05/2022,Adults and Health,Services For Adults Under 65 Mental/Dis,Agency Payments,Home Care,568,18/05/2022,2205-00347,0.00,426.75,R,Adopt Healthcare,No
Http://opendatacommunities.org/id/metropolitan-district-council/leeds,Leeds City Council,31/05/2022,Adults and Health,Services For Adults Under 65 Mental/Dis,Agency Payments,Home Care,568,18/05/2022,2205-00348,0.00,194.50,R,Adopt Healthcare,No
Http://opendatacommunities.org/id/metropolitan-district-council/leeds,Leeds City Council,31/05/2022,Adults and Health,Services For Adults Under 65 Mental/Dis,Agency Payments,Home Care,568,25/05/2022,2205-00349,0.00,426.75,R,Adopt Healthcare,No
Http://opendatacommunities.org/id/metropolitan-district-council/leeds,Leeds City Council,31/05/2022,Adults and Health,Services For Adults Under 65 Mental/Dis,Agency Payments,Home Care,568,25/05/2022,2205-00350,0.00,194.50,R,Adopt Healthcare,No
Http://opendatacommunities.org/id/metropolitan-district-council/leeds,Leeds City Council,31/05/2022,Adults and Health,Services For Adults Under 65 Mental/Dis,Agency Payments,Home Care,568,12/05/2022,2205-00351,0.00,165.00,R,Adopt Healthcare,No
Http://opendatacommunities.org/id/metropolitan-district-council/leeds,Leeds City Council,31/05/2022,Adults and Health,Services For Adults Under 65 Mental/Dis,Agency Payments,Home Care,568,13/05/2022,2205-00352,0.00,189.00,R,Adopt Healthcare,No
Http://opendatacommunities.org/id/metropolitan-district-council/leeds,Leeds City Council,31/05/2022,Adults and Health,Services For Adults Under 65 Mental/Dis,Agency Payments,Home Care,568,18/05/2022,2205-00353,0.00,203.50,R,Adopt Healthcare,No
Http://opendatacommunities.org/id/metropolitan-district-council/leeds,Leeds City Council,31/05/2022,Adults and Health,Services For Adults Under 65 Mental/Dis,Agency Payments,Home Care,568,25/05/2022,2205-00354,0.00,187.00,R,Adopt Healthcare,No
Http://opendatacommunities.org/id/metropolitan-district-council/leeds,Leeds City Council,31/05/2022,Children and Families,Social Care,Agency Payments,Placement Support,550,25/05/2022,2205-00355,0.00,21.15,R,REDACTED PERSONAL DATA,No
Http://opendatacommunities.org/id/metropolitan-district-council/leeds,Leeds City Council,31/05/2022,Strategic Landlord,Property and Contracts,Premises,General Maintenance,104,20/05/2022,2205-00356,0.00,456.01,R,ADT Fire And Security Plc,No
Http://opendatacommunities.org/id/metropolitan-district-council/leeds,Leeds City Council,31/05/2022,City Development,Libraries Arts & Heritage,Supplies and Services,External Audit Fees,261,24/05/2022,2205-00357,0.00,90.00,R,ADVANCE STOCKS LTD,No
Http://opendatacommunities.org/id/metropolitan-district-council/leeds,Leeds City Council,31/05/2022,City Development,Recreation,Supplies and Services,External Audit Fees,261,03/05/2022,2205-00358,0.00,140.00,R,ADVANCE STOCKS LTD,No
Http://opendatacommunities.org/id/metropolitan-district-council/leeds,Leeds City Council,31/05/2022,City Development,Recreation,Supplies and Services,External Audit Fees,261,27/05/2022,2205-00359,0.00,140.00,R,ADVANCE STOCKS LTD,No
Http://opendatacommunities.org/id/metropolitan-district-council/leeds,Leeds City Council as Accountable Body,31/05/2022,Social Services Pooled Budgets,Jcs For People With Learning Disabilitie,Agency Payments,Home Care,568,18/05/2022,2205-00360,0.00,3710.00,R,Advantage Healthcare Ltd,No
Http://opendatacommunities.org/id/metropolitan-district-council/leeds,Leeds City Council,31/05/2022,Adults and Health,Social Services Support Services,Employees,Training & Development,70,09/05/2022,2205-00361,0.00,1620.00,R,Advonet,No
Http://opendatacommunities.org/id/metropolitan-district-council/leeds,Leeds City Council,31/05/2022,Adults and Health,Services For Adults Under 65 Mental/Dis,Agency Payments,Fees - Level 4,520,13/05/2022,2205-00362,0.00,222.69,R,AE BIA Assessments Limited,No
Http://opendatacommunities.org/id/metropolitan-district-council/leeds,Leeds City Council,31/05/2022,City Development,Highways,Capital,OTHER COSTS,7,19/05/2022,2205-00363,0.00,86652.95,C,Aecom Limited,No
Http://opendatacommunities.org/id/metropolitan-district-council/leeds,Leeds City Council,31/05/2022,City Development,Highways,Capital,OTHER COSTS,7,26/05/2022,2205-00364,0.00,81952.05,C,Aecom Limited,No
Http://opendatacommunities.org/id/metropolitan-district-council/leeds,Leeds City Council,31/05/2022,Adults and Health,Services For Adults Under 65 Mental/Dis,Agency Payments,Home Care,568,04/05/2022,2205-00365,0.00,1135.60,R,Aegis Care Solutions Ltd,No
Http://opendatacommunities.org/id/metropolitan-district-council/leeds,Leeds City Council,31/05/2022,Adults and Health,Services For Adults Under 65 Mental/Dis,Agency Payments,Home Care,568,17/05/2022,2205-00366,0.00,762.44,R,Aegis Care Solutions Ltd,No
Http://opendatacommunities.org/id/metropolitan-district-council/leeds,Leeds City Council,31/05/2022,Adults and Health,Services For Older People - 65 And Over,Agency Payments,Home Care,568,25/05/2022,2205-00367,0.00,31016.94,R,Aegis Care Solutions Ltd,No
Http://opendatacommunities.org/id/metropolitan-district-council/leeds,Leeds City Council,31/05/2022,Adults and Health,Services For Older People - 65 And Over,Agency Payments,HCAIT Other,577,25/05/2022,2205-00368,0.00,388.80,R,Aegis Care Solutions Ltd,No
Http://opendatacommunities.org/id/metropolitan-district-council/leeds,Leeds City Council,31/05/2022,Adults and Health,Services For Older People Under 65 P/Dis,Agency Payments,Home Care,568,25/05/2022,2205-00369,0.00,10448.20,R,Aegis Care Solutions Ltd,No
Http://opendatacommunities.org/id/metropolitan-district-council/leeds,Leeds City Council as Accountable Body,31/05/2022,Social Services Pooled Budgets,Jcs For People With Learning Disabilitie,Agency Payments,Home Care,568,25/05/2022,2205-00370,0.00,2758.08,R,Aegis Care Solutions Ltd,No
Http://opendatacommunities.org/id/metropolitan-district-council/leeds,Leeds City Council,31/05/2022,City Development,Libraries Arts & Heritage,Supplies and Services,Other Hired And Contracted Services,265,12/05/2022,2205-00371,0.00,373.08,R,Aesg Ltd,No
Http://opendatacommunities.org/id/metropolitan-district-council/leeds,Leeds City Council,31/05/2022,Adults and Health,Assessment And Care Management,Agency Payments,Home Care,568,25/05/2022,2205-00372,0.00,137.42,R,Affinity Trust,No
Http://opendatacommunities.org/id/metropolitan-district-council/leeds,Leeds City Council,31/05/2022,Adults and Health,Services For Adults Under 65 Mental/Dis,Agency Payments,Home Care,568,05/05/2022,2205-00373,0.00,1071.36,R,Affinity Trust,No
Http://opendatacommunities.org/id/metropolitan-district-council/leeds,Leeds City Council,31/05/2022,Adults and Health,Services For Adults Under 65 Mental/Dis,Agency Payments,Home Care,568,05/05/2022,2205-00374,0.00,1071.36,R,Affinity Trust,No
Http://opendatacommunities.org/id/metropolitan-district-council/leeds,Leeds City Council,31/05/2022,Adults and Health,Services For Adults Under 65 Mental/Dis,Agency Payments,Home Care,568,05/05/2022,2205-00375,0.00,1087.36,R,Affinity Trust,No
Http://opendatacommunities.org/id/metropolitan-district-council/leeds,Leeds City Council,31/05/2022,Adults and Health,Services For Adults Under 65 Mental/Dis,Agency Payments,Home Care,568,25/05/2022,2205-00376,0.00,552.72,R,Affinity Trust,No
Http://opendatacommunities.org/id/metropolitan-district-council/leeds,Leeds City Council,31/05/2022,Adults and Health,Services For Adults Under 65 Mental/Dis,Agency Payments,HCAIT Community Support,575,25/05/2022,2205-00377,0.00,343.55,R,Affinity Trust,No
Http://opendatacommunities.org/id/metropolitan-district-council/leeds,Leeds City Council,31/05/2022,Adults and Health,Services For Older People - 65 And Over,Agency Payments,Home Care,568,20/05/2022,2205-00378,0.00,549.68,R,Affinity Trust,No
Http://opendatacommunities.org/id/metropolitan-district-council/leeds,Leeds City Council,31/05/2022,Adults and Health,Services For Older People - 65 And Over,Agency Payments,Home Care,568,25/05/2022,2205-00379,0.00,-0.20,R,Affinity Trust,No
Http://opendatacommunities.org/id/metropolitan-district-council/leeds,Leeds City Council,31/05/2022,Adults and Health,Services For Older People - 65 And Over,Agency Payments,HCAIT Community Support,575,25/05/2022,2205-00380,0.00,620.64,R,Affinity Trust,No
Http://opendatacommunities.org/id/metropolitan-district-council/leeds,Leeds City Council,31/05/2022,Adults and Health,Services For Older People Under 65 P/Dis,Agency Payments,Home Care,568,25/05/2022,2205-00381,0.00,828.48,R,Affinity Trust,No
Http://opendatacommunities.org/id/metropolitan-district-council/leeds,Leeds City Council,31/05/2022,Adults and Health,Services For Older People Under 65 P/Dis,Agency Payments,HCAIT Community Support,575,25/05/2022,2205-00382,0.00,759.99,R,Affinity Trust,No
Http://opendatacommunities.org/id/metropolitan-district-council/leeds,Leeds City Council as Accountable Body,31/05/2022,Social Services Pooled Budgets,Jcs For People With Learning Disabilitie,Agency Payments,Day Centre,564,18/05/2022,2205-00383,0.00,9142.77,R,Affinity Trust,No
Http://opendatacommunities.org/id/metropolitan-district-council/leeds,Leeds City Council as Accountable Body,31/05/2022,Social Services Pooled Budgets,Jcs For People With Learning Disabilitie,Agency Payments,Day Centre,564,18/05/2022,2205-00384,0.00,21211.89,R,Affinity Trust,No
Http://opendatacommunities.org/id/metropolitan-district-council/leeds,Leeds City Council as Accountable Body,31/05/2022,Social Services Pooled Budgets,Jcs For People With Learning Disabilitie,Agency Payments,Sheltered Accommodation,569,25/05/2022,2205-00385,0.00,137760.94,R,Affinity Trust North Divisional Office,No
Http://opendatacommunities.org/id/metropolitan-district-council/leeds,Leeds City Council,31/05/2022,Communities Housing and Environment,Parks and Countryside,Transport,Hire Of Movable Plant & Machinery,315,19/04/2022,2205-00386,0.00,3800.00,R,Afi Uplift,Yes
Http://opendatacommunities.org/id/metropolitan-district-council/leeds,Leeds City Council,31/05/2022,Adults and Health,Public Health,Agency Payments,Services Rendered By Voluntary Sector,505,16/05/2022,2205-00387,0.00,25000.00,R,Age Uk Leeds,No
Http://opendatacommunities.org/id/metropolitan-district-council/leeds,Leeds City Council,31/05/2022,Insurance,Insurance,Supplies and Services,Insurance Claims,248,30/05/2022,2205-00388,0.00,2778.76,R,Ageas Law,No
Http://opendatacommunities.org/id/metropolitan-district-council/leeds,Leeds City Council,31/05/2022,Insurance,Insurance,Supplies and Services,Insurance Claims,248,30/05/2022,2205-00389,0.00,216.00,R,Ageas Law,No
Http://opendatacommunities.org/id/metropolitan-district-council/leeds,Leeds City Council,31/05/2022,City Development,Highways,Supplies and Services,Operational Materials,205,13/05/2022,2205-00390,0.00,3855.65,R,AGGREGATE INDUSTRIES UK LTD,No
Http://opendatacommunities.org/id/metropolitan-district-council/leeds,Leeds City Council,31/05/2022,City Development,Highways,Supplies and Services,Operational Materials,205,13/05/2022,2205-00391,0.00,3828.13,R,AGGREGATE INDUSTRIES UK LTD,No
Http://opendatacommunities.org/id/metropolitan-district-council/leeds,Leeds City Council,31/05/2022,City Development,Highways,Supplies and Services,Operational Materials,205,20/05/2022,2205-00392,0.00,1284.78,R,AGGREGATE INDUSTRIES UK LTD,No
Http://opendatacommunities.org/id/metropolitan-district-council/leeds,Leeds City Council,31/05/2022,City Development,Highways,Supplies and Services,Operational Materials,205,25/05/2022,2205-00393,0.00,4717.59,R,AGGREGATE INDUSTRIES UK LTD,No
Http://opendatacommunities.org/id/metropolitan-district-council/leeds,Leeds City Council,31/05/2022,City Development,Highways,Supplies and Services,Operational Materials,205,19/05/2022,2205-00394,0.00,8854.33,R,AGGREGATE INDUSTRIES UK LTD,No
Http://opendatacommunities.org/id/metropolitan-district-council/leeds,Leeds City Council,31/05/2022,City Development,Highways,Supplies and Services,Operational Materials,205,20/05/2022,2205-00395,0.00,1261.18,R,AGGREGATE INDUSTRIES UK LTD,No
Http://opendatacommunities.org/id/metropolitan-district-council/leeds,Leeds City Council,31/05/2022,City Development,Highways,Supplies and Services,Operational Materials,205,26/05/2022,2205-00396,0.00,3179.39,R,AGGREGATE INDUSTRIES UK LTD,No
Http://opendatacommunities.org/id/metropolitan-district-council/leeds,Leeds City Council,31/05/2022,City Development,Highways,Transport,Plant Hire - By Directorate,305,27/05/2022,2205-00397,0.00,1575.21,R,AGGREGATE INDUSTRIES UK LTD,No
Http://opendatacommunities.org/id/metropolitan-district-council/leeds,Leeds City Council,31/05/2022,Insurance,Insurance,Supplies and Services,Insurance Claims,248,13/05/2022,2205-00398,0.00,138.78,R,REDACTED PERSONAL DATA,No
Http://opendatacommunities.org/id/metropolitan-district-council/leeds,Leeds City Council,31/05/2022,Communities Housing and Environment,Customer Access,Supplies and Services,Bought In Professional Services,277,11/05/2022,2205-00399,0.00,9.00,R,Agnieszka J Collier,No
Http://opendatacommunities.org/id/metropolitan-district-council/leeds,Leeds City Council,31/05/2022,Communities Housing and Environment,Customer Access,Supplies and Services,Bought In Professional Services,277,25/05/2022,2205-00400,0.00,18.30,R,Agnieszka J Collier,No
Http://opendatacommunities.org/id/metropolitan-district-council/leeds,Leeds City Council,31/05/2022,Communities Housing and Environment,Customer Access,Supplies and Services,Bought In Professional Services,277,25/05/2022,2205-00401,0.00,18.00,R,Agnieszka J Collier,No
Http://opendatacommunities.org/id/metropolitan-district-council/leeds,Leeds City Council,31/05/2022,Communities Housing and Environment,Customer Access,Supplies and Services,Bought In Professional Services,277,25/05/2022,2205-00402,0.00,13.50,R,Agnieszka J Collier,No
Http://opendatacommunities.org/id/metropolitan-district-council/leeds,Leeds City Council,31/05/2022,Communities Housing and Environment,Parks and Countryside,Supplies and Services,Operational Materials,205,19/05/2022,2205-00403,0.00,3110.00,R,Agrovista UK Ltd,No
Http://opendatacommunities.org/id/metropolitan-district-council/leeds,Leeds City Council,31/05/2022,Communities Housing and Environment,Parks and Countryside,Supplies and Services,Operational Materials,205,27/05/2022,2205-00404,0.00,215.95,R,Agrovista UK Ltd,No
Http://opendatacommunities.org/id/metropolitan-district-council/leeds,Leeds City Council,31/05/2022,Communities Housing and Environment,Customer Access,Supplies and Services,Bought In Professional Services,277,18/05/2022,2205-00405,0.00,13.50,R,Ahmed Moustafa Moustafa Mousa,No
Http://opendatacommunities.org/id/metropolitan-district-council/leeds,Leeds City Council,31/05/2022,Communities Housing and Environment,Customer Access,Supplies and Services,Bought In Professional Services,277,18/05/2022,2205-00406,0.00,40.50,R,Ahmed Moustafa Moustafa Mousa,No
Http://opendatacommunities.org/id/metropolitan-district-council/leeds,Leeds City Council,31/05/2022,Communities Housing and Environment,Customer Access,Supplies and Services,Bought In Professional Services,277,25/05/2022,2205-00407,0.00,36.00,R,Ahmed Moustafa Moustafa Mousa,No
Http://opendatacommunities.org/id/metropolitan-district-council/leeds,Leeds City Council,31/05/2022,Communities Housing and Environment,Customer Access,Supplies and Services,Bought In Professional Services,277,05/05/2022,2205-00408,0.00,316.80,R,Ahmed T. Al-Hamdi,No
Http://opendatacommunities.org/id/metropolitan-district-council/leeds,Leeds City Council,31/05/2022,Strategic Landlord,Property and Contracts,Appropriations,Disrepair Provision,644,23/05/2022,2205-00409,0.00,390.00,R,AHR Building Consultancy Ltd,No
Http://opendatacommunities.org/id/metropolitan-district-council/leeds,Leeds City Council as Accountable Body,31/05/2022,Social Services Pooled Budgets,Leeds Community Equip Store Pooled Budgt,Supplies and Services,Other Equipment,203,30/05/2022,2205-00410,0.00,432.00,R,AIDAPT BATHROOMS LTD,No
Http://opendatacommunities.org/id/metropolitan-district-council/leeds,Leeds City Council,31/05/2022,Children and Families,Social Care,Supplies and Services,Insurance Claims,248,26/05/2022,2205-00411,0.00,100.00,R,REDACTED PERSONAL DATA,No
Http://opendatacommunities.org/id/metropolitan-district-council/leeds,Leeds City Council,31/05/2022,Resources,Commercial Services,Supplies and Services,Other Hired And Contracted Services,265,12/05/2022,2205-00412,0.00,282.00,R,REDACTED PERSONAL DATA,No
Http://opendatacommunities.org/id/metropolitan-district-council/leeds,Leeds City Council,31/05/2022,Children and Families,Social Care,Agency Payments,Contact,548,18/05/2022,2205-00413,0.00,10.40,R,REDACTED PERSONAL DATA,No
Http://opendatacommunities.org/id/metropolitan-district-council/leeds,Leeds City Council,31/05/2022,Children and Families,Social Care,Agency Payments,Contact,548,31/05/2022,2205-00414,0.00,5.20,R,REDACTED PERSONAL DATA,No
Http://opendatacommunities.org/id/metropolitan-district-council/leeds,Leeds City Council,31/05/2022,Children and Families,Social Care,Agency Payments,Contact,548,17/05/2022,2205-00415,0.00,5.20,R,REDACTED PERSONAL DATA,No
Http://opendatacommunities.org/id/metropolitan-district-council/leeds,Leeds City Council,31/05/2022,Children and Families,Social Care,Agency Payments,Contact,548,25/05/2022,2205-00416,0.00,10.40,R,REDACTED PERSONAL DATA,No
Http://opendatacommunities.org/id/metropolitan-district-council/leeds,Leeds City Council,31/05/2022,Children and Families,Social Care,Agency Payments,Placement Support,550,11/05/2022,2205-00417,0.00,45.53,R,REDACTED PERSONAL DATA,No
Http://opendatacommunities.org/id/metropolitan-district-council/leeds,Leeds City Council,31/05/2022,Children and Families,Social Care,Agency Payments,Section 17,551,18/05/2022,2205-00418,0.00,12.49,R,REDACTED PERSONAL DATA,No
Http://opendatacommunities.org/id/metropolitan-district-council/leeds,Leeds City Council,31/05/2022,Resources,Leeds Building Services,Supplies and Services,Operational Materials,205,20/05/2022,2205-00419,0.00,60.98,R,Air Conditioning Accessories,No
Http://opendatacommunities.org/id/metropolitan-district-council/leeds,Leeds City Council,31/05/2022,Communities Housing and Environment,Environmental Health,Supplies and Services,Other Hired And Contracted Services,265,31/05/2022,2205-00420,0.00,11.75,R,AIR LIQUIDE UK,No
Http://opendatacommunities.org/id/metropolitan-district-council/leeds,Leeds City Council,31/05/2022,Communities Housing and Environment,Environmental Health,Supplies and Services,Other Hired And Contracted Services,265,31/05/2022,2205-00421,0.00,11.75,R,AIR LIQUIDE UK,No
Http://opendatacommunities.org/id/metropolitan-district-council/leeds,Leeds City Council,31/05/2022,Communities Housing and Environment,Environmental Health,Supplies and Services,Other Hired And Contracted Services,265,31/05/2022,2205-00422,0.00,18.16,R,AIR LIQUIDE UK,No
Http://opendatacommunities.org/id/metropolitan-district-council/leeds,Leeds City Council,31/05/2022,Communities Housing and Environment,Environmental Health,Supplies and Services,Other Hired And Contracted Services,265,31/05/2022,2205-00423,0.00,82.25,R,AIR LIQUIDE UK,No
Http://opendatacommunities.org/id/metropolitan-district-council/leeds,Leeds City Council,31/05/2022,City Development,Libraries Arts & Heritage,Supplies and Services,Subsistence,256,25/04/2022,2205-00424,0.00,998.50,R,Airbnb * Hm58adyn3e,Yes
Http://opendatacommunities.org/id/metropolitan-district-council/leeds,Leeds City Council,31/05/2022,Adults and Health,Public Health,Agency Payments,Public Health Commissioned Services,526,03/05/2022,2205-00425,0.00,2957.96,R,Aire Valley Surgery,No
Http://opendatacommunities.org/id/metropolitan-district-council/leeds,Leeds City Council,31/05/2022,Communities Housing and Environment,Parks and Countryside,Supplies and Services,Other Hired And Contracted Services,265,27/05/2022,2205-00426,0.00,856.00,R,Aire Valley Tree Services Ltd,No
Http://opendatacommunities.org/id/metropolitan-district-council/leeds,Leeds City Council,31/05/2022,Adults and Health,Services For Older People - 65 And Over,Agency Payments,Residential Care Dementia,571,25/05/2022,2205-00427,0.00,49230.19,R,Aire View Residential Home,No
Http://opendatacommunities.org/id/metropolitan-district-council/leeds,Leeds City Council,31/05/2022,Adults and Health,Services For Older People - 65 And Over,Agency Payments,Residential,580,25/05/2022,2205-00428,0.00,1145.85,R,Aire View Residential Home,No
Http://opendatacommunities.org/id/metropolitan-district-council/leeds,Leeds City Council,31/05/2022,Adults and Health,Public Health,Agency Payments,Public Health Commissioned Services,526,03/05/2022,2205-00429,0.00,1628.12,R,Aireborough Family Practice,No
Http://opendatacommunities.org/id/metropolitan-district-council/leeds,Leeds City Council,31/05/2022,Strategic Accounts,Miscellaneous,Supplies and Services,Non-Recurring Grants,227,17/05/2022,2205-00430,0.00,286.80,R,Aireborough Neighbourhood Development,No
Http://opendatacommunities.org/id/metropolitan-district-council/leeds,Leeds City Council,31/05/2022,Children and Families,Social Care,Agency Payments,Services Rendered By Voluntary Sector,505,05/05/2022,2205-00431,0.00,30000.00,R,Aireborough Supported Activities Scheme,No
Http://opendatacommunities.org/id/metropolitan-district-council/leeds,Leeds City Council,31/05/2022,Children and Families,Social Care,Agency Payments,Services Rendered By Voluntary Sector,505,05/05/2022,2205-00432,0.00,25631.00,R,Aireborough Supported Activities Scheme,No
Http://opendatacommunities.org/id/metropolitan-district-council/leeds,Leeds City Council,31/05/2022,Resources,Commercial Services,Premises,Fixtures & Fittings,131,06/05/2022,2205-00433,0.00,8820.00,R,AIREDALE CATERING EQUIPMENT LTD,No
Http://opendatacommunities.org/id/metropolitan-district-council/leeds,Leeds City Council,31/05/2022,Resources,Commercial Services,Supplies and Services,Operational Materials,205,20/05/2022,2205-00434,0.00,1918.00,R,AIREDALE CATERING EQUIPMENT LTD,No
Http://opendatacommunities.org/id/metropolitan-district-council/leeds,Leeds City Council,31/05/2022,Adults and Health,Assessment And Care Management,Agency Payments,Residential,580,25/05/2022,2205-00435,0.00,4123.32,R,Airedale Residential Home,No
Http://opendatacommunities.org/id/metropolitan-district-council/leeds,Leeds City Council,31/05/2022,Adults and Health,Other Adult Services,Agency Payments,Residential,580,04/05/2022,2205-00436,0.00,11269.40,R,Airedale Residential Home,No
Http://opendatacommunities.org/id/metropolitan-district-council/leeds,Leeds City Council,31/05/2022,Adults and Health,Services For Older People - 65 And Over,Agency Payments,Residential Care Dementia,571,25/05/2022,2205-00437,0.00,4914.96,R,Airedale Residential Home,No
Http://opendatacommunities.org/id/metropolitan-district-council/leeds,Leeds City Council,31/05/2022,Adults and Health,Services For Older People - 65 And Over,Agency Payments,Residential,580,25/05/2022,2205-00438,0.00,20447.38,R,Airedale Residential Home,No
Http://opendatacommunities.org/id/metropolitan-district-council/leeds,Leeds City Council,31/05/2022,Adults and Health,Services For Older People Under 65 P/Dis,Agency Payments,Residential,580,25/05/2022,2205-00439,0.00,4547.70,R,Airedale Residential Home,No
Http://opendatacommunities.org/id/metropolitan-district-council/leeds,Leeds City Council,31/05/2022,City Development,Employment & Skills,Agency Payments,Contributions To Partnerships,544,13/05/2022,2205-00440,0.00,1085.21,R,Airnow Cybersecurity Limited,No
Http://opendatacommunities.org/id/metropolitan-district-council/leeds,Leeds City Council,31/05/2022,City Development,Employment & Skills,Agency Payments,Contributions To Partnerships,544,20/05/2022,2205-00441,0.00,4258.98,R,Airnow Cybersecurity Limited,No
Http://opendatacommunities.org/id/metropolitan-district-council/leeds,Leeds City Council,31/05/2022,Adults and Health,Services For Adults Under 65 Learn/Dis,Transport,Public Transport Expenses,310,31/03/2022,2205-00442,0.00,5.05,R,Airpay 41306099-Amber Car,Yes
Http://opendatacommunities.org/id/metropolitan-district-council/leeds,Leeds City Council,31/05/2022,Adults and Health,Services For Adults Under 65 Learn/Dis,Transport,Public Transport Expenses,310,31/03/2022,2205-00443,0.00,5.65,R,Airpay 41309549-Amber Car,Yes
Http://opendatacommunities.org/id/metropolitan-district-council/leeds,Leeds City Council,31/05/2022,Children and Families,Social Care,Transport,Public Transport Expenses,310,14/04/2022,2205-00444,0.00,9.21,R,Airpay 41442450-Amber Car,Yes
Http://opendatacommunities.org/id/metropolitan-district-council/leeds,Leeds City Council,31/05/2022,Children and Families,Social Care,Transport,Public Transport Expenses,310,14/04/2022,2205-00445,0.00,8.71,R,Airpay 41452289-Amber Car,Yes
Http://opendatacommunities.org/id/metropolitan-district-council/leeds,Leeds City Council,31/05/2022,Children and Families,Social Care,Transport,Public Transport Expenses,310,19/04/2022,2205-00446,0.00,23.95,R,Airpay 41498786-Amber Car,Yes
Http://opendatacommunities.org/id/metropolitan-district-council/leeds,Leeds City Council,31/05/2022,Children and Families,Social Care,Transport,Public Transport Expenses,310,19/04/2022,2205-00447,0.00,8.35,R,Airpay 41510008-Amber Car,Yes
Http://opendatacommunities.org/id/metropolitan-district-council/leeds,Leeds City Council,31/05/2022,Children and Families,Social Care,Transport,Public Transport Expenses,310,20/04/2022,2205-00448,0.00,5.95,R,Airpay 41519004-Amber Car,Yes
Http://opendatacommunities.org/id/metropolitan-district-council/leeds,Leeds City Council,31/05/2022,City Development,Economic Development,Transport,Public Transport Expenses,310,27/04/2022,2205-00449,0.00,7.87,R,Airpay 41586541-Amber Car,Yes
Http://opendatacommunities.org/id/metropolitan-district-council/leeds,Leeds City Council,31/05/2022,City Development,Economic Development,Transport,Public Transport Expenses,310,27/04/2022,2205-00450,0.00,10.04,R,Airpay 41587994-Amber Car,Yes
Http://opendatacommunities.org/id/metropolitan-district-council/leeds,Leeds City Council,31/05/2022,Adults and Health,Services For Adults Under 65 Mental/Dis,Agency Payments,Fees - Level 4,520,06/05/2022,2205-00451,0.00,175.00,R,AIT Mitra Limited,No
Http://opendatacommunities.org/id/metropolitan-district-council/leeds,Leeds City Council,31/05/2022,Adults and Health,Services For Adults Under 65 Mental/Dis,Agency Payments,Fees - Level 4,520,06/05/2022,2205-00452,0.00,175.00,R,AIT Mitra Limited,No
Http://opendatacommunities.org/id/metropolitan-district-council/leeds,Leeds City Council,31/05/2022,Adults and Health,Services For Adults Under 65 Mental/Dis,Agency Payments,Fees - Level 4,520,13/05/2022,2205-00453,0.00,175.00,R,AIT Mitra Limited,No
Http://opendatacommunities.org/id/metropolitan-district-council/leeds,Leeds City Council,31/05/2022,Adults and Health,Services For Adults Under 65 Mental/Dis,Agency Payments,Fees - Level 4,520,26/05/2022,2205-00454,0.00,175.00,R,AIT Mitra Limited,No
Http://opendatacommunities.org/id/metropolitan-district-council/leeds,Leeds City Council,31/05/2022,Adults and Health,Services For Adults Under 65 Mental/Dis,Agency Payments,Fees - Level 4,520,06/05/2022,2205-00455,0.00,175.00,R,AIT Mitra Limited,No
Http://opendatacommunities.org/id/metropolitan-district-council/leeds,Leeds City Council,31/05/2022,Adults and Health,Services For Adults Under 65 Mental/Dis,Agency Payments,Fees - Level 4,520,26/05/2022,2205-00456,0.00,175.00,R,AIT Mitra Limited,No
Http://opendatacommunities.org/id/metropolitan-district-council/leeds,Leeds City Council,31/05/2022,Adults and Health,Services For Adults Under 65 Mental/Dis,Agency Payments,Fees - Level 4,520,26/05/2022,2205-00457,0.00,175.00,R,AIT Mitra Limited,No
Http://opendatacommunities.org/id/metropolitan-district-council/leeds,Leeds City Council as Accountable Body,31/05/2022,Social Services Pooled Budgets,Jcs For People With Learning Disabilitie,Agency Payments,Residential,580,25/05/2022,2205-00458,0.00,7670.84,R,AITCH care homes,No
Http://opendatacommunities.org/id/metropolitan-district-council/leeds,Leeds City Council,31/05/2022,City Development,Economic Development,Capital,LAND,1,31/05/2022,2205-00459,0.00,9100.00,C,REDACTED PERSONAL DATA,No
Http://opendatacommunities.org/id/metropolitan-district-council/leeds,Leeds City Council,31/05/2022,Resources,Leeds Building Services,Supplies and Services,STORES - CENTRAL AND OTHER DEPOTS,005,17/05/2022,2205-00460,0.00,762.50,R,AJM FIXINGS & POWER TOOLS LTD,No
Http://opendatacommunities.org/id/metropolitan-district-council/leeds,Leeds City Council,31/05/2022,Resources,Leeds Building Services,Premises,Cleaning Maintenance & Toiletries,127,17/05/2022,2205-00461,0.00,1249.50,R,AJM FIXINGS & POWER TOOLS LTD,No
Http://opendatacommunities.org/id/metropolitan-district-council/leeds,Leeds City Council,31/05/2022,Resources,Leeds Building Services,Premises,Cleaning Maintenance & Toiletries,127,17/05/2022,2205-00462,0.00,259.00,R,AJM FIXINGS & POWER TOOLS LTD,No
Http://opendatacommunities.org/id/metropolitan-district-council/leeds,Leeds City Council,31/05/2022,Resources,Leeds Building Services,Premises,Cleaning Maintenance & Toiletries,127,17/05/2022,2205-00463,0.00,179.50,R,AJM FIXINGS & POWER TOOLS LTD,No
Http://opendatacommunities.org/id/metropolitan-district-council/leeds,Leeds City Council,31/05/2022,Resources,Leeds Building Services,Premises,Cleaning Maintenance & Toiletries,127,17/05/2022,2205-00464,0.00,309.96,R,AJM FIXINGS & POWER TOOLS LTD,No
Http://opendatacommunities.org/id/metropolitan-district-council/leeds,Leeds City Council,31/05/2022,Resources,Leeds Building Services,Premises,Cleaning Maintenance & Toiletries,127,17/05/2022,2205-00465,0.00,69.30,R,AJM FIXINGS & POWER TOOLS LTD,No
Http://opendatacommunities.org/id/metropolitan-district-council/leeds,Leeds City Council,31/05/2022,Resources,Leeds Building Services,Premises,Cleaning Maintenance & Toiletries,127,17/05/2022,2205-00466,0.00,260.00,R,AJM FIXINGS & POWER TOOLS LTD,No
Http://opendatacommunities.org/id/metropolitan-district-council/leeds,Leeds City Council,31/05/2022,Resources,Leeds Building Services,Premises,Cleaning Maintenance & Toiletries,127,19/05/2022,2205-00467,0.00,1692.00,R,AJM FIXINGS & POWER TOOLS LTD,No
Http://opendatacommunities.org/id/metropolitan-district-council/leeds,Leeds City Council,31/05/2022,Resources,Leeds Building Services,Premises,Cleaning Maintenance & Toiletries,127,19/05/2022,2205-00468,0.00,485.55,R,AJM FIXINGS & POWER TOOLS LTD,No
Http://opendatacommunities.org/id/metropolitan-district-council/leeds,Leeds City Council,31/05/2022,Resources,Leeds Building Services,Premises,Cleaning Maintenance & Toiletries,127,19/05/2022,2205-00469,0.00,139.98,R,AJM FIXINGS & POWER TOOLS LTD,No
Http://opendatacommunities.org/id/metropolitan-district-council/leeds,Leeds City Council,31/05/2022,Resources,Leeds Building Services,Premises,Cleaning Maintenance & Toiletries,127,19/05/2022,2205-00470,0.00,11.27,R,AJM FIXINGS & POWER TOOLS LTD,No
Http://opendatacommunities.org/id/metropolitan-district-council/leeds,Leeds City Council,31/05/2022,Resources,Leeds Building Services,Premises,Cleaning Maintenance & Toiletries,127,19/05/2022,2205-00471,0.00,520.20,R,AJM FIXINGS & POWER TOOLS LTD,No
Http://opendatacommunities.org/id/metropolitan-district-council/leeds,Leeds City Council,31/05/2022,Resources,Leeds Building Services,Premises,Cleaning Maintenance & Toiletries,127,19/05/2022,2205-00472,0.00,32.40,R,AJM FIXINGS & POWER TOOLS LTD,No
Http://opendatacommunities.org/id/metropolitan-district-council/leeds,Leeds City Council,31/05/2022,Resources,Leeds Building Services,Premises,Cleaning Maintenance & Toiletries,127,20/05/2022,2205-00473,0.00,90.90,R,AJM FIXINGS & POWER TOOLS LTD,No
Http://opendatacommunities.org/id/metropolitan-district-council/leeds,Leeds City Council,31/05/2022,Resources,Leeds Building Services,Premises,Cleaning Maintenance & Toiletries,127,26/05/2022,2205-00474,0.00,219.70,R,AJM FIXINGS & POWER TOOLS LTD,No
Http://opendatacommunities.org/id/metropolitan-district-council/leeds,Leeds City Council,31/05/2022,Resources,Leeds Building Services,Premises,Cleaning Maintenance & Toiletries,127,31/05/2022,2205-00475,0.00,299.49,R,AJM FIXINGS & POWER TOOLS LTD,No
Http://opendatacommunities.org/id/metropolitan-district-council/leeds,Leeds City Council,31/05/2022,Resources,Leeds Building Services,Premises,Cleaning Maintenance & Toiletries,127,31/05/2022,2205-00476,0.00,260.25,R,AJM FIXINGS & POWER TOOLS LTD,No
Http://opendatacommunities.org/id/metropolitan-district-council/leeds,Leeds City Council,31/05/2022,Resources,Leeds Building Services,Premises,Cleaning Maintenance & Toiletries,127,17/05/2022,2205-00477,0.00,359.16,R,AJM FIXINGS & POWER TOOLS LTD,No
Http://opendatacommunities.org/id/metropolitan-district-council/leeds,Leeds City Council,31/05/2022,Resources,Leeds Building Services,Premises,Cleaning Maintenance & Toiletries,127,17/05/2022,2205-00478,0.00,277.50,R,AJM FIXINGS & POWER TOOLS LTD,No
Http://opendatacommunities.org/id/metropolitan-district-council/leeds,Leeds City Council,31/05/2022,Resources,Leeds Building Services,Premises,Cleaning Maintenance & Toiletries,127,17/05/2022,2205-00479,0.00,148.80,R,AJM FIXINGS & POWER TOOLS LTD,No
Http://opendatacommunities.org/id/metropolitan-district-council/leeds,Leeds City Council,31/05/2022,Resources,Leeds Building Services,Premises,Cleaning Maintenance & Toiletries,127,17/05/2022,2205-00480,0.00,92.90,R,AJM FIXINGS & POWER TOOLS LTD,No
Http://opendatacommunities.org/id/metropolitan-district-council/leeds,Leeds City Council,31/05/2022,Resources,Leeds Building Services,Premises,Cleaning Maintenance & Toiletries,127,17/05/2022,2205-00481,0.00,196.00,R,AJM FIXINGS & POWER TOOLS LTD,No
Http://opendatacommunities.org/id/metropolitan-district-council/leeds,Leeds City Council,31/05/2022,Resources,Leeds Building Services,Premises,Cleaning Maintenance & Toiletries,127,19/05/2022,2205-00482,0.00,95.00,R,AJM FIXINGS & POWER TOOLS LTD,No
Http://opendatacommunities.org/id/metropolitan-district-council/leeds,Leeds City Council,31/05/2022,Resources,Leeds Building Services,Premises,Cleaning Maintenance & Toiletries,127,31/05/2022,2205-00483,0.00,420.00,R,AJM FIXINGS & POWER TOOLS LTD,No
Http://opendatacommunities.org/id/metropolitan-district-council/leeds,Leeds City Council,31/05/2022,Resources,Leeds Building Services,Supplies and Services,Operational Furniture And Equipment,203,17/05/2022,2205-00484,0.00,157.56,R,AJM FIXINGS & POWER TOOLS LTD,No
Http://opendatacommunities.org/id/metropolitan-district-council/leeds,Leeds City Council,31/05/2022,Resources,Leeds Building Services,Supplies and Services,Operational Furniture And Equipment,203,17/05/2022,2205-00485,0.00,134.16,R,AJM FIXINGS & POWER TOOLS LTD,No
Http://opendatacommunities.org/id/metropolitan-district-council/leeds,Leeds City Council,31/05/2022,Resources,Leeds Building Services,Supplies and Services,Operational Furniture And Equipment,203,17/05/2022,2205-00486,0.00,499.80,R,AJM FIXINGS & POWER TOOLS LTD,No
Http://opendatacommunities.org/id/metropolitan-district-council/leeds,Leeds City Council,31/05/2022,Resources,Leeds Building Services,Supplies and Services,Operational Furniture And Equipment,203,17/05/2022,2205-00487,0.00,259.00,R,AJM FIXINGS & POWER TOOLS LTD,No
Http://opendatacommunities.org/id/metropolitan-district-council/leeds,Leeds City Council,31/05/2022,Resources,Leeds Building Services,Supplies and Services,Operational Furniture And Equipment,203,17/05/2022,2205-00488,0.00,586.45,R,AJM FIXINGS & POWER TOOLS LTD,No
Http://opendatacommunities.org/id/metropolitan-district-council/leeds,Leeds City Council,31/05/2022,Resources,Leeds Building Services,Supplies and Services,Operational Furniture And Equipment,203,17/05/2022,2205-00489,0.00,259.00,R,AJM FIXINGS & POWER TOOLS LTD,No
Http://opendatacommunities.org/id/metropolitan-district-council/leeds,Leeds City Council,31/05/2022,Resources,Leeds Building Services,Supplies and Services,Operational Furniture And Equipment,203,17/05/2022,2205-00490,0.00,289.60,R,AJM FIXINGS & POWER TOOLS LTD,No
Http://opendatacommunities.org/id/metropolitan-district-council/leeds,Leeds City Council,31/05/2022,Resources,Leeds Building Services,Supplies and Services,Operational Furniture And Equipment,203,17/05/2022,2205-00491,0.00,95.00,R,AJM FIXINGS & POWER TOOLS LTD,No
Http://opendatacommunities.org/id/metropolitan-district-council/leeds,Leeds City Council,31/05/2022,Resources,Leeds Building Services,Supplies and Services,Operational Furniture And Equipment,203,17/05/2022,2205-00492,0.00,134.16,R,AJM FIXINGS & POWER TOOLS LTD,No
Http://opendatacommunities.org/id/metropolitan-district-council/leeds,Leeds City Council,31/05/2022,Resources,Leeds Building Services,Supplies and Services,Operational Furniture And Equipment,203,17/05/2022,2205-00493,0.00,619.16,R,AJM FIXINGS & POWER TOOLS LTD,No
Http://opendatacommunities.org/id/metropolitan-district-council/leeds,Leeds City Council,31/05/2022,Resources,Leeds Building Services,Supplies and Services,Operational Furniture And Equipment,203,17/05/2022,2205-00494,0.00,359.16,R,AJM FIXINGS & POWER TOOLS LTD,No
Http://opendatacommunities.org/id/metropolitan-district-council/leeds,Leeds City Council,31/05/2022,Resources,Leeds Building Services,Supplies and Services,Operational Furniture And Equipment,203,17/05/2022,2205-00495,0.00,279.98,R,AJM FIXINGS & POWER TOOLS LTD,No
Http://opendatacommunities.org/id/metropolitan-district-council/leeds,Leeds City Council,31/05/2022,Resources,Leeds Building Services,Supplies and Services,Operational Furniture And Equipment,203,17/05/2022,2205-00496,0.00,151.20,R,AJM FIXINGS & POWER TOOLS LTD,No
Http://opendatacommunities.org/id/metropolitan-district-council/leeds,Leeds City Council,31/05/2022,Resources,Leeds Building Services,Supplies and Services,Operational Furniture And Equipment,203,17/05/2022,2205-00497,0.00,276.84,R,AJM FIXINGS & POWER TOOLS LTD,No
Http://opendatacommunities.org/id/metropolitan-district-council/leeds,Leeds City Council,31/05/2022,Resources,Leeds Building Services,Supplies and Services,Operational Furniture And Equipment,203,17/05/2022,2205-00498,0.00,352.40,R,AJM FIXINGS & POWER TOOLS LTD,No
Http://opendatacommunities.org/id/metropolitan-district-council/leeds,Leeds City Council,31/05/2022,Resources,Leeds Building Services,Supplies and Services,Operational Furniture And Equipment,203,17/05/2022,2205-00499,0.00,320.00,R,AJM FIXINGS & POWER TOOLS LTD,No
Http://opendatacommunities.org/id/metropolitan-district-council/leeds,Leeds City Council,31/05/2022,Resources,Leeds Building Services,Supplies and Services,Operational Furniture And Equipment,203,17/05/2022,2205-00500,0.00,359.16,R,AJM FIXINGS & POWER TOOLS LTD,No
Http://opendatacommunities.org/id/metropolitan-district-council/leeds,Leeds City Council,31/05/2022,Resources,Leeds Building Services,Supplies and Services,Operational Furniture And Equipment,203,17/05/2022,2205-00501,0.00,31.79,R,AJM FIXINGS & POWER TOOLS LTD,No
Http://opendatacommunities.org/id/metropolitan-district-council/leeds,Leeds City Council,31/05/2022,Resources,Leeds Building Services,Supplies and Services,Operational Furniture And Equipment,203,17/05/2022,2205-00502,0.00,482.12,R,AJM FIXINGS & POWER TOOLS LTD,No
Http://opendatacommunities.org/id/metropolitan-district-council/leeds,Leeds City Council,31/05/2022,Resources,Leeds Building Services,Supplies and Services,Operational Furniture And Equipment,203,17/05/2022,2205-00503,0.00,34.99,R,AJM FIXINGS & POWER TOOLS LTD,No
Http://opendatacommunities.org/id/metropolitan-district-council/leeds,Leeds City Council,31/05/2022,Resources,Leeds Building Services,Supplies and Services,Operational Furniture And Equipment,203,17/05/2022,2205-00504,0.00,144.00,R,AJM FIXINGS & POWER TOOLS LTD,No
Http://opendatacommunities.org/id/metropolitan-district-council/leeds,Leeds City Council,31/05/2022,Resources,Leeds Building Services,Supplies and Services,Operational Furniture And Equipment,203,17/05/2022,2205-00505,0.00,212.45,R,AJM FIXINGS & POWER TOOLS LTD,No
Http://opendatacommunities.org/id/metropolitan-district-council/leeds,Leeds City Council,31/05/2022,Resources,Leeds Building Services,Supplies and Services,Operational Furniture And Equipment,203,17/05/2022,2205-00506,0.00,359.16,R,AJM FIXINGS & POWER TOOLS LTD,No
Http://opendatacommunities.org/id/metropolitan-district-council/leeds,Leeds City Council,31/05/2022,Resources,Leeds Building Services,Supplies and Services,Operational Furniture And Equipment,203,17/05/2022,2205-00507,0.00,474.99,R,AJM FIXINGS & POWER TOOLS LTD,No
Http://opendatacommunities.org/id/metropolitan-district-council/leeds,Leeds City Council,31/05/2022,Resources,Leeds Building Services,Supplies and Services,Operational Furniture And Equipment,203,17/05/2022,2205-00508,0.00,134.16,R,AJM FIXINGS & POWER TOOLS LTD,No
Http://opendatacommunities.org/id/metropolitan-district-council/leeds,Leeds City Council,31/05/2022,Resources,Leeds Building Services,Supplies and Services,Operational Furniture And Equipment,203,17/05/2022,2205-00509,0.00,838.06,R,AJM FIXINGS & POWER TOOLS LTD,No
Http://opendatacommunities.org/id/metropolitan-district-council/leeds,Leeds City Council,31/05/2022,Resources,Leeds Building Services,Supplies and Services,Operational Furniture And Equipment,203,17/05/2022,2205-00510,0.00,110.83,R,AJM FIXINGS & POWER TOOLS LTD,No
Http://opendatacommunities.org/id/metropolitan-district-council/leeds,Leeds City Council,31/05/2022,Resources,Leeds Building Services,Supplies and Services,Operational Furniture And Equipment,203,17/05/2022,2205-00511,0.00,205.00,R,AJM FIXINGS & POWER TOOLS LTD,No
Http://opendatacommunities.org/id/metropolitan-district-council/leeds,Leeds City Council,31/05/2022,Resources,Leeds Building Services,Supplies and Services,Operational Furniture And Equipment,203,17/05/2022,2205-00512,0.00,93.24,R,AJM FIXINGS & POWER TOOLS LTD,No
Http://opendatacommunities.org/id/metropolitan-district-council/leeds,Leeds City Council,31/05/2022,Resources,Leeds Building Services,Supplies and Services,Operational Furniture And Equipment,203,17/05/2022,2205-00513,0.00,394.16,R,AJM FIXINGS & POWER TOOLS LTD,No
Http://opendatacommunities.org/id/metropolitan-district-council/leeds,Leeds City Council,31/05/2022,Resources,Leeds Building Services,Supplies and Services,Operational Furniture And Equipment,203,17/05/2022,2205-00514,0.00,756.80,R,AJM FIXINGS & POWER TOOLS LTD,No
Http://opendatacommunities.org/id/metropolitan-district-council/leeds,Leeds City Council,31/05/2022,Resources,Leeds Building Services,Supplies and Services,Operational Furniture And Equipment,203,17/05/2022,2205-00515,0.00,253.29,R,AJM FIXINGS & POWER TOOLS LTD,No
Http://opendatacommunities.org/id/metropolitan-district-council/leeds,Leeds City Council,31/05/2022,Resources,Leeds Building Services,Supplies and Services,Operational Furniture And Equipment,203,17/05/2022,2205-00516,0.00,112.00,R,AJM FIXINGS & POWER TOOLS LTD,No
Http://opendatacommunities.org/id/metropolitan-district-council/leeds,Leeds City Council,31/05/2022,Resources,Leeds Building Services,Supplies and Services,Operational Furniture And Equipment,203,17/05/2022,2205-00517,0.00,289.10,R,AJM FIXINGS & POWER TOOLS LTD,No
Http://opendatacommunities.org/id/metropolitan-district-council/leeds,Leeds City Council,31/05/2022,Resources,Leeds Building Services,Supplies and Services,Operational Furniture And Equipment,203,17/05/2022,2205-00518,0.00,439.80,R,AJM FIXINGS & POWER TOOLS LTD,No
Http://opendatacommunities.org/id/metropolitan-district-council/leeds,Leeds City Council,31/05/2022,Resources,Leeds Building Services,Supplies and Services,Operational Furniture And Equipment,203,17/05/2022,2205-00519,0.00,2702.00,R,AJM FIXINGS & POWER TOOLS LTD,No
Http://opendatacommunities.org/id/metropolitan-district-council/leeds,Leeds City Council,31/05/2022,Resources,Leeds Building Services,Supplies and Services,Operational Furniture And Equipment,203,17/05/2022,2205-00520,0.00,206.63,R,AJM FIXINGS & POWER TOOLS LTD,No
Http://opendatacommunities.org/id/metropolitan-district-council/leeds,Leeds City Council,31/05/2022,Resources,Leeds Building Services,Supplies and Services,Operational Furniture And Equipment,203,17/05/2022,2205-00521,0.00,419.66,R,AJM FIXINGS & POWER TOOLS LTD,No
Http://opendatacommunities.org/id/metropolitan-district-council/leeds,Leeds City Council,31/05/2022,Resources,Leeds Building Services,Supplies and Services,Operational Furniture And Equipment,203,19/05/2022,2205-00522,0.00,359.16,R,AJM FIXINGS & POWER TOOLS LTD,No
Http://opendatacommunities.org/id/metropolitan-district-council/leeds,Leeds City Council,31/05/2022,Resources,Leeds Building Services,Supplies and Services,Operational Furniture And Equipment,203,19/05/2022,2205-00523,0.00,83.50,R,AJM FIXINGS & POWER TOOLS LTD,No
Http://opendatacommunities.org/id/metropolitan-district-council/leeds,Leeds City Council,31/05/2022,Resources,Leeds Building Services,Supplies and Services,Operational Furniture And Equipment,203,19/05/2022,2205-00524,0.00,90.00,R,AJM FIXINGS & POWER TOOLS LTD,No
Http://opendatacommunities.org/id/metropolitan-district-council/leeds,Leeds City Council,31/05/2022,Resources,Leeds Building Services,Supplies and Services,Operational Furniture And Equipment,203,23/05/2022,2205-00525,0.00,62.69,R,AJM FIXINGS & POWER TOOLS LTD,No
Http://opendatacommunities.org/id/metropolitan-district-council/leeds,Leeds City Council,31/05/2022,Resources,Leeds Building Services,Supplies and Services,Operational Furniture And Equipment,203,23/05/2022,2205-00526,0.00,260.00,R,AJM FIXINGS & POWER TOOLS LTD,No
Http://opendatacommunities.org/id/metropolitan-district-council/leeds,Leeds City Council,31/05/2022,Resources,Leeds Building Services,Supplies and Services,Operational Furniture And Equipment,203,23/05/2022,2205-00527,0.00,1409.99,R,AJM FIXINGS & POWER TOOLS LTD,No
Http://opendatacommunities.org/id/metropolitan-district-council/leeds,Leeds City Council,31/05/2022,Resources,Leeds Building Services,Supplies and Services,Operational Furniture And Equipment,203,26/05/2022,2205-00528,0.00,901.71,R,AJM FIXINGS & POWER TOOLS LTD,No
Http://opendatacommunities.org/id/metropolitan-district-council/leeds,Leeds City Council,31/05/2022,Resources,Leeds Building Services,Supplies and Services,Operational Furniture And Equipment,203,26/05/2022,2205-00529,0.00,359.16,R,AJM FIXINGS & POWER TOOLS LTD,No
Http://opendatacommunities.org/id/metropolitan-district-council/leeds,Leeds City Council,31/05/2022,Resources,Leeds Building Services,Supplies and Services,Operational Furniture And Equipment,203,31/05/2022,2205-00530,0.00,55.79,R,AJM FIXINGS & POWER TOOLS LTD,No
Http://opendatacommunities.org/id/metropolitan-district-council/leeds,Leeds City Council,31/05/2022,Resources,Leeds Building Services,Supplies and Services,Operational Furniture And Equipment,203,31/05/2022,2205-00531,0.00,650.00,R,AJM FIXINGS & POWER TOOLS LTD,No
Http://opendatacommunities.org/id/metropolitan-district-council/leeds,Leeds City Council,31/05/2022,Resources,Leeds Building Services,Supplies and Services,Operational Furniture And Equipment,203,31/05/2022,2205-00532,0.00,792.00,R,AJM FIXINGS & POWER TOOLS LTD,No
Http://opendatacommunities.org/id/metropolitan-district-council/leeds,Leeds City Council,31/05/2022,Resources,Leeds Building Services,Supplies and Services,Operational Furniture And Equipment,203,31/05/2022,2205-00533,0.00,70.98,R,AJM FIXINGS & POWER TOOLS LTD,No
Http://opendatacommunities.org/id/metropolitan-district-council/leeds,Leeds City Council,31/05/2022,Resources,Leeds Building Services,Supplies and Services,Operational Furniture And Equipment,203,17/05/2022,2205-00534,0.00,1811.24,R,AJM FIXINGS & POWER TOOLS LTD,No
Http://opendatacommunities.org/id/metropolitan-district-council/leeds,Leeds City Council,31/05/2022,Resources,Leeds Building Services,Supplies and Services,Operational Furniture And Equipment,203,17/05/2022,2205-00535,0.00,780.00,R,AJM FIXINGS & POWER TOOLS LTD,No
Http://opendatacommunities.org/id/metropolitan-district-council/leeds,Leeds City Council,31/05/2022,Resources,Leeds Building Services,Supplies and Services,Operational Furniture And Equipment,203,17/05/2022,2205-00536,0.00,259.00,R,AJM FIXINGS & POWER TOOLS LTD,No
Http://opendatacommunities.org/id/metropolitan-district-council/leeds,Leeds City Council,31/05/2022,Resources,Leeds Building Services,Supplies and Services,Operational Furniture And Equipment,203,17/05/2022,2205-00537,0.00,359.16,R,AJM FIXINGS & POWER TOOLS LTD,No
Http://opendatacommunities.org/id/metropolitan-district-council/leeds,Leeds City Council,31/05/2022,Resources,Leeds Building Services,Supplies and Services,Operational Furniture And Equipment,203,17/05/2022,2205-00538,0.00,374.97,R,AJM FIXINGS & POWER TOOLS LTD,No
Http://opendatacommunities.org/id/metropolitan-district-council/leeds,Leeds City Council,31/05/2022,Resources,Leeds Building Services,Supplies and Services,Operational Furniture And Equipment,203,17/05/2022,2205-00539,0.00,586.45,R,AJM FIXINGS & POWER TOOLS LTD,No
Http://opendatacommunities.org/id/metropolitan-district-council/leeds,Leeds City Council,31/05/2022,Resources,Leeds Building Services,Supplies and Services,Operational Furniture And Equipment,203,17/05/2022,2205-00540,0.00,181.13,R,AJM FIXINGS & POWER TOOLS LTD,No
Http://opendatacommunities.org/id/metropolitan-district-council/leeds,Leeds City Council,31/05/2022,Resources,Leeds Building Services,Supplies and Services,Operational Furniture And Equipment,203,17/05/2022,2205-00541,0.00,260.00,R,AJM FIXINGS & POWER TOOLS LTD,No
Http://opendatacommunities.org/id/metropolitan-district-council/leeds,Leeds City Council,31/05/2022,Resources,Leeds Building Services,Supplies and Services,Operational Furniture And Equipment,203,17/05/2022,2205-00542,0.00,184.50,R,AJM FIXINGS & POWER TOOLS LTD,No
Http://opendatacommunities.org/id/metropolitan-district-council/leeds,Leeds City Council,31/05/2022,Resources,Leeds Building Services,Supplies and Services,Operational Furniture And Equipment,203,17/05/2022,2205-00543,0.00,999.60,R,AJM FIXINGS & POWER TOOLS LTD,No
Http://opendatacommunities.org/id/metropolitan-district-council/leeds,Leeds City Council,31/05/2022,Resources,Leeds Building Services,Supplies and Services,Operational Furniture And Equipment,203,17/05/2022,2205-00544,0.00,343.00,R,AJM FIXINGS & POWER TOOLS LTD,No
Http://opendatacommunities.org/id/metropolitan-district-council/leeds,Leeds City Council,31/05/2022,Resources,Leeds Building Services,Supplies and Services,Operational Furniture And Equipment,203,17/05/2022,2205-00545,0.00,328.50,R,AJM FIXINGS & POWER TOOLS LTD,No
Http://opendatacommunities.org/id/metropolitan-district-council/leeds,Leeds City Council,31/05/2022,Resources,Leeds Building Services,Supplies and Services,Operational Furniture And Equipment,203,17/05/2022,2205-00546,0.00,252.99,R,AJM FIXINGS & POWER TOOLS LTD,No
Http://opendatacommunities.org/id/metropolitan-district-council/leeds,Leeds City Council,31/05/2022,Resources,Leeds Building Services,Supplies and Services,Operational Furniture And Equipment,203,17/05/2022,2205-00547,0.00,394.16,R,AJM FIXINGS & POWER TOOLS LTD,No
Http://opendatacommunities.org/id/metropolitan-district-council/leeds,Leeds City Council,31/05/2022,Resources,Leeds Building Services,Supplies and Services,Operational Furniture And Equipment,203,17/05/2022,2205-00548,0.00,253.29,R,AJM FIXINGS & POWER TOOLS LTD,No
Http://opendatacommunities.org/id/metropolitan-district-council/leeds,Leeds City Council,31/05/2022,Resources,Leeds Building Services,Supplies and Services,Operational Furniture And Equipment,203,17/05/2022,2205-00549,0.00,260.00,R,AJM FIXINGS & POWER TOOLS LTD,No
Http://opendatacommunities.org/id/metropolitan-district-council/leeds,Leeds City Council,31/05/2022,Resources,Leeds Building Services,Supplies and Services,Operational Furniture And Equipment,203,17/05/2022,2205-00550,0.00,185.83,R,AJM FIXINGS & POWER TOOLS LTD,No
Http://opendatacommunities.org/id/metropolitan-district-council/leeds,Leeds City Council,31/05/2022,Resources,Leeds Building Services,Supplies and Services,Operational Furniture And Equipment,203,17/05/2022,2205-00551,0.00,839.31,R,AJM FIXINGS & POWER TOOLS LTD,No
Http://opendatacommunities.org/id/metropolitan-district-council/leeds,Leeds City Council,31/05/2022,Resources,Leeds Building Services,Supplies and Services,Operational Furniture And Equipment,203,17/05/2022,2205-00552,0.00,89.97,R,AJM FIXINGS & POWER TOOLS LTD,No
Http://opendatacommunities.org/id/metropolitan-district-council/leeds,Leeds City Council,31/05/2022,Resources,Leeds Building Services,Supplies and Services,Operational Furniture And Equipment,203,17/05/2022,2205-00553,0.00,525.00,R,AJM FIXINGS & POWER TOOLS LTD,No
Http://opendatacommunities.org/id/metropolitan-district-council/leeds,Leeds City Council,31/05/2022,Resources,Leeds Building Services,Supplies and Services,Operational Furniture And Equipment,203,17/05/2022,2205-00554,0.00,149.97,R,AJM FIXINGS & POWER TOOLS LTD,No
Http://opendatacommunities.org/id/metropolitan-district-council/leeds,Leeds City Council,31/05/2022,Resources,Leeds Building Services,Supplies and Services,Operational Furniture And Equipment,203,17/05/2022,2205-00555,0.00,359.16,R,AJM FIXINGS & POWER TOOLS LTD,No
Http://opendatacommunities.org/id/metropolitan-district-council/leeds,Leeds City Council,31/05/2022,Resources,Leeds Building Services,Supplies and Services,Operational Furniture And Equipment,203,17/05/2022,2205-00556,0.00,867.29,R,AJM FIXINGS & POWER TOOLS LTD,No
Http://opendatacommunities.org/id/metropolitan-district-council/leeds,Leeds City Council,31/05/2022,Resources,Leeds Building Services,Supplies and Services,Operational Furniture And Equipment,203,17/05/2022,2205-00557,0.00,148.80,R,AJM FIXINGS & POWER TOOLS LTD,No
Http://opendatacommunities.org/id/metropolitan-district-council/leeds,Leeds City Council,31/05/2022,Resources,Leeds Building Services,Supplies and Services,Operational Furniture And Equipment,203,17/05/2022,2205-00558,0.00,132.73,R,AJM FIXINGS & POWER TOOLS LTD,No
Http://opendatacommunities.org/id/metropolitan-district-council/leeds,Leeds City Council,31/05/2022,Resources,Leeds Building Services,Supplies and Services,Operational Furniture And Equipment,203,17/05/2022,2205-00559,0.00,1573.72,R,AJM FIXINGS & POWER TOOLS LTD,No
Http://opendatacommunities.org/id/metropolitan-district-council/leeds,Leeds City Council,31/05/2022,Resources,Leeds Building Services,Supplies and Services,Operational Furniture And Equipment,203,17/05/2022,2205-00560,0.00,259.00,R,AJM FIXINGS & POWER TOOLS LTD,No
Http://opendatacommunities.org/id/metropolitan-district-council/leeds,Leeds City Council,31/05/2022,Resources,Leeds Building Services,Supplies and Services,Operational Furniture And Equipment,203,17/05/2022,2205-00561,0.00,359.16,R,AJM FIXINGS & POWER TOOLS LTD,No
Http://opendatacommunities.org/id/metropolitan-district-council/leeds,Leeds City Council,31/05/2022,Resources,Leeds Building Services,Supplies and Services,Operational Furniture And Equipment,203,17/05/2022,2205-00562,0.00,260.00,R,AJM FIXINGS & POWER TOOLS LTD,No
Http://opendatacommunities.org/id/metropolitan-district-council/leeds,Leeds City Council,31/05/2022,Resources,Leeds Building Services,Supplies and Services,Operational Furniture And Equipment,203,17/05/2022,2205-00563,0.00,660.16,R,AJM FIXINGS & POWER TOOLS LTD,No
Http://opendatacommunities.org/id/metropolitan-district-council/leeds,Leeds City Council,31/05/2022,Resources,Leeds Building Services,Supplies and Services,Operational Furniture And Equipment,203,17/05/2022,2205-00564,0.00,259.00,R,AJM FIXINGS & POWER TOOLS LTD,No
Http://opendatacommunities.org/id/metropolitan-district-council/leeds,Leeds City Council,31/05/2022,Resources,Leeds Building Services,Supplies and Services,Operational Furniture And Equipment,203,17/05/2022,2205-00565,0.00,519.00,R,AJM FIXINGS & POWER TOOLS LTD,No
Http://opendatacommunities.org/id/metropolitan-district-council/leeds,Leeds City Council,31/05/2022,Resources,Leeds Building Services,Supplies and Services,Operational Furniture And Equipment,203,19/05/2022,2205-00566,0.00,253.29,R,AJM FIXINGS & POWER TOOLS LTD,No
Http://opendatacommunities.org/id/metropolitan-district-council/leeds,Leeds City Council,31/05/2022,Resources,Leeds Building Services,Supplies and Services,Operational Furniture And Equipment,203,19/05/2022,2205-00567,0.00,55.00,R,AJM FIXINGS & POWER TOOLS LTD,No
Http://opendatacommunities.org/id/metropolitan-district-council/leeds,Leeds City Council,31/05/2022,Resources,Leeds Building Services,Supplies and Services,Operational Furniture And Equipment,203,20/05/2022,2205-00568,0.00,87.50,R,AJM FIXINGS & POWER TOOLS LTD,No
Http://opendatacommunities.org/id/metropolitan-district-council/leeds,Leeds City Council,31/05/2022,Resources,Leeds Building Services,Supplies and Services,Operational Furniture And Equipment,203,20/05/2022,2205-00569,0.00,134.16,R,AJM FIXINGS & POWER TOOLS LTD,No
Http://opendatacommunities.org/id/metropolitan-district-council/leeds,Leeds City Council,31/05/2022,Resources,Leeds Building Services,Supplies and Services,Operational Furniture And Equipment,203,20/05/2022,2205-00570,0.00,467.72,R,AJM FIXINGS & POWER TOOLS LTD,No
Http://opendatacommunities.org/id/metropolitan-district-council/leeds,Leeds City Council,31/05/2022,Resources,Leeds Building Services,Supplies and Services,Operational Furniture And Equipment,203,23/05/2022,2205-00571,0.00,482.50,R,AJM FIXINGS & POWER TOOLS LTD,No
Http://opendatacommunities.org/id/metropolitan-district-council/leeds,Leeds City Council,31/05/2022,Resources,Leeds Building Services,Supplies and Services,Operational Furniture And Equipment,203,23/05/2022,2205-00572,0.00,359.00,R,AJM FIXINGS & POWER TOOLS LTD,No
Http://opendatacommunities.org/id/metropolitan-district-council/leeds,Leeds City Council,31/05/2022,Resources,Leeds Building Services,Supplies and Services,Operational Furniture And Equipment,203,26/05/2022,2205-00573,0.00,62.49,R,AJM FIXINGS & POWER TOOLS LTD,No
Http://opendatacommunities.org/id/metropolitan-district-council/leeds,Leeds City Council,31/05/2022,Resources,Leeds Building Services,Supplies and Services,Operational Furniture And Equipment,203,26/05/2022,2205-00574,0.00,47.90,R,AJM FIXINGS & POWER TOOLS LTD,No
Http://opendatacommunities.org/id/metropolitan-district-council/leeds,Leeds City Council,31/05/2022,Resources,Leeds Building Services,Supplies and Services,Operational Furniture And Equipment,203,31/05/2022,2205-00575,0.00,521.00,R,AJM FIXINGS & POWER TOOLS LTD,No
Http://opendatacommunities.org/id/metropolitan-district-council/leeds,Leeds City Council,31/05/2022,Resources,Leeds Building Services,Supplies and Services,Operational Furniture And Equipment,203,31/05/2022,2205-00576,0.00,1867.43,R,AJM FIXINGS & POWER TOOLS LTD,No
Http://opendatacommunities.org/id/metropolitan-district-council/leeds,Leeds City Council,31/05/2022,Resources,Leeds Building Services,Supplies and Services,Operational Furniture And Equipment,203,31/05/2022,2205-00577,0.00,359.16,R,AJM FIXINGS & POWER TOOLS LTD,No
Http://opendatacommunities.org/id/metropolitan-district-council/leeds,Leeds City Council,31/05/2022,Resources,Leeds Building Services,Supplies and Services,Operational Furniture And Equipment,203,31/05/2022,2205-00578,0.00,259.00,R,AJM FIXINGS & POWER TOOLS LTD,No
Http://opendatacommunities.org/id/metropolitan-district-council/leeds,Leeds City Council,31/05/2022,Resources,Leeds Building Services,Supplies and Services,Operational Furniture And Equipment,203,31/05/2022,2205-00579,0.00,67.08,R,AJM FIXINGS & POWER TOOLS LTD,No
Http://opendatacommunities.org/id/metropolitan-district-council/leeds,Leeds City Council,31/05/2022,Resources,Leeds Building Services,Supplies and Services,Operational Materials,205,17/05/2022,2205-00580,0.00,134.16,R,AJM FIXINGS & POWER TOOLS LTD,No
Http://opendatacommunities.org/id/metropolitan-district-council/leeds,Leeds City Council,31/05/2022,Resources,Leeds Building Services,Supplies and Services,Operational Materials,205,17/05/2022,2205-00581,0.00,404.30,R,AJM FIXINGS & POWER TOOLS LTD,No
Http://opendatacommunities.org/id/metropolitan-district-council/leeds,Leeds City Council,31/05/2022,Resources,Leeds Building Services,Supplies and Services,Operational Materials,205,17/05/2022,2205-00582,0.00,231.00,R,AJM FIXINGS & POWER TOOLS LTD,No
Http://opendatacommunities.org/id/metropolitan-district-council/leeds,Leeds City Council,31/05/2022,Resources,Leeds Building Services,Supplies and Services,Operational Materials,205,17/05/2022,2205-00583,0.00,36.14,R,AJM FIXINGS & POWER TOOLS LTD,No
Http://opendatacommunities.org/id/metropolitan-district-council/leeds,Leeds City Council,31/05/2022,Resources,Leeds Building Services,Supplies and Services,Operational Materials,205,23/05/2022,2205-00584,0.00,253.29,R,AJM FIXINGS & POWER TOOLS LTD,No
Http://opendatacommunities.org/id/metropolitan-district-council/leeds,Leeds City Council,31/05/2022,Resources,Leeds Building Services,Supplies and Services,Operational Materials,205,17/05/2022,2205-00585,0.00,179.50,R,AJM FIXINGS & POWER TOOLS LTD,No
Http://opendatacommunities.org/id/metropolitan-district-council/leeds,Leeds City Council,31/05/2022,Resources,Leeds Building Services,Supplies and Services,Operational Materials,205,17/05/2022,2205-00586,0.00,277.50,R,AJM FIXINGS & POWER TOOLS LTD,No
Http://opendatacommunities.org/id/metropolitan-district-council/leeds,Leeds City Council,31/05/2022,Resources,Leeds Building Services,Supplies and Services,Operational Materials,205,17/05/2022,2205-00587,0.00,12.48,R,AJM FIXINGS & POWER TOOLS LTD,No
Http://opendatacommunities.org/id/metropolitan-district-council/leeds,Leeds City Council,31/05/2022,Resources,Leeds Building Services,Supplies and Services,Operational Materials,205,17/05/2022,2205-00588,0.00,95.50,R,AJM FIXINGS & POWER TOOLS LTD,No
Http://opendatacommunities.org/id/metropolitan-district-council/leeds,Leeds City Council,31/05/2022,Resources,Leeds Building Services,Supplies and Services,Operational Materials,205,31/05/2022,2205-00589,0.00,170.00,R,AJM FIXINGS & POWER TOOLS LTD,No
Http://opendatacommunities.org/id/metropolitan-district-council/leeds,Leeds City Council,31/05/2022,Children and Families,Social Care,Supplies and Services,General Amenity For Clients/Residents,285,19/05/2022,2205-00590,0.00,20.00,R,REDACTED PERSONAL DATA,No
Http://opendatacommunities.org/id/metropolitan-district-council/leeds,Leeds City Council,31/05/2022,Children and Families,Social Care,Transport,Public Transport Expenses,310,19/05/2022,2205-00591,0.00,16.00,R,REDACTED PERSONAL DATA,No
Http://opendatacommunities.org/id/metropolitan-district-council/leeds,Leeds City Council,31/05/2022,Communities Housing and Environment,Elections Licensing and Registration,External Income,Admissions Booking Fees & Ticket Sales,933,05/05/2022,2205-00592,0.00,245.00,R,REDACTED PERSONAL DATA,No
Http://opendatacommunities.org/id/metropolitan-district-council/leeds,Leeds City Council,31/05/2022,Communities Housing and Environment,Strategic Housing Partnership & Support,Supplies and Services,Other Hired And Contracted Services,265,03/05/2022,2205-00593,0.00,600.00,R,Akinbiyi Olunloyo,No
Http://opendatacommunities.org/id/metropolitan-district-council/leeds,Leeds City Council,31/05/2022,Communities Housing and Environment,Strategic Housing Partnership & Support,Capital,CONSTRUCTION,3,06/05/2022,2205-00594,0.00,10000.00,C,AKR Construction Ltd,No
Http://opendatacommunities.org/id/metropolitan-district-council/leeds,Leeds City Council,31/05/2022,Communities Housing and Environment,Strategic Housing Partnership & Support,Capital,CONSTRUCTION,3,19/05/2022,2205-00595,0.00,8000.00,C,AKR Construction Ltd,No
Http://opendatacommunities.org/id/metropolitan-district-council/leeds,Leeds City Council,31/05/2022,Children and Families,Social Care,Agency Payments,Allowances,546,13/05/2022,2205-00596,0.00,100.00,R,REDACTED PERSONAL DATA,No
Http://opendatacommunities.org/id/metropolitan-district-council/leeds,Leeds City Council,31/05/2022,Resources,Commercial Services,Supplies and Services,Compensation Claims,200,16/05/2022,2205-00597,0.00,1920.00,R,REDACTED PERSONAL DATA,No
Http://opendatacommunities.org/id/metropolitan-district-council/leeds,Leeds City Council,31/05/2022,City Development,Libraries Arts & Heritage,Supplies and Services,Other Hired And Contracted Services,265,27/05/2022,2205-00598,0.00,101.00,R,ALAA Enterprises,No
Http://opendatacommunities.org/id/metropolitan-district-council/leeds,Leeds City Council,31/05/2022,Resources,Human Resources,Supplies and Services,Other Hired And Contracted Services,265,28/04/2022,2205-00599,0.00,66.67,R,Alan Brown Flowers,Yes
Http://opendatacommunities.org/id/metropolitan-district-council/leeds,Leeds City Council,31/05/2022,Children and Families,Social Care,Agency Payments,Services Rendered By Other Organisations,511,06/05/2022,2205-00600,0.00,372.84,R,REDACTED PERSONAL DATA,No
Http://opendatacommunities.org/id/metropolitan-district-council/leeds,Leeds City Council,31/05/2022,Children and Families,Social Care,Appropriations,Leaving Care Allowances,634,06/05/2022,2205-00601,0.00,665.00,R,REDACTED PERSONAL DATA,No
Http://opendatacommunities.org/id/metropolitan-district-council/leeds,Leeds City Council,31/05/2022,City Development,Employment & Skills,Agency Payments,Contributions To Partnerships,544,27/05/2022,2205-00602,0.00,746.52,R,Al-Bashir Academy Limited,No
Http://opendatacommunities.org/id/metropolitan-district-council/leeds,Leeds City Council,31/05/2022,Communities Housing and Environment,Customer Access,Supplies and Services,Grant Related Expenditure,290,07/04/2022,2205-00603,0.00,13.02,R,Aldi,Yes
Http://opendatacommunities.org/id/metropolitan-district-council/leeds,Leeds City Council,31/05/2022,Communities Housing and Environment,Customer Access,Supplies and Services,Grant Related Expenditure,290,11/04/2022,2205-00604,0.00,3.32,R,Aldi,Yes
Http://opendatacommunities.org/id/metropolitan-district-council/leeds,Leeds City Council,31/05/2022,Communities Housing and Environment,Parks and Countryside,Supplies and Services,Food & Drink,231,06/04/2022,2205-00605,0.00,11.54,R,Aldi,Yes
Http://opendatacommunities.org/id/metropolitan-district-council/leeds,Leeds City Council,31/05/2022,Children and Families,Social Care,Supplies and Services,Operational Materials,205,07/04/2022,2205-00606,0.00,10.53,R,Aldi 103 779,Yes
Http://opendatacommunities.org/id/metropolitan-district-council/leeds,Leeds City Council,31/05/2022,Children and Families,Social Care,Supplies and Services,Food & Drink,231,23/04/2022,2205-00607,0.00,12.86,R,Aldi 49 779,Yes
Http://opendatacommunities.org/id/metropolitan-district-council/leeds,Leeds City Council,31/05/2022,Children and Families,Social Care,Supplies and Services,Food & Drink,231,26/04/2022,2205-00608,0.00,24.60,R,Aldi 49 779,Yes
Http://opendatacommunities.org/id/metropolitan-district-council/leeds,Leeds City Council,31/05/2022,Children and Families,Social Care,Supplies and Services,Food & Drink,231,08/04/2022,2205-00609,0.00,10.95,R,Aldi 5 779,Yes
Http://opendatacommunities.org/id/metropolitan-district-council/leeds,Leeds City Council,31/05/2022,Children and Families,Social Care,Supplies and Services,Food & Drink,231,23/04/2022,2205-00610,0.00,3.96,R,Aldi 71 779,Yes
Http://opendatacommunities.org/id/metropolitan-district-council/leeds,Leeds City Council,31/05/2022,Children and Families,Social Care,Agency Payments,Section 17,551,06/04/2022,2205-00611,0.00,13.36,R,Aldi 71 779,Yes
Http://opendatacommunities.org/id/metropolitan-district-council/leeds,Leeds City Council,31/05/2022,Children and Families,Social Care,Appropriations,Leaving Care Allowances,634,01/04/2022,2205-00612,0.00,17.32,R,Aldi 71 779,Yes
Http://opendatacommunities.org/id/metropolitan-district-council/leeds,Leeds City Council,31/05/2022,Children and Families,Social Care,Appropriations,Leaving Care Allowances,634,12/04/2022,2205-00613,0.00,16.12,R,Aldi 71 779,Yes
Http://opendatacommunities.org/id/metropolitan-district-council/leeds,Leeds City Council,31/05/2022,Children and Families,Social Care,Appropriations,Leaving Care Allowances,634,12/04/2022,2205-00614,0.00,9.75,R,Aldi 71 779,Yes
Http://opendatacommunities.org/id/metropolitan-district-council/leeds,Leeds City Council,31/05/2022,City Development,Libraries Arts & Heritage,Supplies and Services,Food & Drink,231,11/04/2022,2205-00615,0.00,80.20,R,Aldi 774 003,Yes
Http://opendatacommunities.org/id/metropolitan-district-council/leeds,Leeds City Council,31/05/2022,Adults and Health,Services For Older People - 65 And Over,Premises,General Maintenance,104,27/04/2022,2205-00616,0.00,41.32,R,Aldi 779-126,Yes
Http://opendatacommunities.org/id/metropolitan-district-council/leeds,Leeds City Council,31/05/2022,Adults and Health,Services For Older People - 65 And Over,Supplies and Services,Operational Materials,205,13/04/2022,2205-00617,0.00,37.37,R,Aldi 779-126,Yes
Http://opendatacommunities.org/id/metropolitan-district-council/leeds,Leeds City Council,31/05/2022,Adults and Health,Services For Older People - 65 And Over,Supplies and Services,Operational Materials,205,14/04/2022,2205-00618,0.00,29.70,R,Aldi 779-126,Yes
Http://opendatacommunities.org/id/metropolitan-district-council/leeds,Leeds City Council,31/05/2022,Communities Housing and Environment,Customer Access,Supplies and Services,Office Consumables,210,10/04/2022,2205-00619,0.00,5.46,R,Aldi 779148,Yes
Http://opendatacommunities.org/id/metropolitan-district-council/leeds,Leeds City Council,31/05/2022,Children and Families,Social Care,Supplies and Services,Food & Drink,231,06/04/2022,2205-00620,0.00,17.27,R,Aldi 85 779,Yes
Http://opendatacommunities.org/id/metropolitan-district-council/leeds,Leeds City Council,31/05/2022,Children and Families,Social Care,Supplies and Services,Food & Drink,231,11/04/2022,2205-00621,0.00,215.88,R,Aldi 85 779,Yes
Http://opendatacommunities.org/id/metropolitan-district-council/leeds,Leeds City Council,31/05/2022,Children and Families,Social Care,Supplies and Services,Food & Drink,231,12/04/2022,2205-00622,0.00,28.42,R,Aldi 85 779,Yes
Http://opendatacommunities.org/id/metropolitan-district-council/leeds,Leeds City Council,31/05/2022,Children and Families,Social Care,Supplies and Services,Food & Drink,231,20/04/2022,2205-00623,0.00,12.14,R,Aldi 85 779,Yes
Http://opendatacommunities.org/id/metropolitan-district-council/leeds,Leeds City Council,31/05/2022,Children and Families,Social Care,Agency Payments,Section 17,551,22/04/2022,2205-00624,0.00,17.36,R,Aldi 85 779,Yes
Http://opendatacommunities.org/id/metropolitan-district-council/leeds,Leeds City Council,31/05/2022,Children and Families,Social Care,Supplies and Services,Food & Drink,231,03/04/2022,2205-00625,0.00,148.76,R,Aldi 89 779,Yes
Http://opendatacommunities.org/id/metropolitan-district-council/leeds,Leeds City Council,31/05/2022,Children and Families,Social Care,Supplies and Services,Food & Drink,231,04/04/2022,2205-00626,0.00,26.44,R,Aldi 89 779,Yes
Http://opendatacommunities.org/id/metropolitan-district-council/leeds,Leeds City Council,31/05/2022,Children and Families,Social Care,Supplies and Services,Food & Drink,231,04/04/2022,2205-00627,0.00,25.00,R,Aldi 89 779,Yes
Http://opendatacommunities.org/id/metropolitan-district-council/leeds,Leeds City Council,31/05/2022,Children and Families,Social Care,Supplies and Services,Teaching Materials,202,05/04/2022,2205-00628,0.00,3.28,R,Aldi Stores,Yes
Http://opendatacommunities.org/id/metropolitan-district-council/leeds,Leeds City Council,31/05/2022,Children and Families,Social Care,Appropriations,Leaving Care Allowances,634,07/04/2022,2205-00629,0.00,16.97,R,Aldi Stores,Yes
Http://opendatacommunities.org/id/metropolitan-district-council/leeds,Leeds City Council,31/05/2022,Children and Families,Social Care,Appropriations,Leaving Care Allowances,634,21/04/2022,2205-00630,0.00,15.00,R,Aldi Stores,Yes
Http://opendatacommunities.org/id/metropolitan-district-council/leeds,Leeds City Council,31/05/2022,Children and Families,Social Care,Agency Payments,Section 17,551,13/05/2022,2205-00631,0.00,50.00,R,REDACTED PERSONAL DATA,No
Http://opendatacommunities.org/id/metropolitan-district-council/leeds,Leeds City Council,31/05/2022,Children and Families,Social Care,Agency Payments,Section 17,551,06/05/2022,2205-00632,0.00,50.00,R,REDACTED PERSONAL DATA,No
Http://opendatacommunities.org/id/metropolitan-district-council/leeds,Leeds City Council,31/05/2022,Communities Housing and Environment,Customer Access,Supplies and Services,Bought In Professional Services,277,25/05/2022,2205-00633,0.00,69.00,R,Alena Zueva,No
Http://opendatacommunities.org/id/metropolitan-district-council/leeds,Leeds City Council,31/05/2022,Children and Families,Social Care,Supplies and Services,General Amenity For Clients/Residents,285,06/05/2022,2205-00634,0.00,12.48,R,REDACTED PERSONAL DATA,No
Http://opendatacommunities.org/id/metropolitan-district-council/leeds,Leeds City Council,31/05/2022,City Development,Recreation,External Income,Sporting & Other Recreational Fees,928,24/05/2022,2205-00635,0.00,63.80,R,REDACTED PERSONAL DATA,No
Http://opendatacommunities.org/id/metropolitan-district-council/leeds,Leeds City Council,31/05/2022,Resources,Commercial Services,Supplies and Services,Other Hired And Contracted Services,265,25/05/2022,2205-00636,0.00,250.00,R,ALEX WAGG,No
Http://opendatacommunities.org/id/metropolitan-district-council/leeds,Leeds City Council,31/05/2022,Resources,Commercial Services,Supplies and Services,Other Hired And Contracted Services,265,25/05/2022,2205-00637,0.00,260.00,R,ALEX WAGG,No
Http://opendatacommunities.org/id/metropolitan-district-council/leeds,Leeds City Council,31/05/2022,Resources,Commercial Services,Supplies and Services,Other Hired And Contracted Services,265,25/05/2022,2205-00638,0.00,120.00,R,ALEX WAGG,No
Http://opendatacommunities.org/id/metropolitan-district-council/leeds,Leeds City Council,31/05/2022,Resources,Sustainable Energy & Air Quality,Supplies and Services,Other Hired And Contracted Services,265,06/05/2022,2205-00639,0.00,70.00,R,ALEX WAGG,No
Http://opendatacommunities.org/id/metropolitan-district-council/leeds,Leeds City Council,31/05/2022,Resources,Sustainable Energy & Air Quality,Supplies and Services,Other Hired And Contracted Services,265,06/05/2022,2205-00640,0.00,70.00,R,ALEX WAGG,No
Http://opendatacommunities.org/id/metropolitan-district-council/leeds,Leeds City Council,31/05/2022,Resources,Sustainable Energy & Air Quality,Supplies and Services,Other Hired And Contracted Services,265,27/05/2022,2205-00641,0.00,70.00,R,ALEX WAGG,No
Http://opendatacommunities.org/id/metropolitan-district-council/leeds,Leeds City Council,31/05/2022,Resources,Sustainable Energy & Air Quality,Supplies and Services,Other Hired And Contracted Services,265,27/05/2022,2205-00642,0.00,70.00,R,ALEX WAGG,No
Http://opendatacommunities.org/id/metropolitan-district-council/leeds,Leeds City Council,31/05/2022,Resources,Sustainable Energy & Air Quality,Supplies and Services,Other Hired And Contracted Services,265,27/05/2022,2205-00643,0.00,70.00,R,ALEX WAGG,No
Http://opendatacommunities.org/id/metropolitan-district-council/leeds,Leeds City Council,31/05/2022,Resources,Sustainable Energy & Air Quality,Supplies and Services,Other Hired And Contracted Services,265,27/05/2022,2205-00644,0.00,70.00,R,ALEX WAGG,No
Http://opendatacommunities.org/id/metropolitan-district-council/leeds,Leeds City Council,31/05/2022,Resources,Sustainable Energy & Air Quality,Supplies and Services,Other Hired And Contracted Services,265,27/05/2022,2205-00645,0.00,70.00,R,ALEX WAGG,No
Http://opendatacommunities.org/id/metropolitan-district-council/leeds,Leeds City Council,31/05/2022,Resources,Sustainable Energy & Air Quality,Supplies and Services,Other Hired And Contracted Services,265,06/05/2022,2205-00646,0.00,70.00,R,ALEX WAGG,No
Http://opendatacommunities.org/id/metropolitan-district-council/leeds,Leeds City Council,31/05/2022,Resources,Sustainable Energy & Air Quality,Supplies and Services,Other Hired And Contracted Services,265,06/05/2022,2205-00647,0.00,70.00,R,ALEX WAGG,No
Http://opendatacommunities.org/id/metropolitan-district-council/leeds,Leeds City Council,31/05/2022,Resources,Sustainable Energy & Air Quality,Supplies and Services,Other Hired And Contracted Services,265,06/05/2022,2205-00648,0.00,70.00,R,ALEX WAGG,No
Http://opendatacommunities.org/id/metropolitan-district-council/leeds,Leeds City Council,31/05/2022,Resources,Sustainable Energy & Air Quality,Supplies and Services,Other Hired And Contracted Services,265,06/05/2022,2205-00649,0.00,70.00,R,ALEX WAGG,No
Http://opendatacommunities.org/id/metropolitan-district-council/leeds,Leeds City Council,31/05/2022,Resources,Sustainable Energy & Air Quality,Supplies and Services,Other Hired And Contracted Services,265,27/05/2022,2205-00650,0.00,70.00,R,ALEX WAGG,No
Http://opendatacommunities.org/id/metropolitan-district-council/leeds,Leeds City Council,31/05/2022,Resources,Sustainable Energy & Air Quality,Supplies and Services,Other Hired And Contracted Services,265,27/05/2022,2205-00651,0.00,70.00,R,ALEX WAGG,No
Http://opendatacommunities.org/id/metropolitan-district-council/leeds,Leeds City Council,31/05/2022,Resources,Sustainable Energy & Air Quality,Supplies and Services,Other Hired And Contracted Services,265,27/05/2022,2205-00652,0.00,70.00,R,ALEX WAGG,No
Http://opendatacommunities.org/id/metropolitan-district-council/leeds,Leeds City Council,31/05/2022,Resources,Sustainable Energy & Air Quality,Supplies and Services,Other Hired And Contracted Services,265,27/05/2022,2205-00653,0.00,70.00,R,ALEX WAGG,No
Http://opendatacommunities.org/id/metropolitan-district-council/leeds,Leeds City Council,31/05/2022,Resources,Sustainable Energy & Air Quality,Supplies and Services,Other Hired And Contracted Services,265,27/05/2022,2205-00654,0.00,70.00,R,ALEX WAGG,No
Http://opendatacommunities.org/id/metropolitan-district-council/leeds,Leeds City Council,31/05/2022,Resources,Sustainable Energy & Air Quality,Supplies and Services,Other Hired And Contracted Services,265,27/05/2022,2205-00655,0.00,70.00,R,ALEX WAGG,No
Http://opendatacommunities.org/id/metropolitan-district-council/leeds,Leeds City Council,31/05/2022,Adults and Health,Social Services Support Services,Employees,Training & Development,70,03/05/2022,2205-00656,0.00,13.00,R,REDACTED PERSONAL DATA,No
Http://opendatacommunities.org/id/metropolitan-district-council/leeds,Leeds City Council,31/05/2022,Adults and Health,Assessment And Care Management,Agency Payments,Residential,580,25/05/2022,2205-00657,0.00,1839.63,R,ALEXANDER RESIDENTIAL HOME,No
Http://opendatacommunities.org/id/metropolitan-district-council/leeds,Leeds City Council,31/05/2022,Adults and Health,Services For Older People - 65 And Over,Agency Payments,Residential Care Dementia,571,25/05/2022,2205-00658,0.00,13406.85,R,ALEXANDER RESIDENTIAL HOME,No
Http://opendatacommunities.org/id/metropolitan-district-council/leeds,Leeds City Council,31/05/2022,Adults and Health,Services For Older People - 65 And Over,Agency Payments,Residential,580,25/05/2022,2205-00659,0.00,18262.38,R,ALEXANDER RESIDENTIAL HOME,No
Http://opendatacommunities.org/id/metropolitan-district-council/leeds,Leeds City Council,31/05/2022,Children and Families,Social Care,Supplies and Services,General Amenity For Clients/Residents,285,11/05/2022,2205-00660,0.00,15.96,R,REDACTED PERSONAL DATA,No
Http://opendatacommunities.org/id/metropolitan-district-council/leeds,Leeds City Council,31/05/2022,Children and Families,Social Care,Transport,Public Transport Expenses,310,11/05/2022,2205-00661,0.00,32.00,R,REDACTED PERSONAL DATA,No
Http://opendatacommunities.org/id/metropolitan-district-council/leeds,Leeds City Council,31/05/2022,Communities Housing and Environment,Customer Access,Supplies and Services,Bought In Professional Services,277,05/05/2022,2205-00662,0.00,36.00,R,Alexandra Costenco,No
Http://opendatacommunities.org/id/metropolitan-district-council/leeds,Leeds City Council,31/05/2022,Communities Housing and Environment,Customer Access,Supplies and Services,Bought In Professional Services,277,18/05/2022,2205-00663,0.00,36.00,R,Alexandra Costenco,No
Http://opendatacommunities.org/id/metropolitan-district-council/leeds,Leeds City Council,31/05/2022,Communities Housing and Environment,Customer Access,Supplies and Services,Bought In Professional Services,277,25/05/2022,2205-00664,0.00,18.00,R,Alexandra Costenco,No
Http://opendatacommunities.org/id/metropolitan-district-council/leeds,Leeds City Council,31/05/2022,Communities Housing and Environment,Customer Access,Supplies and Services,Bought In Professional Services,277,25/05/2022,2205-00665,0.00,18.00,R,Alexandra Costenco,No
Http://opendatacommunities.org/id/metropolitan-district-council/leeds,Leeds City Council,31/05/2022,Communities Housing and Environment,Customer Access,Supplies and Services,Bought In Professional Services,277,18/05/2022,2205-00666,0.00,18.00,R,Alexandra Costenco,No
Http://opendatacommunities.org/id/metropolitan-district-council/leeds,Leeds City Council,31/05/2022,Communities Housing and Environment,Customer Access,Supplies and Services,Bought In Professional Services,277,25/05/2022,2205-00667,0.00,18.00,R,Alexandra Costenco,No
Http://opendatacommunities.org/id/metropolitan-district-council/leeds,Leeds City Council,31/05/2022,Adults and Health,Services For Older People - 65 And Over,Agency Payments,Residential Care Dementia,571,25/05/2022,2205-00668,0.00,6738.60,R,ALEXANDRA COURT,No
Http://opendatacommunities.org/id/metropolitan-district-council/leeds,Leeds City Council,31/05/2022,Adults and Health,Services For Older People - 65 And Over,Agency Payments,Residential,580,25/05/2022,2205-00669,0.00,9307.80,R,ALEXANDRA COURT,No
Http://opendatacommunities.org/id/metropolitan-district-council/leeds,Leeds City Council,31/05/2022,Children and Families,Social Care,Agency Payments,Services Rendered By Other Organisations,511,06/05/2022,2205-00670,0.00,2097.23,R,REDACTED PERSONAL DATA,No
Http://opendatacommunities.org/id/metropolitan-district-council/leeds,Leeds City Council,31/05/2022,Adults and Health,Services For Older People - 65 And Over,Supplies and Services,Clothing & Uniforms,241,13/04/2022,2205-00671,0.00,137.28,R,Alexandra Website,Yes
Http://opendatacommunities.org/id/metropolitan-district-council/leeds,Leeds City Council,31/05/2022,Children and Families,Social Care,Agency Payments,Contact,548,13/05/2022,2205-00672,0.00,20.00,R,REDACTED PERSONAL DATA,No
Http://opendatacommunities.org/id/metropolitan-district-council/leeds,Leeds City Council,31/05/2022,Children and Families,Social Care,Agency Payments,Contact,548,27/05/2022,2205-00673,0.00,20.00,R,REDACTED PERSONAL DATA,No
Http://opendatacommunities.org/id/metropolitan-district-council/leeds,Leeds City Council,31/05/2022,Children and Families,Social Care,Agency Payments,Contact,548,06/05/2022,2205-00674,0.00,20.00,R,REDACTED PERSONAL DATA,No
Http://opendatacommunities.org/id/metropolitan-district-council/leeds,Leeds City Council,31/05/2022,Children and Families,Social Care,Agency Payments,Contact,548,20/05/2022,2205-00675,0.00,20.00,R,REDACTED PERSONAL DATA,No
Http://opendatacommunities.org/id/metropolitan-district-council/leeds,Leeds City Council,31/05/2022,Communities Housing and Environment,Parks and Countryside,Supplies and Services,Other Hired And Contracted Services,265,20/05/2022,2205-00676,0.00,1845.00,R,Alfred Bagnall & Sons (Leeds) Ltd,No
Http://opendatacommunities.org/id/metropolitan-district-council/leeds,Leeds City Council,31/05/2022,Communities Housing and Environment,Parks and Countryside,Supplies and Services,Other Hired And Contracted Services,265,27/05/2022,2205-00677,0.00,3555.00,R,Alfred Bagnall & Sons (Leeds) Ltd,No
Http://opendatacommunities.org/id/metropolitan-district-council/leeds,Leeds City Council,31/05/2022,Resources,Leeds Building Services,Supplies and Services,Other Hired And Contracted Services,265,06/05/2022,2205-00678,0.00,209.92,R,Alfred Bagnall & Sons (Leeds) Ltd,No
Http://opendatacommunities.org/id/metropolitan-district-council/leeds,Leeds City Council,31/05/2022,Resources,Leeds Building Services,Supplies and Services,Other Hired And Contracted Services,265,20/05/2022,2205-00679,0.00,4370.00,R,Alfred Bagnall & Sons (Leeds) Ltd,No
Http://opendatacommunities.org/id/metropolitan-district-council/leeds,Leeds City Council,31/05/2022,Resources,Leeds Building Services,Supplies and Services,Other Hired And Contracted Services,265,25/05/2022,2205-00680,0.00,350.00,R,Alfred Bagnall & Sons (Leeds) Ltd,No
Http://opendatacommunities.org/id/metropolitan-district-council/leeds,Leeds City Council,31/05/2022,Resources,Leeds Building Services,Supplies and Services,Other Hired And Contracted Services,265,06/05/2022,2205-00681,0.00,320.00,R,Alfred Bagnall & Sons (Leeds) Ltd,No
Http://opendatacommunities.org/id/metropolitan-district-council/leeds,Leeds City Council,31/05/2022,Resources,Leeds Building Services,Supplies and Services,Other Hired And Contracted Services,265,06/05/2022,2205-00682,0.00,1257.34,R,Alfred Bagnall & Sons (Leeds) Ltd,No
Http://opendatacommunities.org/id/metropolitan-district-council/leeds,Leeds City Council,31/05/2022,Resources,Leeds Building Services,Supplies and Services,Other Hired And Contracted Services,265,26/05/2022,2205-00683,0.00,5913.32,R,Alfred Bagnall & Sons (Leeds) Ltd,No
Http://opendatacommunities.org/id/metropolitan-district-council/leeds,Leeds City Council,31/05/2022,City Development,Libraries Arts & Heritage,Supplies and Services,Computer Software & Equipment,214,02/04/2022,2205-00684,0.00,413.62,R,Alg Leefr197585202204,Yes
Http://opendatacommunities.org/id/metropolitan-district-council/leeds,Leeds City Council,31/05/2022,Communities Housing and Environment,Strategic Housing Partnership & Support,Supplies and Services,Other Hired And Contracted Services,265,10/05/2022,2205-00685,0.00,1400.00,R,Ali Arshad,No
Http://opendatacommunities.org/id/metropolitan-district-council/leeds,Leeds City Council,31/05/2022,Communities Housing and Environment,Customer Access,Supplies and Services,Bought In Professional Services,277,05/05/2022,2205-00686,0.00,18.00,R,Ali Pourakaberian,No
Http://opendatacommunities.org/id/metropolitan-district-council/leeds,Leeds City Council,31/05/2022,Communities Housing and Environment,Customer Access,Supplies and Services,Bought In Professional Services,277,05/05/2022,2205-00687,0.00,9.00,R,Ali Pourakaberian,No
Http://opendatacommunities.org/id/metropolitan-district-council/leeds,Leeds City Council,31/05/2022,Communities Housing and Environment,Customer Access,Supplies and Services,Bought In Professional Services,277,05/05/2022,2205-00688,0.00,18.00,R,Ali Pourakaberian,No
Http://opendatacommunities.org/id/metropolitan-district-council/leeds,Leeds City Council,31/05/2022,Communities Housing and Environment,Customer Access,Supplies and Services,Bought In Professional Services,277,11/05/2022,2205-00689,0.00,18.00,R,Ali Pourakaberian,No
Http://opendatacommunities.org/id/metropolitan-district-council/leeds,Leeds City Council,31/05/2022,Children and Families,Social Care,Appropriations,Leaving Care Allowances,634,09/05/2022,2205-00690,0.00,50.00,R,REDACTED PERSONAL DATA,No
Http://opendatacommunities.org/id/metropolitan-district-council/leeds,Leeds City Council,31/05/2022,Children and Families,Social Care,Appropriations,Leaving Care Allowances,634,14/04/2022,2205-00691,0.00,850.00,R,Alibaba Carpets Leeds Lim,Yes
Http://opendatacommunities.org/id/metropolitan-district-council/leeds,Leeds City Council,31/05/2022,City Development,Recreation,Supplies and Services,Bought In Professional Services,277,05/05/2022,2205-00692,0.00,100.00,R,Alice M Richardson,No
Http://opendatacommunities.org/id/metropolitan-district-council/leeds,Leeds City Council,31/05/2022,Communities Housing and Environment,Customer Access,Supplies and Services,Other Hired And Contracted Services,265,30/05/2022,2205-00693,0.00,77.00,R,REDACTED PERSONAL DATA,No
Http://opendatacommunities.org/id/metropolitan-district-council/leeds,Leeds City Council,31/05/2022,Children and Families,Social Care,Agency Payments,Contact,548,27/05/2022,2205-00694,0.00,10.40,R,REDACTED PERSONAL DATA,No
Http://opendatacommunities.org/id/metropolitan-district-council/leeds,Leeds City Council,31/05/2022,Children and Families,Social Care,Agency Payments,Contact,548,12/05/2022,2205-00695,0.00,20.80,R,REDACTED PERSONAL DATA,No
Http://opendatacommunities.org/id/metropolitan-district-council/leeds,Leeds City Council,31/05/2022,Children and Families,Social Care,Agency Payments,Contact,548,20/05/2022,2205-00696,0.00,10.40,R,REDACTED PERSONAL DATA,No
Http://opendatacommunities.org/id/metropolitan-district-council/leeds,Leeds City Council,31/05/2022,Children and Families,Social Care,Appropriations,Leaving Care Allowances,634,27/05/2022,2205-00697,0.00,40.00,R,REDACTED PERSONAL DATA,No
Http://opendatacommunities.org/id/metropolitan-district-council/leeds,Leeds City Council,31/05/2022,Children and Families,Social Care,Appropriations,Leaving Care Allowances,634,06/05/2022,2205-00698,0.00,40.00,R,REDACTED PERSONAL DATA,No
Http://opendatacommunities.org/id/metropolitan-district-council/leeds,Leeds City Council,31/05/2022,Children and Families,Social Care,Appropriations,Leaving Care Allowances,634,13/05/2022,2205-00699,0.00,40.00,R,REDACTED PERSONAL DATA,No
Http://opendatacommunities.org/id/metropolitan-district-council/leeds,Leeds City Council,31/05/2022,Children and Families,Social Care,Appropriations,Leaving Care Allowances,634,20/05/2022,2205-00700,0.00,40.00,R,REDACTED PERSONAL DATA,No
Http://opendatacommunities.org/id/metropolitan-district-council/leeds,Leeds City Council,31/05/2022,Children and Families,Social Care,Agency Payments,Services Rendered By Other Organisations,511,06/05/2022,2205-00701,0.00,372.84,R,REDACTED PERSONAL DATA,No
Http://opendatacommunities.org/id/metropolitan-district-council/leeds,Leeds City Council,31/05/2022,Children and Families,Social Care,Agency Payments,Contact,548,16/05/2022,2205-00702,0.00,9.20,R,REDACTED PERSONAL DATA,No
Http://opendatacommunities.org/id/metropolitan-district-council/leeds,Leeds City Council,31/05/2022,Children and Families,Social Care,Agency Payments, Direct Work,549,26/05/2022,2205-00703,0.00,7.38,R,REDACTED PERSONAL DATA,No
Http://opendatacommunities.org/id/metropolitan-district-council/leeds,Leeds City Council,31/05/2022,City Development,Recreation,External Income,Swimming Bath Charges,923,31/05/2022,2205-00704,0.00,312.20,R,REDACTED PERSONAL DATA,No
Http://opendatacommunities.org/id/metropolitan-district-council/leeds,Leeds City Council,31/05/2022,Strategic Landlord,Property and Contracts,Supplies and Services,Insurance Claims,248,25/05/2022,2205-00705,0.00,6250.00,R,Alison Law Solicitors,No
Http://opendatacommunities.org/id/metropolitan-district-council/leeds,Leeds City Council,31/05/2022,Strategic Landlord,Property and Contracts,Supplies and Services,Insurance Claims,248,25/05/2022,2205-00706,0.00,5000.00,R,Alison Law Solicitors,No
Http://opendatacommunities.org/id/metropolitan-district-council/leeds,Leeds City Council,31/05/2022,Strategic Landlord,Property and Contracts,Internal Recharges,Legal Disbursements,411,11/05/2022,2205-00707,0.00,762.44,R,Alison Law Solicitors,No
Http://opendatacommunities.org/id/metropolitan-district-council/leeds,Leeds City Council,31/05/2022,Strategic Landlord,Property and Contracts,Internal Recharges,Legal Disbursements,411,23/05/2022,2205-00708,0.00,800.00,R,Alison Law Solicitors,No
Http://opendatacommunities.org/id/metropolitan-district-council/leeds,Leeds City Council,31/05/2022,Strategic Landlord,Property and Contracts,Internal Recharges,Legal Disbursements,411,25/05/2022,2205-00709,0.00,1852.66,R,Alison Law Solicitors,No
Http://opendatacommunities.org/id/metropolitan-district-council/leeds,Leeds City Council,31/05/2022,Insurance,Insurance,Supplies and Services,Insurance Claims,248,26/05/2022,2205-00710,0.00,250.00,R,REDACTED PERSONAL DATA,No
Http://opendatacommunities.org/id/metropolitan-district-council/leeds,Leeds City Council,31/05/2022,Children and Families,Social Care,Appropriations,Leaving Care Allowances,634,20/05/2022,2205-00711,0.00,50.00,R,REDACTED PERSONAL DATA,No
Http://opendatacommunities.org/id/metropolitan-district-council/leeds,Leeds City Council,31/05/2022,Strategic Landlord,Housing Management,Supplies and Services,Grants To Voluntary Organisations,293,06/05/2022,2205-00712,0.00,8000.00,R,All Hallows Church,No
Http://opendatacommunities.org/id/metropolitan-district-council/leeds,Leeds City Council,31/05/2022,Communities Housing and Environment,Elections Licensing and Registration,Premises,Rents,141,18/05/2022,2205-00713,0.00,400.00,R,All Souls Church General Account,No
Http://opendatacommunities.org/id/metropolitan-district-council/leeds,Leeds City Council,31/05/2022,Children and Families,Social Care,Agency Payments,Services Rendered By Other Organisations,511,04/05/2022,2205-00714,0.00,1303.38,R,All Stars Childcare,No
Http://opendatacommunities.org/id/metropolitan-district-council/leeds,Leeds City Council,31/05/2022,Children and Families,Social Care,Agency Payments,Services Rendered By Other Organisations,511,06/05/2022,2205-00715,0.00,13297.96,R,All Stars Childcare,No
Http://opendatacommunities.org/id/metropolitan-district-council/leeds,Leeds City Council,31/05/2022,Children and Families,Social Care,External Income,Nursery Fees Income,926,05/05/2022,2205-00716,0.00,49.20,R,REDACTED PERSONAL DATA,No
Http://opendatacommunities.org/id/metropolitan-district-council/leeds,Leeds City Council as Accountable Body,31/05/2022,Social Services Pooled Budgets,Jcs For People With Learning Disabilitie,Agency Payments,Sheltered Accommodation,569,25/05/2022,2205-00717,0.00,20486.00,R,Allerton Avenue,No
Http://opendatacommunities.org/id/metropolitan-district-council/leeds,Leeds City Council,31/05/2022,Communities Housing and Environment,Parks and Countryside,Supplies and Services,Non-Recurring Grants,227,12/05/2022,2205-00718,0.00,1000.00,R,ALLERTON BYWATER PARISH COUNCIL,No
Http://opendatacommunities.org/id/metropolitan-district-council/leeds,Leeds City Council,31/05/2022,Adults and Health,Public Health,Agency Payments,Public Health Commissioned Services,526,03/05/2022,2205-00719,0.00,1808.12,R,Allerton Medical Centre,No
Http://opendatacommunities.org/id/metropolitan-district-council/leeds,Leeds City Council,31/05/2022,Adults and Health,Services For Older People - 65 And Over,Agency Payments,Nursing Care Dementia,574,25/05/2022,2205-00720,0.00,12061.76,R,ALLERTON PARK N H,No
Http://opendatacommunities.org/id/metropolitan-district-council/leeds,Leeds City Council,31/05/2022,Resources,Commercial Services,Supplies and Services,Operational Materials,205,03/05/2022,2205-00721,0.00,666.02,R,ALLIANCE DISPOSABLES LTD,No
Http://opendatacommunities.org/id/metropolitan-district-council/leeds,Leeds City Council,31/05/2022,Resources,Commercial Services,Supplies and Services,Operational Materials,205,13/05/2022,2205-00722,0.00,469.76,R,ALLIANCE DISPOSABLES LTD,No
Http://opendatacommunities.org/id/metropolitan-district-council/leeds,Leeds City Council,31/05/2022,Resources,Commercial Services,Supplies and Services,Operational Materials,205,19/05/2022,2205-00723,0.00,269.34,R,ALLIANCE DISPOSABLES LTD,No
Http://opendatacommunities.org/id/metropolitan-district-council/leeds,Leeds City Council,31/05/2022,Resources,Commercial Services,Supplies and Services,Operational Materials,205,20/05/2022,2205-00724,0.00,155.32,R,ALLIANCE DISPOSABLES LTD,No
Http://opendatacommunities.org/id/metropolitan-district-council/leeds,Leeds City Council,31/05/2022,Resources,Commercial Services,Supplies and Services,Operational Materials,205,20/05/2022,2205-00725,0.00,127.52,R,ALLIANCE DISPOSABLES LTD,No
Http://opendatacommunities.org/id/metropolitan-district-council/leeds,Leeds City Council,31/05/2022,Resources,Commercial Services,Supplies and Services,Operational Materials,205,20/05/2022,2205-00726,0.00,198.10,R,ALLIANCE DISPOSABLES LTD,No
Http://opendatacommunities.org/id/metropolitan-district-council/leeds,Leeds City Council,31/05/2022,Resources,Commercial Services,Supplies and Services,Operational Materials,205,25/05/2022,2205-00727,0.00,179.56,R,ALLIANCE DISPOSABLES LTD,No
Http://opendatacommunities.org/id/metropolitan-district-council/leeds,Leeds City Council,31/05/2022,Resources,Commercial Services,Supplies and Services,Operational Materials,205,25/05/2022,2205-00728,0.00,345.58,R,ALLIANCE DISPOSABLES LTD,No
Http://opendatacommunities.org/id/metropolitan-district-council/leeds,Leeds City Council,31/05/2022,Resources,Commercial Services,Supplies and Services,Operational Materials,205,27/05/2022,2205-00729,0.00,89.78,R,ALLIANCE DISPOSABLES LTD,No
Http://opendatacommunities.org/id/metropolitan-district-council/leeds,Leeds City Council,31/05/2022,Resources,Commercial Services,Supplies and Services,Operational Materials,205,27/05/2022,2205-00730,0.00,134.67,R,ALLIANCE DISPOSABLES LTD,No
Http://opendatacommunities.org/id/metropolitan-district-council/leeds,Leeds City Council,31/05/2022,Resources,Commercial Services,Supplies and Services,Operational Materials,205,27/05/2022,2205-00731,0.00,224.45,R,ALLIANCE DISPOSABLES LTD,No
Http://opendatacommunities.org/id/metropolitan-district-council/leeds,Leeds City Council,31/05/2022,Resources,Commercial Services,Supplies and Services,Operational Materials,205,06/05/2022,2205-00732,0.00,273.63,R,ALLIANCE DISPOSABLES LTD,No
Http://opendatacommunities.org/id/metropolitan-district-council/leeds,Leeds City Council,31/05/2022,Adults and Health,Services For Adults Under 65 Mental/Dis,Agency Payments,Home Care,568,11/05/2022,2205-00733,0.00,2006.68,R,Allied Healthcare,No
Http://opendatacommunities.org/id/metropolitan-district-council/leeds,Leeds City Council,31/05/2022,Adults and Health,Services For Older People - 65 And Over,Agency Payments,Home Care,568,11/05/2022,2205-00734,0.00,1578.24,R,Allied Healthcare,No
Http://opendatacommunities.org/id/metropolitan-district-council/leeds,Leeds City Council,31/05/2022,Adults and Health,Services For Older People - 65 And Over,Agency Payments,Home Care,568,11/05/2022,2205-00735,0.00,45799.06,R,Allied Healthcare,No
Http://opendatacommunities.org/id/metropolitan-district-council/leeds,Leeds City Council,31/05/2022,Adults and Health,Services For Older People - 65 And Over,Agency Payments,Home Care,568,18/05/2022,2205-00736,0.00,16.44,R,Allied Healthcare,No
Http://opendatacommunities.org/id/metropolitan-district-council/leeds,Leeds City Council,31/05/2022,Adults and Health,Services For Older People - 65 And Over,Agency Payments,HCAIT Community Support,575,11/05/2022,2205-00737,0.00,212.16,R,Allied Healthcare,No
Http://opendatacommunities.org/id/metropolitan-district-council/leeds,Leeds City Council,31/05/2022,Adults and Health,Services For Older People - 65 And Over,Agency Payments,HCAIT Other,577,11/05/2022,2205-00738,0.00,834.24,R,Allied Healthcare,No
Http://opendatacommunities.org/id/metropolitan-district-council/leeds,Leeds City Council,31/05/2022,Adults and Health,Services For Older People Under 65 P/Dis,Agency Payments,Home Care,568,11/05/2022,2205-00739,0.00,4599.81,R,Allied Healthcare,No
Http://opendatacommunities.org/id/metropolitan-district-council/leeds,Leeds City Council,31/05/2022,Adults and Health,Services For Older People Under 65 P/Dis,Agency Payments,Home Care,568,11/05/2022,2205-00740,0.00,526.08,R,Allied Healthcare,No
Http://opendatacommunities.org/id/metropolitan-district-council/leeds,Leeds City Council,31/05/2022,Adults and Health,Services For Older People Under 65 P/Dis,Agency Payments,HCAIT Community Support,575,11/05/2022,2205-00741,0.00,2943.72,R,Allied Healthcare,No
Http://opendatacommunities.org/id/metropolitan-district-council/leeds,Leeds City Council,31/05/2022,Adults and Health,Services For Older People Under 65 P/Dis,Agency Payments,HCAIT Community Support,575,11/05/2022,2205-00742,0.00,246.60,R,Allied Healthcare,No
Http://opendatacommunities.org/id/metropolitan-district-council/leeds,Leeds City Council as Accountable Body,31/05/2022,Social Services Pooled Budgets,Jcs For People With Learning Disabilitie,Agency Payments,Home Care,568,10/05/2022,2205-00743,0.00,1256.96,R,Allied Healthcare,No
Http://opendatacommunities.org/id/metropolitan-district-council/leeds,Leeds City Council as Accountable Body,31/05/2022,Social Services Pooled Budgets,Jcs For People With Learning Disabilitie,Agency Payments,Nursing Home - Physical Disabl,575,11/05/2022,2205-00744,0.00,459.68,R,Allied Healthcare,No
Http://opendatacommunities.org/id/metropolitan-district-council/leeds,Leeds City Council,31/05/2022,Resources,Shared Services,External Income,Service Charges & Security Fees,938,26/05/2022,2205-00745,0.00,2581.19,R,Allied Publicity Services,No
Http://opendatacommunities.org/id/metropolitan-district-council/leeds,Leeds City Council,31/05/2022,Children and Families,Social Care,Agency Payments,Services Rendered By Other Organisations,511,06/05/2022,2205-00746,0.00,559.26,R,REDACTED PERSONAL DATA,No
Http://opendatacommunities.org/id/metropolitan-district-council/leeds,Leeds City Council,31/05/2022,Children and Families,Social Care,Transport,Fuel (Non LCC Supplies),321,04/05/2022,2205-00747,0.00,65.00,R,Allpay,No
Http://opendatacommunities.org/id/metropolitan-district-council/leeds,Leeds City Council,31/05/2022,Children and Families,Social Care,Transport,Fuel (Non LCC Supplies),321,26/05/2022,2205-00748,0.00,30.00,R,Allpay,No
Http://opendatacommunities.org/id/metropolitan-district-council/leeds,Leeds City Council,31/05/2022,Children and Families,Social Care,Agency Payments,Allowances,546,09/05/2022,2205-00749,0.00,100.00,R,Allpay,No
Http://opendatacommunities.org/id/metropolitan-district-council/leeds,Leeds City Council,31/05/2022,Children and Families,Social Care,Agency Payments,Allowances,546,19/05/2022,2205-00750,0.00,50.00,R,Allpay,No
Http://opendatacommunities.org/id/metropolitan-district-council/leeds,Leeds City Council,31/05/2022,Children and Families,Social Care,Agency Payments,Allowances,546,05/05/2022,2205-00751,0.00,100.00,R,Allpay,No
Http://opendatacommunities.org/id/metropolitan-district-council/leeds,Leeds City Council,31/05/2022,Children and Families,Social Care,Agency Payments,Allowances,546,05/05/2022,2205-00752,0.00,326.00,R,Allpay,No
Http://opendatacommunities.org/id/metropolitan-district-council/leeds,Leeds City Council,31/05/2022,Children and Families,Social Care,Agency Payments,Allowances,546,10/05/2022,2205-00753,0.00,100.00,R,Allpay,No
Http://opendatacommunities.org/id/metropolitan-district-council/leeds,Leeds City Council,31/05/2022,Children and Families,Social Care,Agency Payments,Allowances,546,18/05/2022,2205-00754,0.00,50.00,R,Allpay,No
Http://opendatacommunities.org/id/metropolitan-district-council/leeds,Leeds City Council,31/05/2022,Children and Families,Social Care,Agency Payments,Allowances,546,25/05/2022,2205-00755,0.00,50.00,R,Allpay,No
Http://opendatacommunities.org/id/metropolitan-district-council/leeds,Leeds City Council,31/05/2022,Children and Families,Social Care,Agency Payments,Contact,548,11/05/2022,2205-00756,0.00,69.00,R,Allpay,No
Http://opendatacommunities.org/id/metropolitan-district-council/leeds,Leeds City Council,31/05/2022,Children and Families,Social Care,Agency Payments,Contact,548,18/05/2022,2205-00757,0.00,49.00,R,Allpay,No
Http://opendatacommunities.org/id/metropolitan-district-council/leeds,Leeds City Council,31/05/2022,Children and Families,Social Care,Agency Payments,Contact,548,26/05/2022,2205-00758,0.00,20.80,R,Allpay,No
Http://opendatacommunities.org/id/metropolitan-district-council/leeds,Leeds City Council,31/05/2022,Children and Families,Social Care,Agency Payments,Contact,548,04/05/2022,2205-00759,0.00,100.20,R,Allpay,No
Http://opendatacommunities.org/id/metropolitan-district-council/leeds,Leeds City Council,31/05/2022,Children and Families,Social Care,Agency Payments,Contact,548,25/05/2022,2205-00760,0.00,49.00,R,Allpay,No
Http://opendatacommunities.org/id/metropolitan-district-council/leeds,Leeds City Council,31/05/2022,Children and Families,Social Care,Agency Payments,Placement Support,550,11/05/2022,2205-00761,0.00,90.00,R,Allpay,No
Http://opendatacommunities.org/id/metropolitan-district-council/leeds,Leeds City Council,31/05/2022,Children and Families,Social Care,Agency Payments,Placement Support,550,17/05/2022,2205-00762,0.00,225.00,R,Allpay,No
Http://opendatacommunities.org/id/metropolitan-district-council/leeds,Leeds City Council,31/05/2022,Children and Families,Social Care,Agency Payments,Placement Support,550,18/05/2022,2205-00763,0.00,90.00,R,Allpay,No
Http://opendatacommunities.org/id/metropolitan-district-council/leeds,Leeds City Council,31/05/2022,Children and Families,Social Care,Agency Payments,Placement Support,550,04/05/2022,2205-00764,0.00,90.00,R,Allpay,No
Http://opendatacommunities.org/id/metropolitan-district-council/leeds,Leeds City Council,31/05/2022,Children and Families,Social Care,Agency Payments,Placement Support,550,25/05/2022,2205-00765,0.00,90.00,R,Allpay,No
Http://opendatacommunities.org/id/metropolitan-district-council/leeds,Leeds City Council,31/05/2022,Children and Families,Social Care,Agency Payments,Placement Support,550,31/05/2022,2205-00766,0.00,200.00,R,Allpay,No
Http://opendatacommunities.org/id/metropolitan-district-council/leeds,Leeds City Council,31/05/2022,Children and Families,Social Care,Agency Payments,Section 17,551,11/05/2022,2205-00767,0.00,957.10,R,Allpay,No
Http://opendatacommunities.org/id/metropolitan-district-council/leeds,Leeds City Council,31/05/2022,Children and Families,Social Care,Agency Payments,Section 17,551,13/05/2022,2205-00768,0.00,84.20,R,Allpay,No
Http://opendatacommunities.org/id/metropolitan-district-council/leeds,Leeds City Council,31/05/2022,Children and Families,Social Care,Agency Payments,Section 17,551,17/05/2022,2205-00769,0.00,198.00,R,Allpay,No
Http://opendatacommunities.org/id/metropolitan-district-council/leeds,Leeds City Council,31/05/2022,Children and Families,Social Care,Agency Payments,Section 17,551,18/05/2022,2205-00770,0.00,746.10,R,Allpay,No
Http://opendatacommunities.org/id/metropolitan-district-council/leeds,Leeds City Council,31/05/2022,Children and Families,Social Care,Agency Payments,Section 17,551,20/05/2022,2205-00771,0.00,126.80,R,Allpay,No
Http://opendatacommunities.org/id/metropolitan-district-council/leeds,Leeds City Council,31/05/2022,Children and Families,Social Care,Agency Payments,Section 17,551,25/05/2022,2205-00772,0.00,175.00,R,Allpay,No
Http://opendatacommunities.org/id/metropolitan-district-council/leeds,Leeds City Council,31/05/2022,Children and Families,Social Care,Agency Payments,Section 17,551,04/05/2022,2205-00773,0.00,879.78,R,Allpay,No
Http://opendatacommunities.org/id/metropolitan-district-council/leeds,Leeds City Council,31/05/2022,Children and Families,Social Care,Agency Payments,Section 17,551,09/05/2022,2205-00774,0.00,84.20,R,Allpay,No
Http://opendatacommunities.org/id/metropolitan-district-council/leeds,Leeds City Council,31/05/2022,Children and Families,Social Care,Agency Payments,Section 17,551,12/05/2022,2205-00775,0.00,680.00,R,Allpay,No
Http://opendatacommunities.org/id/metropolitan-district-council/leeds,Leeds City Council,31/05/2022,Children and Families,Social Care,Agency Payments,Section 17,551,25/05/2022,2205-00776,0.00,1028.30,R,Allpay,No
Http://opendatacommunities.org/id/metropolitan-district-council/leeds,Leeds City Council,31/05/2022,Children and Families,Social Care,Appropriations,16 Plus Top Up Allowance,625,04/05/2022,2205-00777,0.00,470.00,R,Allpay,No
Http://opendatacommunities.org/id/metropolitan-district-council/leeds,Leeds City Council,31/05/2022,Children and Families,Social Care,Appropriations,16 Plus Top Up Allowance,625,05/05/2022,2205-00778,0.00,40.00,R,Allpay,No
Http://opendatacommunities.org/id/metropolitan-district-council/leeds,Leeds City Council,31/05/2022,Children and Families,Social Care,Appropriations,16 Plus Top Up Allowance,625,18/05/2022,2205-00779,0.00,60.00,R,Allpay,No
Http://opendatacommunities.org/id/metropolitan-district-council/leeds,Leeds City Council,31/05/2022,Children and Families,Social Care,Appropriations,16 Plus Top Up Allowance,625,19/05/2022,2205-00780,0.00,200.00,R,Allpay,No
Http://opendatacommunities.org/id/metropolitan-district-council/leeds,Leeds City Council,31/05/2022,Children and Families,Social Care,Appropriations,16 Plus Top Up Allowance,625,25/05/2022,2205-00781,0.00,510.00,R,Allpay,No
Http://opendatacommunities.org/id/metropolitan-district-council/leeds,Leeds City Council,31/05/2022,Children and Families,Social Care,Appropriations,16 Plus Top Up Allowance,625,25/05/2022,2205-00782,0.00,20.00,R,Allpay,No
Http://opendatacommunities.org/id/metropolitan-district-council/leeds,Leeds City Council,31/05/2022,Children and Families,Social Care,Appropriations,16 Plus Top Up Allowance,625,11/05/2022,2205-00783,0.00,530.00,R,Allpay,No
Http://opendatacommunities.org/id/metropolitan-district-council/leeds,Leeds City Council,31/05/2022,Children and Families,Social Care,Appropriations,16 Plus Top Up Allowance,625,18/05/2022,2205-00784,0.00,490.00,R,Allpay,No
Http://opendatacommunities.org/id/metropolitan-district-council/leeds,Leeds City Council,31/05/2022,Children and Families,Social Care,Appropriations,16 Plus Top Up Allowance,625,19/05/2022,2205-00785,0.00,60.00,R,Allpay,No
Http://opendatacommunities.org/id/metropolitan-district-council/leeds,Leeds City Council,31/05/2022,Children and Families,Social Care,Appropriations,Leaving Care Allowances,634,04/05/2022,2205-00786,0.00,2386.58,R,Allpay,No
Http://opendatacommunities.org/id/metropolitan-district-council/leeds,Leeds City Council,31/05/2022,Children and Families,Social Care,Appropriations,Leaving Care Allowances,634,09/05/2022,2205-00787,0.00,50.00,R,Allpay,No
Http://opendatacommunities.org/id/metropolitan-district-council/leeds,Leeds City Council,31/05/2022,Children and Families,Social Care,Appropriations,Leaving Care Allowances,634,09/05/2022,2205-00788,0.00,27.44,R,Allpay,No
Http://opendatacommunities.org/id/metropolitan-district-council/leeds,Leeds City Council,31/05/2022,Children and Families,Social Care,Appropriations,Leaving Care Allowances,634,09/05/2022,2205-00789,0.00,46.44,R,Allpay,No
Http://opendatacommunities.org/id/metropolitan-district-council/leeds,Leeds City Council,31/05/2022,Children and Families,Social Care,Appropriations,Leaving Care Allowances,634,10/05/2022,2205-00790,0.00,50.00,R,Allpay,No
Http://opendatacommunities.org/id/metropolitan-district-council/leeds,Leeds City Council,31/05/2022,Children and Families,Social Care,Appropriations,Leaving Care Allowances,634,11/05/2022,2205-00791,0.00,50.00,R,Allpay,No
Http://opendatacommunities.org/id/metropolitan-district-council/leeds,Leeds City Council,31/05/2022,Children and Families,Social Care,Appropriations,Leaving Care Allowances,634,20/05/2022,2205-00792,0.00,100.00,R,Allpay,No
